Organisation Code,Organisation Label,Effective Date,Organisational Unit,Service Division Label,Category Internal Name,Purpose,Detailed Expenditure Code,Payment Date,Transaction Number,Irrecoverable VAT Amount,Amount,Capital Or Revenue,Benificiary Name,Procurement Card
Http://opendatacommunities.org/id/metropolitan-district-council/leeds,Leeds City Council,29/02/2020,Communities and Environment,Customer Access  ,Supplies and Services,Computer Software & Equipment,214,22/01/2020,2002-00001,0.00,566.67,R,A & P Chambers Ltd,Yes
Http://opendatacommunities.org/id/metropolitan-district-council/leeds,Leeds City Council,29/02/2020,Adults and Health,Services For Older People Under 65 P/Dis,Third Party Payments,Sheltered Accommodation,569,05/02/2020,2002-00002,0.00,5400.00,R,A & V Transitional Homes,No
Http://opendatacommunities.org/id/metropolitan-district-council/leeds,Leeds City Council,29/02/2020,Resources and Housing,HRA Housing Leeds,Capital,Other Costs,7,27/02/2020,2002-00003,0.00,80.00,C,REDACTED PERSONAL DATA,No
Http://opendatacommunities.org/id/metropolitan-district-council/leeds,Leeds City Council,29/02/2020,Resources and Housing,Leeds Building Services,Supplies and Services,Operational Materials,205,28/02/2020,2002-00004,0.00,23.75,R,A Andrews & Sons (Marbles & Tiles),No
Http://opendatacommunities.org/id/metropolitan-district-council/leeds,Leeds City Council,29/02/2020,Resources and Housing,Leeds Building Services,Supplies and Services,Operational Materials,205,28/02/2020,2002-00005,0.00,12.77,R,A Andrews & Sons (Marbles & Tiles),No
Http://opendatacommunities.org/id/metropolitan-district-council/leeds,Leeds City Council,29/02/2020,Children and Families,Social Care,Third Party Payments,Services Rendered By Other Organisations,511,07/02/2020,2002-00006,0.00,613.47,R,REDACTED PERSONAL DATA,No
Http://opendatacommunities.org/id/metropolitan-district-council/leeds,Leeds City Council,29/02/2020,Children and Families,Social Care,Third Party Payments,Services Rendered By Other Organisations,511,21/02/2020,2002-00007,0.00,69.69,R,REDACTED PERSONAL DATA,No
Http://opendatacommunities.org/id/metropolitan-district-council/leeds,Leeds City Council,29/02/2020,Resources and Housing,HRA Housing Leeds,Capital,Other Costs,7,21/02/2020,2002-00008,0.00,60.00,C,REDACTED PERSONAL DATA,No
Http://opendatacommunities.org/id/metropolitan-district-council/leeds,Leeds City Council,29/02/2020,Resources and Housing,Leeds Building Services,Supplies and Services,Other Hired And Contracted Services,265,14/02/2020,2002-00009,0.00,12800.00,R,A Buckler (Haulage) Ltd,No
Http://opendatacommunities.org/id/metropolitan-district-council/leeds,Leeds City Council,29/02/2020,Resources and Housing,Leeds Building Services,Supplies and Services,Other Hired And Contracted Services,265,21/02/2020,2002-00010,0.00,31350.00,R,A Buckler (Haulage) Ltd,No
Http://opendatacommunities.org/id/metropolitan-district-council/leeds,Leeds City Council,29/02/2020,Resources and Housing,Leeds Building Services,Supplies and Services,Other Hired And Contracted Services,265,27/02/2020,2002-00011,0.00,4470.00,R,A Buckler (Haulage) Ltd,No
Http://opendatacommunities.org/id/metropolitan-district-council/leeds,Leeds City Council,29/02/2020,Resources and Housing,Leeds Building Services,Supplies and Services,Other Hired And Contracted Services,265,27/02/2020,2002-00012,0.00,3615.00,R,A Buckler (Haulage) Ltd,No
Http://opendatacommunities.org/id/metropolitan-district-council/leeds,Leeds City Council,29/02/2020,City Development,Libraries  Arts & Heritage,Supplies and Services,Operational Furniture And Equipment,203,19/02/2020,2002-00013,0.00,336.25,R,A C Entertainment Technologies Ltd,No
Http://opendatacommunities.org/id/metropolitan-district-council/leeds,Leeds City Council,29/02/2020,Children and Families,Social Care,Third Party Payments,Services Rendered By Other Organisations,511,07/02/2020,2002-00014,0.00,946.00,R,REDACTED PERSONAL DATA,No
Http://opendatacommunities.org/id/metropolitan-district-council/leeds,Leeds City Council,29/02/2020,Children and Families,Social Care,Third Party Payments,Services Rendered By Other Organisations,511,07/02/2020,2002-00015,0.00,516.00,R,REDACTED PERSONAL DATA,No
Http://opendatacommunities.org/id/metropolitan-district-council/leeds,Leeds City Council,29/02/2020,Resources and Housing,HRA Housing Leeds,Capital,Construction,3,05/02/2020,2002-00016,0.00,40993.15,C,A Connolly Limited,No
Http://opendatacommunities.org/id/metropolitan-district-council/leeds,Leeds City Council,29/02/2020,Resources and Housing,Leeds Building Services,Supplies and Services,Other Hired And Contracted Services,265,10/02/2020,2002-00017,0.00,85.00,R,A Coole Electrical Ltd,No
Http://opendatacommunities.org/id/metropolitan-district-council/leeds,Leeds City Council,29/02/2020,Resources and Housing,Leeds Building Services,Supplies and Services,Other Hired And Contracted Services,265,10/02/2020,2002-00018,0.00,85.00,R,A Coole Electrical Ltd,No
Http://opendatacommunities.org/id/metropolitan-district-council/leeds,Leeds City Council,29/02/2020,Resources and Housing,Leeds Building Services,Supplies and Services,Other Hired And Contracted Services,265,14/02/2020,2002-00019,0.00,85.00,R,A Coole Electrical Ltd,No
Http://opendatacommunities.org/id/metropolitan-district-council/leeds,Leeds City Council,29/02/2020,Resources and Housing,Leeds Building Services,Supplies and Services,Other Hired And Contracted Services,265,14/02/2020,2002-00020,0.00,85.00,R,A Coole Electrical Ltd,No
Http://opendatacommunities.org/id/metropolitan-district-council/leeds,Leeds City Council,29/02/2020,Resources and Housing,Leeds Building Services,Supplies and Services,Other Hired And Contracted Services,265,14/02/2020,2002-00021,0.00,120.00,R,A Coole Electrical Ltd,No
Http://opendatacommunities.org/id/metropolitan-district-council/leeds,Leeds City Council,29/02/2020,Resources and Housing,Leeds Building Services,Supplies and Services,Other Hired And Contracted Services,265,21/02/2020,2002-00022,0.00,320.00,R,A Coole Electrical Ltd,No
Http://opendatacommunities.org/id/metropolitan-district-council/leeds,Leeds City Council,29/02/2020,Resources and Housing,Leeds Building Services,Supplies and Services,Other Hired And Contracted Services,265,21/02/2020,2002-00023,0.00,160.00,R,A Coole Electrical Ltd,No
Http://opendatacommunities.org/id/metropolitan-district-council/leeds,Leeds City Council,29/02/2020,Resources and Housing,Leeds Building Services,Supplies and Services,Other Hired And Contracted Services,265,21/02/2020,2002-00024,0.00,50.00,R,A Coole Electrical Ltd,No
Http://opendatacommunities.org/id/metropolitan-district-council/leeds,Leeds City Council,29/02/2020,Resources and Housing,Leeds Building Services,Supplies and Services,Other Hired And Contracted Services,265,21/02/2020,2002-00025,0.00,135.00,R,A Coole Electrical Ltd,No
Http://opendatacommunities.org/id/metropolitan-district-council/leeds,Leeds City Council,29/02/2020,Resources and Housing,Leeds Building Services,Supplies and Services,Other Hired And Contracted Services,265,21/02/2020,2002-00026,0.00,85.00,R,A Coole Electrical Ltd,No
Http://opendatacommunities.org/id/metropolitan-district-council/leeds,Leeds City Council,29/02/2020,Resources and Housing,Leeds Building Services,Supplies and Services,Other Hired And Contracted Services,265,28/02/2020,2002-00027,0.00,95.00,R,A Coole Electrical Ltd,No
Http://opendatacommunities.org/id/metropolitan-district-council/leeds,Leeds City Council,29/02/2020,Resources and Housing,Leeds Building Services,Supplies and Services,Other Hired And Contracted Services,265,28/02/2020,2002-00028,0.00,85.00,R,A Coole Electrical Ltd,No
Http://opendatacommunities.org/id/metropolitan-district-council/leeds,Leeds City Council,29/02/2020,Communities and Environment,Customer Access,Supplies and Services,Bought In Professional Services,277,07/02/2020,2002-00029,0.00,18.00,R,A D Dumitru,No
Http://opendatacommunities.org/id/metropolitan-district-council/leeds,Leeds City Council,29/02/2020,Communities and Environment,Customer Access,Supplies and Services,Bought In Professional Services,277,13/02/2020,2002-00030,0.00,18.00,R,A D Dumitru,No
Http://opendatacommunities.org/id/metropolitan-district-council/leeds,Leeds City Council,29/02/2020,Communities and Environment,Customer Access,Supplies and Services,Bought In Professional Services,277,20/02/2020,2002-00031,0.00,18.00,R,A D Dumitru,No
Http://opendatacommunities.org/id/metropolitan-district-council/leeds,Leeds City Council,29/02/2020,Children and Families,Social Care,Third Party Payments,Services Rendered By Voluntary Sector,505,05/02/2020,2002-00032,0.00,1872.00,R,REDACTED PERSONAL DATA,No
Http://opendatacommunities.org/id/metropolitan-district-council/leeds,Leeds City Council,29/02/2020,Children and Families,Social Care,Third Party Payments,Services Rendered By Voluntary Sector,505,07/02/2020,2002-00033,0.00,7275.60,R,REDACTED PERSONAL DATA,No
Http://opendatacommunities.org/id/metropolitan-district-council/leeds,Leeds City Council,29/02/2020,Children and Families,Social Care,Third Party Payments,Services Rendered By Voluntary Sector,505,21/02/2020,2002-00034,0.00,752.62,R,REDACTED PERSONAL DATA,No
Http://opendatacommunities.org/id/metropolitan-district-council/leeds,Leeds City Council,29/02/2020,Children and Families,Social Care,Third Party Payments,Services Rendered By Other Organisations,511,05/02/2020,2002-00035,0.00,312.00,R,REDACTED PERSONAL DATA,No
Http://opendatacommunities.org/id/metropolitan-district-council/leeds,Leeds City Council,29/02/2020,Children and Families,Social Care,Third Party Payments,Services Rendered By Other Organisations,511,07/02/2020,2002-00036,0.00,1032.00,R,REDACTED PERSONAL DATA,No
Http://opendatacommunities.org/id/metropolitan-district-council/leeds,Leeds City Council,29/02/2020,Children and Families,Social Care,Third Party Payments,Services Rendered By Other Organisations,511,07/02/2020,2002-00037,0.00,258.00,R,REDACTED PERSONAL DATA,No
Http://opendatacommunities.org/id/metropolitan-district-council/leeds,Leeds City Council,29/02/2020,Children and Families,Social Care,Third Party Payments,Services Rendered By Other Organisations,511,21/02/2020,2002-00038,0.00,418.12,R,REDACTED PERSONAL DATA,No
Http://opendatacommunities.org/id/metropolitan-district-council/leeds,Leeds City Council,29/02/2020,Resources and Housing,HRA Housing Leeds,Capital,Other Costs,7,13/02/2020,2002-00039,0.00,80.00,C,REDACTED PERSONAL DATA,No
Http://opendatacommunities.org/id/metropolitan-district-council/leeds,Leeds City Council,29/02/2020,Children and Families,Social Care,Third Party Payments,Services Rendered By Other Organisations,511,07/02/2020,2002-00040,0.00,266.60,R,REDACTED PERSONAL DATA,No
Http://opendatacommunities.org/id/metropolitan-district-council/leeds,Leeds City Council,29/02/2020,Children and Families,Social Care,Third Party Payments,Services Rendered By Other Organisations,511,21/02/2020,2002-00041,0.00,278.75,R,REDACTED PERSONAL DATA,No
Http://opendatacommunities.org/id/metropolitan-district-council/leeds,Leeds City Council,29/02/2020,Adults and Health,Other Generic Services,Third Party Payments,Fees To Carers,563,14/02/2020,2002-00042,0.00,315.01,R,REDACTED PERSONAL DATA,No
Http://opendatacommunities.org/id/metropolitan-district-council/leeds,Leeds City Council,29/02/2020,Adults and Health,Other Generic Services,Third Party Payments,Fees To Carers,563,14/02/2020,2002-00043,0.00,105.00,R,REDACTED PERSONAL DATA,No
Http://opendatacommunities.org/id/metropolitan-district-council/leeds,Leeds City Council,29/02/2020,Adults and Health,Other Generic Services,Third Party Payments,Fees To Carers,563,14/02/2020,2002-00044,0.00,25.20,R,REDACTED PERSONAL DATA,No
Http://opendatacommunities.org/id/metropolitan-district-council/leeds,Leeds City Council,29/02/2020,Adults and Health,Other Generic Services,Third Party Payments,Fees To Carers,563,14/02/2020,2002-00045,0.00,12.60,R,REDACTED PERSONAL DATA,No
Http://opendatacommunities.org/id/metropolitan-district-council/leeds,Leeds City Council,29/02/2020,Adults and Health,Other Generic Services,Third Party Payments,Fees To Carers,563,14/02/2020,2002-00046,0.00,12.60,R,REDACTED PERSONAL DATA,No
Http://opendatacommunities.org/id/metropolitan-district-council/leeds,Leeds City Council,29/02/2020,Adults and Health,Other Generic Services,Third Party Payments,Fees To Carers,563,21/02/2020,2002-00047,0.00,18.25,R,REDACTED PERSONAL DATA,No
Http://opendatacommunities.org/id/metropolitan-district-council/leeds,Leeds City Council,29/02/2020,Resources and Housing,HRA Housing Leeds,Capital,Other Costs,7,27/02/2020,2002-00048,0.00,80.00,C,REDACTED PERSONAL DATA,No
Http://opendatacommunities.org/id/metropolitan-district-council/leeds,Leeds City Council,29/02/2020,City Development,Libraries  Arts & Heritage,Supplies and Services,Other Hired And Contracted Services,265,20/02/2020,2002-00049,0.00,640.00,R,#REF!,No
Http://opendatacommunities.org/id/metropolitan-district-council/leeds,Leeds City Council,29/02/2020,Resources and Housing,Leeds Building Services,Supplies and Services,Operational Materials,205,06/02/2020,2002-00050,0.00,120.95,R,A J H  Pump Supply & Repair Ltd,No
Http://opendatacommunities.org/id/metropolitan-district-council/leeds,Leeds City Council,29/02/2020,Resources and Housing,Leeds Building Services,Supplies and Services,Operational Materials,205,06/02/2020,2002-00051,0.00,47.45,R,A J H  Pump Supply & Repair Ltd,No
Http://opendatacommunities.org/id/metropolitan-district-council/leeds,Leeds City Council,29/02/2020,Resources and Housing,Leeds Building Services,Supplies and Services,Operational Materials,205,06/02/2020,2002-00052,0.00,41.26,R,A J H  Pump Supply & Repair Ltd,No
Http://opendatacommunities.org/id/metropolitan-district-council/leeds,Leeds City Council,29/02/2020,Resources and Housing,Leeds Building Services,Supplies and Services,Operational Materials,205,06/02/2020,2002-00053,0.00,364.44,R,A J H  Pump Supply & Repair Ltd,No
Http://opendatacommunities.org/id/metropolitan-district-council/leeds,Leeds City Council,29/02/2020,Resources and Housing,Leeds Building Services,Supplies and Services,Operational Materials,205,06/02/2020,2002-00054,0.00,48.97,R,A J H  Pump Supply & Repair Ltd,No
Http://opendatacommunities.org/id/metropolitan-district-council/leeds,Leeds City Council,29/02/2020,Resources and Housing,Leeds Building Services,Supplies and Services,Operational Materials,205,12/02/2020,2002-00055,0.00,41.26,R,A J H  Pump Supply & Repair Ltd,No
Http://opendatacommunities.org/id/metropolitan-district-council/leeds,Leeds City Council,29/02/2020,Resources and Housing,Leeds Building Services,Supplies and Services,Operational Materials,205,12/02/2020,2002-00056,0.00,1095.00,R,A J H  Pump Supply & Repair Ltd,No
Http://opendatacommunities.org/id/metropolitan-district-council/leeds,Leeds City Council,29/02/2020,Resources and Housing,Leeds Building Services,Supplies and Services,Operational Materials,205,12/02/2020,2002-00057,0.00,117.70,R,A J H  Pump Supply & Repair Ltd,No
Http://opendatacommunities.org/id/metropolitan-district-council/leeds,Leeds City Council,29/02/2020,Resources and Housing,Leeds Building Services,Supplies and Services,Operational Materials,205,12/02/2020,2002-00058,0.00,37.37,R,A J H  Pump Supply & Repair Ltd,No
Http://opendatacommunities.org/id/metropolitan-district-council/leeds,Leeds City Council,29/02/2020,Resources and Housing,Leeds Building Services,Supplies and Services,Operational Materials,205,12/02/2020,2002-00059,0.00,65.70,R,A J H  Pump Supply & Repair Ltd,No
Http://opendatacommunities.org/id/metropolitan-district-council/leeds,Leeds City Council,29/02/2020,Resources and Housing,Leeds Building Services,Supplies and Services,Operational Materials,205,12/02/2020,2002-00060,0.00,206.26,R,A J H  Pump Supply & Repair Ltd,No
Http://opendatacommunities.org/id/metropolitan-district-council/leeds,Leeds City Council,29/02/2020,Resources and Housing,Leeds Building Services,Supplies and Services,Operational Materials,205,12/02/2020,2002-00061,0.00,468.86,R,A J H  Pump Supply & Repair Ltd,No
Http://opendatacommunities.org/id/metropolitan-district-council/leeds,Leeds City Council,29/02/2020,Resources and Housing,Leeds Building Services,Supplies and Services,Operational Materials,205,12/02/2020,2002-00062,0.00,15.95,R,A J H  Pump Supply & Repair Ltd,No
Http://opendatacommunities.org/id/metropolitan-district-council/leeds,Leeds City Council,29/02/2020,Resources and Housing,Leeds Building Services,Supplies and Services,Operational Materials,205,12/02/2020,2002-00063,0.00,195.33,R,A J H  Pump Supply & Repair Ltd,No
Http://opendatacommunities.org/id/metropolitan-district-council/leeds,Leeds City Council,29/02/2020,Resources and Housing,Leeds Building Services,Supplies and Services,Operational Materials,205,14/02/2020,2002-00064,0.00,170.53,R,A J H  Pump Supply & Repair Ltd,No
Http://opendatacommunities.org/id/metropolitan-district-council/leeds,Leeds City Council,29/02/2020,Resources and Housing,Leeds Building Services,Supplies and Services,Operational Materials,205,14/02/2020,2002-00065,0.00,239.75,R,A J H  Pump Supply & Repair Ltd,No
Http://opendatacommunities.org/id/metropolitan-district-council/leeds,Leeds City Council,29/02/2020,Resources and Housing,Leeds Building Services,Supplies and Services,Operational Materials,205,14/02/2020,2002-00066,0.00,58.95,R,A J H  Pump Supply & Repair Ltd,No
Http://opendatacommunities.org/id/metropolitan-district-council/leeds,Leeds City Council,29/02/2020,Resources and Housing,Leeds Building Services,Supplies and Services,Operational Materials,205,14/02/2020,2002-00067,0.00,89.10,R,A J H  Pump Supply & Repair Ltd,No
Http://opendatacommunities.org/id/metropolitan-district-council/leeds,Leeds City Council,29/02/2020,Resources and Housing,Leeds Building Services,Supplies and Services,Operational Materials,205,14/02/2020,2002-00068,0.00,205.74,R,A J H  Pump Supply & Repair Ltd,No
Http://opendatacommunities.org/id/metropolitan-district-council/leeds,Leeds City Council,29/02/2020,Resources and Housing,Leeds Building Services,Supplies and Services,Operational Materials,205,14/02/2020,2002-00069,0.00,107.59,R,A J H  Pump Supply & Repair Ltd,No
Http://opendatacommunities.org/id/metropolitan-district-council/leeds,Leeds City Council,29/02/2020,Resources and Housing,Leeds Building Services,Supplies and Services,Operational Materials,205,14/02/2020,2002-00070,0.00,71.96,R,A J H  Pump Supply & Repair Ltd,No
Http://opendatacommunities.org/id/metropolitan-district-council/leeds,Leeds City Council,29/02/2020,Resources and Housing,Leeds Building Services,Supplies and Services,Operational Materials,205,14/02/2020,2002-00071,0.00,103.84,R,A J H  Pump Supply & Repair Ltd,No
Http://opendatacommunities.org/id/metropolitan-district-council/leeds,Leeds City Council,29/02/2020,Resources and Housing,Leeds Building Services,Supplies and Services,Operational Materials,205,14/02/2020,2002-00072,0.00,67.57,R,A J H  Pump Supply & Repair Ltd,No
Http://opendatacommunities.org/id/metropolitan-district-council/leeds,Leeds City Council,29/02/2020,Resources and Housing,Leeds Building Services,Supplies and Services,Operational Materials,205,14/02/2020,2002-00073,0.00,251.40,R,A J H  Pump Supply & Repair Ltd,No
Http://opendatacommunities.org/id/metropolitan-district-council/leeds,Leeds City Council,29/02/2020,Resources and Housing,Leeds Building Services,Supplies and Services,Operational Materials,205,14/02/2020,2002-00074,0.00,185.00,R,A J H  Pump Supply & Repair Ltd,No
Http://opendatacommunities.org/id/metropolitan-district-council/leeds,Leeds City Council,29/02/2020,Resources and Housing,Leeds Building Services,Supplies and Services,Operational Materials,205,14/02/2020,2002-00075,0.00,63.05,R,A J H  Pump Supply & Repair Ltd,No
Http://opendatacommunities.org/id/metropolitan-district-council/leeds,Leeds City Council,29/02/2020,Resources and Housing,Leeds Building Services,Supplies and Services,Operational Materials,205,21/02/2020,2002-00076,0.00,124.38,R,A J H  Pump Supply & Repair Ltd,No
Http://opendatacommunities.org/id/metropolitan-district-council/leeds,Leeds City Council,29/02/2020,Resources and Housing,Leeds Building Services,Supplies and Services,Operational Materials,205,21/02/2020,2002-00077,0.00,163.45,R,A J H  Pump Supply & Repair Ltd,No
Http://opendatacommunities.org/id/metropolitan-district-council/leeds,Leeds City Council,29/02/2020,Resources and Housing,Leeds Building Services,Supplies and Services,Operational Materials,205,21/02/2020,2002-00078,0.00,23.94,R,A J H  Pump Supply & Repair Ltd,No
Http://opendatacommunities.org/id/metropolitan-district-council/leeds,Leeds City Council,29/02/2020,Resources and Housing,Leeds Building Services,Supplies and Services,Operational Materials,205,21/02/2020,2002-00079,0.00,99.90,R,A J H  Pump Supply & Repair Ltd,No
Http://opendatacommunities.org/id/metropolitan-district-council/leeds,Leeds City Council,29/02/2020,Resources and Housing,Leeds Building Services,Supplies and Services,Operational Materials,205,21/02/2020,2002-00080,0.00,28.30,R,A J H  Pump Supply & Repair Ltd,No
Http://opendatacommunities.org/id/metropolitan-district-council/leeds,Leeds City Council,29/02/2020,Resources and Housing,Leeds Building Services,Supplies and Services,Operational Materials,205,27/02/2020,2002-00081,0.00,79.84,R,A J H  Pump Supply & Repair Ltd,No
Http://opendatacommunities.org/id/metropolitan-district-council/leeds,Leeds City Council,29/02/2020,Resources and Housing,Leeds Building Services,Supplies and Services,Operational Materials,205,27/02/2020,2002-00082,0.00,712.64,R,A J H  Pump Supply & Repair Ltd,No
Http://opendatacommunities.org/id/metropolitan-district-council/leeds,Leeds City Council,29/02/2020,Resources and Housing,Leeds Building Services,Supplies and Services,Operational Materials,205,27/02/2020,2002-00083,0.00,83.25,R,A J H  Pump Supply & Repair Ltd,No
Http://opendatacommunities.org/id/metropolitan-district-council/leeds,Leeds City Council,29/02/2020,Resources and Housing,Leeds Building Services,Supplies and Services,Operational Materials,205,27/02/2020,2002-00084,0.00,117.57,R,A J H  Pump Supply & Repair Ltd,No
Http://opendatacommunities.org/id/metropolitan-district-council/leeds,Leeds City Council,29/02/2020,Resources and Housing,Leeds Building Services,Supplies and Services,Operational Materials,205,27/02/2020,2002-00085,0.00,116.47,R,A J H  Pump Supply & Repair Ltd,No
Http://opendatacommunities.org/id/metropolitan-district-council/leeds,Leeds City Council,29/02/2020,Resources and Housing,Leeds Building Services,Supplies and Services,Operational Materials,205,27/02/2020,2002-00086,0.00,70.40,R,A J H  Pump Supply & Repair Ltd,No
Http://opendatacommunities.org/id/metropolitan-district-council/leeds,Leeds City Council,29/02/2020,Resources and Housing,Leeds Building Services,Supplies and Services,Operational Materials,205,27/02/2020,2002-00087,0.00,83.16,R,A J H  Pump Supply & Repair Ltd,No
Http://opendatacommunities.org/id/metropolitan-district-council/leeds,Leeds City Council,29/02/2020,Resources and Housing,Leeds Building Services,Supplies and Services,Operational Materials,205,27/02/2020,2002-00088,0.00,604.95,R,A J H  Pump Supply & Repair Ltd,No
Http://opendatacommunities.org/id/metropolitan-district-council/leeds,Leeds City Council,29/02/2020,Resources and Housing,Leeds Building Services,Supplies and Services,Operational Materials,205,27/02/2020,2002-00089,0.00,46.06,R,A J H  Pump Supply & Repair Ltd,No
Http://opendatacommunities.org/id/metropolitan-district-council/leeds,Leeds City Council,29/02/2020,Resources and Housing,Leeds Building Services,Supplies and Services,Operational Materials,205,27/02/2020,2002-00090,0.00,38.40,R,A J H  Pump Supply & Repair Ltd,No
Http://opendatacommunities.org/id/metropolitan-district-council/leeds,Leeds City Council,29/02/2020,Resources and Housing,Leeds Building Services,Supplies and Services,Operational Materials,205,27/02/2020,2002-00091,0.00,120.00,R,A J H  Pump Supply & Repair Ltd,No
Http://opendatacommunities.org/id/metropolitan-district-council/leeds,Leeds City Council,29/02/2020,Resources and Housing,Leeds Building Services,Supplies and Services,Operational Materials,205,27/02/2020,2002-00092,0.00,180.00,R,A J H  Pump Supply & Repair Ltd,No
Http://opendatacommunities.org/id/metropolitan-district-council/leeds,Leeds City Council,29/02/2020,Resources and Housing,Leeds Building Services,Supplies and Services,Operational Materials,205,27/02/2020,2002-00093,0.00,150.00,R,A J H  Pump Supply & Repair Ltd,No
Http://opendatacommunities.org/id/metropolitan-district-council/leeds,Leeds City Council,29/02/2020,Resources and Housing,Leeds Building Services,Supplies and Services,Operational Materials,205,27/02/2020,2002-00094,0.00,196.44,R,A J H  Pump Supply & Repair Ltd,No
Http://opendatacommunities.org/id/metropolitan-district-council/leeds,Leeds City Council,29/02/2020,Resources and Housing,Leeds Building Services,Supplies and Services,Operational Materials,205,28/02/2020,2002-00095,0.00,46.06,R,A J H  Pump Supply & Repair Ltd,No
Http://opendatacommunities.org/id/metropolitan-district-council/leeds,Leeds City Council,29/02/2020,Resources and Housing,Leeds Building Services,Supplies and Services,Operational Materials,205,28/02/2020,2002-00096,0.00,128.65,R,A J H  Pump Supply & Repair Ltd,No
Http://opendatacommunities.org/id/metropolitan-district-council/leeds,Leeds City Council,29/02/2020,Resources and Housing,Leeds Building Services,Supplies and Services,Operational Materials,205,28/02/2020,2002-00097,0.00,175.00,R,A J H  Pump Supply & Repair Ltd,No
Http://opendatacommunities.org/id/metropolitan-district-council/leeds,Leeds City Council,29/02/2020,Resources and Housing,Leeds Building Services,Supplies and Services,Operational Materials,205,28/02/2020,2002-00098,0.00,62.41,R,A J H  Pump Supply & Repair Ltd,No
Http://opendatacommunities.org/id/metropolitan-district-council/leeds,Leeds City Council,29/02/2020,Resources and Housing,Leeds Building Services,Supplies and Services,Operational Materials,205,28/02/2020,2002-00099,0.00,68.97,R,A J H  Pump Supply & Repair Ltd,No
Http://opendatacommunities.org/id/metropolitan-district-council/leeds,Leeds City Council,29/02/2020,Resources and Housing,Leeds Building Services,Supplies and Services,Operational Materials,205,28/02/2020,2002-00100,0.00,33.75,R,A J H  Pump Supply & Repair Ltd,No
Http://opendatacommunities.org/id/metropolitan-district-council/leeds,Leeds City Council,29/02/2020,Resources and Housing,Leeds Building Services,Supplies and Services,Operational Materials,205,28/02/2020,2002-00101,0.00,170.23,R,A J H  Pump Supply & Repair Ltd,No
Http://opendatacommunities.org/id/metropolitan-district-council/leeds,Leeds City Council,29/02/2020,Resources and Housing,Leeds Building Services,Supplies and Services,Operational Materials,205,28/02/2020,2002-00102,0.00,77.50,R,A J H  Pump Supply & Repair Ltd,No
Http://opendatacommunities.org/id/metropolitan-district-council/leeds,Leeds City Council,29/02/2020,Resources and Housing,Leeds Building Services,Supplies and Services,Operational Materials,205,28/02/2020,2002-00103,0.00,43.13,R,A J H  Pump Supply & Repair Ltd,No
Http://opendatacommunities.org/id/metropolitan-district-council/leeds,Leeds City Council,29/02/2020,Resources and Housing,Leeds Building Services,Supplies and Services,Operational Materials,205,28/02/2020,2002-00104,0.00,147.22,R,A J H  Pump Supply & Repair Ltd,No
Http://opendatacommunities.org/id/metropolitan-district-council/leeds,Leeds City Council,29/02/2020,Resources and Housing,Leeds Building Services,Supplies and Services,Operational Materials,205,28/02/2020,2002-00105,0.00,37.20,R,A J H  Pump Supply & Repair Ltd,No
Http://opendatacommunities.org/id/metropolitan-district-council/leeds,Leeds City Council,29/02/2020,Resources and Housing,Leeds Building Services,Supplies and Services,Operational Materials,205,28/02/2020,2002-00106,0.00,513.00,R,A J H  Pump Supply & Repair Ltd,No
Http://opendatacommunities.org/id/metropolitan-district-council/leeds,Leeds City Council,29/02/2020,Resources and Housing,Leeds Building Services,Supplies and Services,Operational Materials,205,28/02/2020,2002-00107,0.00,106.88,R,A J H  Pump Supply & Repair Ltd,No
Http://opendatacommunities.org/id/metropolitan-district-council/leeds,Leeds City Council,29/02/2020,Resources and Housing,Leeds Building Services,Supplies and Services,Operational Materials,205,28/02/2020,2002-00108,0.00,41.26,R,A J H  Pump Supply & Repair Ltd,No
Http://opendatacommunities.org/id/metropolitan-district-council/leeds,Leeds City Council,29/02/2020,Resources and Housing,Leeds Building Services,Supplies and Services,Operational Materials,205,28/02/2020,2002-00109,0.00,25.00,R,A J H  Pump Supply & Repair Ltd,No
Http://opendatacommunities.org/id/metropolitan-district-council/leeds,Leeds City Council,29/02/2020,Resources and Housing,Leeds Building Services,Supplies and Services,Operational Materials,205,28/02/2020,2002-00110,0.00,103.00,R,A J H  Pump Supply & Repair Ltd,No
Http://opendatacommunities.org/id/metropolitan-district-council/leeds,Leeds City Council,29/02/2020,City Development,Libraries  Arts & Heritage,Supplies and Services,Art Galleries Total Stores,3,21/02/2020,2002-00111,0.00,853.15,R,A J Promotions,No
Http://opendatacommunities.org/id/metropolitan-district-council/leeds,Leeds City Council,29/02/2020,Children and Families,Social Care,Third Party Payments,Services Rendered By Other Organisations,511,05/02/2020,2002-00112,0.00,624.00,R,REDACTED PERSONAL DATA,No
Http://opendatacommunities.org/id/metropolitan-district-council/leeds,Leeds City Council,29/02/2020,Children and Families,Social Care,Third Party Payments,Services Rendered By Other Organisations,511,07/02/2020,2002-00113,0.00,2322.00,R,REDACTED PERSONAL DATA,No
Http://opendatacommunities.org/id/metropolitan-district-council/leeds,Leeds City Council,29/02/2020,Children and Families,Social Care,Third Party Payments,Services Rendered By Other Organisations,511,21/02/2020,2002-00114,0.00,167.25,R,REDACTED PERSONAL DATA,No
Http://opendatacommunities.org/id/metropolitan-district-council/leeds,Leeds City Council,29/02/2020,Adults and Health,Public Health,Third Party Payments,Public Health Commissioned Services,526,28/02/2020,2002-00115,0.00,52.00,R,A Khan & K Muneer,No
Http://opendatacommunities.org/id/metropolitan-district-council/leeds,Leeds City Council,29/02/2020,Children and Families,Social Care,Third Party Payments,Contact,548,17/02/2020,2002-00116,0.00,16.00,R,REDACTED PERSONAL DATA,No
Http://opendatacommunities.org/id/metropolitan-district-council/leeds,Leeds City Council,29/02/2020,Children and Families,Social Care,Third Party Payments,Contact,548,17/02/2020,2002-00117,0.00,15.00,R,REDACTED PERSONAL DATA,No
Http://opendatacommunities.org/id/metropolitan-district-council/leeds,Leeds City Council,29/02/2020,Resources and Housing,HRA Housing Leeds,Capital,Other Costs,7,27/02/2020,2002-00118,0.00,80.00,C,REDACTED PERSONAL DATA,No
Http://opendatacommunities.org/id/metropolitan-district-council/leeds,Leeds City Council,29/02/2020,Children and Families,Social Care,Third Party Payments,Services Rendered By Other Organisations,511,07/02/2020,2002-00119,0.00,590.63,R,A Little Something Extra Ltd,No
Http://opendatacommunities.org/id/metropolitan-district-council/leeds,Leeds City Council,29/02/2020,Children and Families,Social Care,Third Party Payments,Services Rendered By Other Organisations,511,12/02/2020,2002-00120,0.00,962.50,R,A Little Something Extra Ltd,No
Http://opendatacommunities.org/id/metropolitan-district-council/leeds,Leeds City Council,29/02/2020,Children and Families,Social Care,Supplies and Services,Other Hired And Contracted Services,265,24/02/2020,2002-00121,0.00,210.00,R,A Little Something Extra Ltd,No
Http://opendatacommunities.org/id/metropolitan-district-council/leeds,Leeds City Council,29/02/2020,Resources and Housing,HRA Housing Leeds,Capital,Other Costs,7,13/02/2020,2002-00122,0.00,80.00,C,REDACTED PERSONAL DATA,No
Http://opendatacommunities.org/id/metropolitan-district-council/leeds,Leeds City Council,29/02/2020,Communities and Environment,Customer Access,Supplies and Services,Bought In Professional Services,277,07/02/2020,2002-00123,0.00,18.00,R,A Mohammed,No
Http://opendatacommunities.org/id/metropolitan-district-council/leeds,Leeds City Council,29/02/2020,Communities and Environment,Customer Access,Supplies and Services,Bought In Professional Services,277,07/02/2020,2002-00124,0.00,18.00,R,A Mohammed,No
Http://opendatacommunities.org/id/metropolitan-district-council/leeds,Leeds City Council,29/02/2020,Communities and Environment,Customer Access,Supplies and Services,Bought In Professional Services,277,07/02/2020,2002-00125,0.00,18.00,R,A Mohammed,No
Http://opendatacommunities.org/id/metropolitan-district-council/leeds,Leeds City Council,29/02/2020,Communities and Environment,Customer Access,Supplies and Services,Bought In Professional Services,277,07/02/2020,2002-00126,0.00,18.00,R,A Mohammed,No
Http://opendatacommunities.org/id/metropolitan-district-council/leeds,Leeds City Council,29/02/2020,Communities and Environment,Customer Access,Supplies and Services,Bought In Professional Services,277,07/02/2020,2002-00127,0.00,18.00,R,A Mohammed,No
Http://opendatacommunities.org/id/metropolitan-district-council/leeds,Leeds City Council,29/02/2020,Communities and Environment,Customer Access,Supplies and Services,Bought In Professional Services,277,07/02/2020,2002-00128,0.00,27.00,R,A Mohammed,No
Http://opendatacommunities.org/id/metropolitan-district-council/leeds,Leeds City Council,29/02/2020,Communities and Environment,Customer Access,Supplies and Services,Bought In Professional Services,277,07/02/2020,2002-00129,0.00,18.00,R,A Mohammed,No
Http://opendatacommunities.org/id/metropolitan-district-council/leeds,Leeds City Council,29/02/2020,Communities and Environment,Customer Access,Supplies and Services,Bought In Professional Services,277,07/02/2020,2002-00130,0.00,18.00,R,A Mohammed,No
Http://opendatacommunities.org/id/metropolitan-district-council/leeds,Leeds City Council,29/02/2020,Communities and Environment,Customer Access,Supplies and Services,Bought In Professional Services,277,13/02/2020,2002-00131,0.00,18.00,R,A Mohammed,No
Http://opendatacommunities.org/id/metropolitan-district-council/leeds,Leeds City Council,29/02/2020,Communities and Environment,Customer Access,Supplies and Services,Bought In Professional Services,277,13/02/2020,2002-00132,0.00,22.50,R,A Mohammed,No
Http://opendatacommunities.org/id/metropolitan-district-council/leeds,Leeds City Council,29/02/2020,Communities and Environment,Customer Access,Supplies and Services,Bought In Professional Services,277,13/02/2020,2002-00133,0.00,54.00,R,A Mohammed,No
Http://opendatacommunities.org/id/metropolitan-district-council/leeds,Leeds City Council,29/02/2020,Communities and Environment,Customer Access,Supplies and Services,Bought In Professional Services,277,13/02/2020,2002-00134,0.00,18.00,R,A Mohammed,No
Http://opendatacommunities.org/id/metropolitan-district-council/leeds,Leeds City Council,29/02/2020,Communities and Environment,Customer Access,Supplies and Services,Bought In Professional Services,277,13/02/2020,2002-00135,0.00,27.00,R,A Mohammed,No
Http://opendatacommunities.org/id/metropolitan-district-council/leeds,Leeds City Council,29/02/2020,Communities and Environment,Customer Access,Supplies and Services,Bought In Professional Services,277,13/02/2020,2002-00136,0.00,18.00,R,A Mohammed,No
Http://opendatacommunities.org/id/metropolitan-district-council/leeds,Leeds City Council,29/02/2020,Communities and Environment,Customer Access,Supplies and Services,Bought In Professional Services,277,20/02/2020,2002-00137,0.00,18.00,R,A Mohammed,No
Http://opendatacommunities.org/id/metropolitan-district-council/leeds,Leeds City Council,29/02/2020,Communities and Environment,Customer Access,Supplies and Services,Bought In Professional Services,277,20/02/2020,2002-00138,0.00,40.50,R,A Mohammed,No
Http://opendatacommunities.org/id/metropolitan-district-council/leeds,Leeds City Council,29/02/2020,Communities and Environment,Customer Access,Supplies and Services,Bought In Professional Services,277,20/02/2020,2002-00139,0.00,36.00,R,A Mohammed,No
Http://opendatacommunities.org/id/metropolitan-district-council/leeds,Leeds City Council,29/02/2020,Communities and Environment,Customer Access,Supplies and Services,Bought In Professional Services,277,20/02/2020,2002-00140,0.00,18.00,R,A Mohammed,No
Http://opendatacommunities.org/id/metropolitan-district-council/leeds,Leeds City Council,29/02/2020,Communities and Environment,Customer Access,Supplies and Services,Bought In Professional Services,277,20/02/2020,2002-00141,0.00,22.50,R,A Mohammed,No
Http://opendatacommunities.org/id/metropolitan-district-council/leeds,Leeds City Council,29/02/2020,Communities and Environment,Customer Access,Supplies and Services,Bought In Professional Services,277,13/02/2020,2002-00142,0.00,18.00,R,A Musalam,No
Http://opendatacommunities.org/id/metropolitan-district-council/leeds,Leeds City Council,29/02/2020,Communities and Environment,Customer Access,Supplies and Services,Bought In Professional Services,277,13/02/2020,2002-00143,0.00,27.00,R,A Musalam,No
Http://opendatacommunities.org/id/metropolitan-district-council/leeds,Leeds City Council,29/02/2020,Communities and Environment,Customer Access,Supplies and Services,Bought In Professional Services,277,13/02/2020,2002-00144,0.00,27.00,R,A Musalam,No
Http://opendatacommunities.org/id/metropolitan-district-council/leeds,Leeds City Council,29/02/2020,Communities and Environment,Customer Access,Supplies and Services,Bought In Professional Services,277,20/02/2020,2002-00145,0.00,18.00,R,A Musalam,No
Http://opendatacommunities.org/id/metropolitan-district-council/leeds,Leeds City Council,29/02/2020,Communities and Environment,Customer Access,Supplies and Services,Bought In Professional Services,277,20/02/2020,2002-00146,0.00,40.50,R,A Musalam,No
Http://opendatacommunities.org/id/metropolitan-district-council/leeds,Leeds City Council,29/02/2020,Communities and Environment,Customer Access,Supplies and Services,Bought In Professional Services,277,27/02/2020,2002-00147,0.00,27.00,R,A Musalam,No
Http://opendatacommunities.org/id/metropolitan-district-council/leeds,Leeds City Council,29/02/2020,Children and Families,Social Care,Third Party Payments,Services Rendered By Other Organisations,511,05/02/2020,2002-00148,0.00,936.00,R,REDACTED PERSONAL DATA,No
Http://opendatacommunities.org/id/metropolitan-district-council/leeds,Leeds City Council,29/02/2020,Children and Families,Social Care,Third Party Payments,Services Rendered By Other Organisations,511,07/02/2020,2002-00149,0.00,3870.00,R,REDACTED PERSONAL DATA,No
Http://opendatacommunities.org/id/metropolitan-district-council/leeds,Leeds City Council,29/02/2020,Strategic Landlord,Housing Management,Supplies and Services,Compensation Claims,200,27/02/2020,2002-00150,0.00,500.00,R,REDACTED PERSONAL DATA,No
Http://opendatacommunities.org/id/metropolitan-district-council/leeds,Leeds City Council,29/02/2020,Children and Families,Social Care,Third Party Payments,Contact,548,07/02/2020,2002-00151,0.00,11.70,R,REDACTED PERSONAL DATA,No
Http://opendatacommunities.org/id/metropolitan-district-council/leeds,Leeds City Council,29/02/2020,Children and Families,Social Care,Third Party Payments,Contact,548,14/02/2020,2002-00152,0.00,11.70,R,REDACTED PERSONAL DATA,No
Http://opendatacommunities.org/id/metropolitan-district-council/leeds,Leeds City Council,29/02/2020,Children and Families,Social Care,Third Party Payments,Contact,548,21/02/2020,2002-00153,0.00,11.70,R,REDACTED PERSONAL DATA,No
Http://opendatacommunities.org/id/metropolitan-district-council/leeds,Leeds City Council,29/02/2020,Children and Families,Social Care,Third Party Payments,Contact,548,28/02/2020,2002-00154,0.00,11.70,R,REDACTED PERSONAL DATA,No
Http://opendatacommunities.org/id/metropolitan-district-council/leeds,Leeds City Council,29/02/2020,City Development,Libraries  Arts & Heritage,Supplies and Services,Bought In Professional Services,277,21/02/2020,2002-00155,0.00,1000.00,R,A P Wood,No
Http://opendatacommunities.org/id/metropolitan-district-council/leeds,Leeds City Council,29/02/2020,Communities and Environment,Communities,Supplies and Services,Other Hired And Contracted Services,265,26/02/2020,2002-00156,0.00,325.00,R,A Q Limited,No
Http://opendatacommunities.org/id/metropolitan-district-council/leeds,Leeds City Council,29/02/2020,Children and Families,Social Care,Third Party Payments,Services Rendered By Other Organisations,511,05/02/2020,2002-00157,0.00,137.28,R,REDACTED PERSONAL DATA,No
Http://opendatacommunities.org/id/metropolitan-district-council/leeds,Leeds City Council,29/02/2020,Children and Families,Social Care,Third Party Payments,Services Rendered By Other Organisations,511,07/02/2020,2002-00158,0.00,258.00,R,REDACTED PERSONAL DATA,No
Http://opendatacommunities.org/id/metropolitan-district-council/leeds,Leeds City Council,29/02/2020,Resources and Housing,Shared Services,Supplies and Services,Other Hired And Contracted Services,265,06/02/2020,2002-00159,0.00,235.00,R,A Star Couriers Ltd,No
Http://opendatacommunities.org/id/metropolitan-district-council/leeds,Leeds City Council,29/02/2020,Children and Families,Social Care,Third Party Payments,Independent Fostering Agencies,509,13/02/2020,2002-00160,0.00,1080.00,R,A Taxis,No
Http://opendatacommunities.org/id/metropolitan-district-council/leeds,Leeds City Council,29/02/2020,Resources and Housing,HRA Housing Leeds,Capital,Other Costs,7,13/02/2020,2002-00161,0.00,100.00,C,REDACTED PERSONAL DATA,No
Http://opendatacommunities.org/id/metropolitan-district-council/leeds,Leeds City Council,29/02/2020,Children and Families,Social Care,Third Party Payments,Services Rendered By Other Organisations,511,07/02/2020,2002-00162,0.00,516.00,R,REDACTED PERSONAL DATA,No
Http://opendatacommunities.org/id/metropolitan-district-council/leeds,Leeds City Council,29/02/2020,Children and Families,Social Care,Third Party Payments,Services Rendered By Other Organisations,511,07/02/2020,2002-00163,0.00,774.00,R,REDACTED PERSONAL DATA,No
Http://opendatacommunities.org/id/metropolitan-district-council/leeds,Leeds City Council,29/02/2020,Children and Families,Social Care,Third Party Payments,Services Rendered By Other Organisations,511,21/02/2020,2002-00164,0.00,494.20,R,REDACTED PERSONAL DATA,No
Http://opendatacommunities.org/id/metropolitan-district-council/leeds,Leeds City Council,29/02/2020,Children and Families,Social Care,Third Party Payments,Services Rendered By Other Organisations,511,21/02/2020,2002-00165,0.00,83.62,R,REDACTED PERSONAL DATA,No
Http://opendatacommunities.org/id/metropolitan-district-council/leeds,Leeds City Council,29/02/2020,Resources and Housing,HRA Housing Leeds,Capital,Other Costs,7,20/02/2020,2002-00166,0.00,80.00,C,REDACTED PERSONAL DATA,No
Http://opendatacommunities.org/id/metropolitan-district-council/leeds,Leeds City Council,29/02/2020,Children and Families,Social Care,Third Party Payments,General External Residential Placements,507,07/02/2020,2002-00167,0.00,468.90,R,A Wilderness Way Ltd,No
Http://opendatacommunities.org/id/metropolitan-district-council/leeds,Leeds City Council,29/02/2020,Children and Families,Social Care,Third Party Payments,General External Residential Placements,507,07/02/2020,2002-00168,0.00,116.10,R,A Wilderness Way Ltd,No
Http://opendatacommunities.org/id/metropolitan-district-council/leeds,Leeds City Council,29/02/2020,Children and Families,Social Care,Third Party Payments,General External Residential Placements,507,07/02/2020,2002-00169,0.00,1930.50,R,A Wilderness Way Ltd,No
Http://opendatacommunities.org/id/metropolitan-district-council/leeds,Leeds City Council,29/02/2020,Children and Families,Social Care,Third Party Payments,General External Residential Placements,507,13/02/2020,2002-00170,0.00,13084.00,R,A Wilderness Way Ltd,No
Http://opendatacommunities.org/id/metropolitan-district-council/leeds,Leeds City Council,29/02/2020,Children and Families,Social Care,Third Party Payments,General External Residential Placements,507,13/02/2020,2002-00171,0.00,720.00,R,A Wilderness Way Ltd,No
Http://opendatacommunities.org/id/metropolitan-district-council/leeds,Leeds City Council,29/02/2020,Children and Families,Social Care,Third Party Payments,General External Residential Placements,507,13/02/2020,2002-00172,0.00,-934.57,R,A Wilderness Way Ltd,No
Http://opendatacommunities.org/id/metropolitan-district-council/leeds,Leeds City Council,29/02/2020,Children and Families,Social Care,Third Party Payments,General External Residential Placements,507,28/02/2020,2002-00173,0.00,6542.00,R,A Wilderness Way Ltd,No
Http://opendatacommunities.org/id/metropolitan-district-council/leeds,Leeds City Council,29/02/2020,Children and Families,Social Care,Third Party Payments,General External Residential Placements,507,28/02/2020,2002-00174,0.00,67.50,R,A Wilderness Way Ltd,No
Http://opendatacommunities.org/id/metropolitan-district-council/leeds,Leeds City Council,29/02/2020,Children and Families,Social Care,Third Party Payments,General External Residential Placements,507,28/02/2020,2002-00175,0.00,2803.71,R,A Wilderness Way Ltd,No
Http://opendatacommunities.org/id/metropolitan-district-council/leeds,Leeds City Council,29/02/2020,Resources and Housing,Leeds Building Services,Supplies and Services,Operational Materials,205,14/02/2020,2002-00176,0.00,290.00,R,A1 Stair Lift Services,No
Http://opendatacommunities.org/id/metropolitan-district-council/leeds,Leeds City Council,29/02/2020,City Development,Recreation  ,Supplies and Services,Operational Furniture And Equipment,203,14/01/2020,2002-00177,0.00,84.30,R,Aal Ltd,Yes
Http://opendatacommunities.org/id/metropolitan-district-council/leeds,Leeds City Council,29/02/2020,Children and Families,Social Care,Third Party Payments,Placement Support,550,07/02/2020,2002-00178,0.00,40.00,R,REDACTED PERSONAL DATA,No
Http://opendatacommunities.org/id/metropolitan-district-council/leeds,Leeds City Council,29/02/2020,Children and Families,Social Care,Transfer Payments,Leaving Care Allowances,634,03/02/2020,2002-00179,0.00,60.00,R,REDACTED PERSONAL DATA,No
Http://opendatacommunities.org/id/metropolitan-district-council/leeds,Leeds City Council As Accountable Body,29/02/2020,Social Services Pooled Budgets,Leeds Community Equip Store Pooled Budgt,Supplies and Services,Other Equipment,203,07/02/2020,2002-00180,0.00,839.00,R,Aat (Gb) Ltd,No
Http://opendatacommunities.org/id/metropolitan-district-council/leeds,Leeds City Council As Accountable Body,29/02/2020,Social Services Pooled Budgets,Leeds Community Equip Store Pooled Budgt,Supplies and Services,Other Equipment,203,20/02/2020,2002-00181,0.00,1175.00,R,Aat (Gb) Ltd,No
Http://opendatacommunities.org/id/metropolitan-district-council/leeds,Leeds City Council As Accountable Body,29/02/2020,Social Services Pooled Budgets,Leeds Community Equip Store Pooled Budgt,Supplies and Services,Other Equipment,203,20/02/2020,2002-00182,0.00,664.00,R,Aat (Gb) Ltd,No
Http://opendatacommunities.org/id/metropolitan-district-council/leeds,Leeds City Council As Accountable Body,29/02/2020,Social Services Pooled Budgets,Leeds Community Equip Store Pooled Budgt,Supplies and Services,Other Equipment,203,20/02/2020,2002-00183,0.00,743.00,R,Aat (Gb) Ltd,No
Http://opendatacommunities.org/id/metropolitan-district-council/leeds,Leeds City Council As Accountable Body,29/02/2020,Social Services Pooled Budgets,Leeds Community Equip Store Pooled Budgt,Supplies and Services,Other Equipment,203,20/02/2020,2002-00184,0.00,-229.00,R,Aat (Gb) Ltd,No
Http://opendatacommunities.org/id/metropolitan-district-council/leeds,Leeds City Council,29/02/2020,City Development,Libraries  Arts & Heritage,Supplies and Services,Other Hired And Contracted Services,265,28/02/2020,2002-00185,0.00,979.00,R,Aat (Gb) Ltd,No
Http://opendatacommunities.org/id/metropolitan-district-council/leeds,Leeds City Council,29/02/2020,Adults and Health,Social Services Support Services,Transport,Public Transport Expenses,310,07/02/2020,2002-00186,0.00,266.00,R,Ab Cars,No
Http://opendatacommunities.org/id/metropolitan-district-council/leeds,Leeds City Council,29/02/2020,Communities and Environment,Car Parking Services  ,Supplies and Services,Postages,212,27/01/2020,2002-00187,0.00,35.00,R,Abacus Express,Yes
Http://opendatacommunities.org/id/metropolitan-district-council/leeds,Leeds City Council,29/02/2020,Adults and Health,Services For Older People - 65 And Over,Third Party Payments,Nursing Care Dementia,574,05/02/2020,2002-00188,0.00,18522.78,R,Abbendon Nursing Home,No
Http://opendatacommunities.org/id/metropolitan-district-council/leeds,Leeds City Council,29/02/2020,City Development,Libraries  Arts & Heritage  ,Supplies and Services,Operational Materials,205,09/01/2020,2002-00189,0.00,2.62,R,Abbey House Museum,Yes
Http://opendatacommunities.org/id/metropolitan-district-council/leeds,Leeds City Council,29/02/2020,Children and Families,Learning,Supplies and Services,Other Hired And Contracted Services,265,06/02/2020,2002-00190,0.00,78.00,R,Abbey Multi Academy Trust.,No
Http://opendatacommunities.org/id/metropolitan-district-council/leeds,Leeds City Council,29/02/2020,Children and Families,Social Care,Third Party Payments,Allowances,546,20/02/2020,2002-00191,0.00,506.49,R,ABBIE OMAHONY,No
Http://opendatacommunities.org/id/metropolitan-district-council/leeds,Leeds City Council,29/02/2020,Communities and Environment,Parks and Countryside,Supplies and Services,Other Hired And Contracted Services,265,25/02/2020,2002-00192,0.00,550.00,R,Abbotts Memorials,No
Http://opendatacommunities.org/id/metropolitan-district-council/leeds,Leeds City Council,29/02/2020,Communities and Environment,Parks and Countryside,Supplies and Services,Other Hired And Contracted Services,265,25/02/2020,2002-00193,0.00,550.00,R,Abbotts Memorials,No
Http://opendatacommunities.org/id/metropolitan-district-council/leeds,Leeds City Council,29/02/2020,Children and Families,Social Care,Third Party Payments,Services Rendered By Other Organisations,511,05/02/2020,2002-00194,0.00,624.00,R,Abc Daycare And Ozone Out Of School,No
Http://opendatacommunities.org/id/metropolitan-district-council/leeds,Leeds City Council,29/02/2020,Children and Families,Social Care,Third Party Payments,Services Rendered By Other Organisations,511,07/02/2020,2002-00195,0.00,8528.34,R,Abc Daycare And Ozone Out Of School,No
Http://opendatacommunities.org/id/metropolitan-district-council/leeds,Leeds City Council,29/02/2020,Children and Families,Social Care,Third Party Payments,Services Rendered By Other Organisations,511,21/02/2020,2002-00196,0.00,741.01,R,Abc Daycare And Ozone Out Of School,No
Http://opendatacommunities.org/id/metropolitan-district-council/leeds,Leeds City Council,29/02/2020,Children and Families,Social Care,Third Party Payments,Services Rendered By Other Organisations,511,05/02/2020,2002-00197,0.00,2808.00,R,Abc Nursery At Lufc,No
Http://opendatacommunities.org/id/metropolitan-district-council/leeds,Leeds City Council,29/02/2020,Children and Families,Social Care,Third Party Payments,Services Rendered By Other Organisations,511,07/02/2020,2002-00198,0.00,9228.00,R,Abc Nursery At Lufc,No
Http://opendatacommunities.org/id/metropolitan-district-council/leeds,Leeds City Council,29/02/2020,Children and Families,Social Care,Third Party Payments,Services Rendered By Other Organisations,511,21/02/2020,2002-00199,0.00,2681.10,R,Abc Nursery At Lufc,No
Http://opendatacommunities.org/id/metropolitan-district-council/leeds,Leeds City Council,29/02/2020,Children and Families,Social Care,Third Party Payments,Services Rendered By Voluntary Sector,505,28/02/2020,2002-00200,0.00,378.96,R,Abc Nursery At Lufc,No
Http://opendatacommunities.org/id/metropolitan-district-council/leeds,Leeds City Council,29/02/2020,Children and Families,Social Care,Third Party Payments,Services Rendered By Other Organisations,511,05/02/2020,2002-00201,0.00,936.00,R,Abc@D'S Childcare,No
Http://opendatacommunities.org/id/metropolitan-district-council/leeds,Leeds City Council,29/02/2020,Children and Families,Social Care,Third Party Payments,Services Rendered By Other Organisations,511,07/02/2020,2002-00202,0.00,7224.00,R,Abc@D'S Childcare,No
Http://opendatacommunities.org/id/metropolitan-district-council/leeds,Leeds City Council,29/02/2020,Children and Families,Social Care,Third Party Payments,Services Rendered By Other Organisations,511,21/02/2020,2002-00203,0.00,2043.00,R,Abc@D'S Childcare,No
Http://opendatacommunities.org/id/metropolitan-district-council/leeds,Leeds City Council,29/02/2020,Resources and Housing,Sustainable Energy & Climate Change,Capital,Other Costs,7,24/02/2020,2002-00204,0.00,10000.00,C,REDACTED COMMERCIAL CONFIDENTIALITY,No
Http://opendatacommunities.org/id/metropolitan-district-council/leeds,Leeds City Council,29/02/2020,Resources and Housing,Sustainable Energy & Climate Change,Capital,Other Costs,7,18/02/2020,2002-00205,0.00,1500.00,C,REDACTED COMMERCIAL CONFIDENTIALITY,No
Http://opendatacommunities.org/id/metropolitan-district-council/leeds,Leeds City Council,29/02/2020,Communities and Environment,Customer Access,Supplies and Services,Bought In Professional Services,277,13/02/2020,2002-00206,0.00,18.00,R,Abdul Kalam,No
Http://opendatacommunities.org/id/metropolitan-district-council/leeds,Leeds City Council,29/02/2020,Communities and Environment,Customer Access,Supplies and Services,Bought In Professional Services,277,13/02/2020,2002-00207,0.00,22.50,R,Abdul Kalam,No
Http://opendatacommunities.org/id/metropolitan-district-council/leeds,Leeds City Council,29/02/2020,Communities and Environment,Customer Access,Supplies and Services,Bought In Professional Services,277,20/02/2020,2002-00208,0.00,18.00,R,Abdul Kalam,No
Http://opendatacommunities.org/id/metropolitan-district-council/leeds,Leeds City Council,29/02/2020,Communities and Environment,Customer Access,Supplies and Services,Bought In Professional Services,277,20/02/2020,2002-00209,0.00,22.50,R,Abdul Kalam,No
Http://opendatacommunities.org/id/metropolitan-district-council/leeds,Leeds City Council,29/02/2020,Communities and Environment,Customer Access,Supplies and Services,Bought In Professional Services,277,20/02/2020,2002-00210,0.00,22.50,R,Abdul Kalam,No
Http://opendatacommunities.org/id/metropolitan-district-council/leeds,Leeds City Council,29/02/2020,Resources and Housing,Strategic Housing Partnership & Support,Supplies and Services,Other Hired And Contracted Services,265,25/02/2020,2002-00211,0.00,500.00,R,Abdul Khaliq,No
Http://opendatacommunities.org/id/metropolitan-district-council/leeds,Leeds City Council,29/02/2020,Resources and Housing,Sustainable Energy & Climate Change,Capital,Other Costs,7,14/02/2020,2002-00212,0.00,10000.00,C,REDACTED COMMERCIAL CONFIDENTIALITY,No
Http://opendatacommunities.org/id/metropolitan-district-council/leeds,Leeds City Council,29/02/2020,Resources and Housing,Sustainable Energy & Climate Change,Capital,Other Costs,7,27/02/2020,2002-00213,0.00,1500.00,C,REDACTED COMMERCIAL CONFIDENTIALITY,No
Http://opendatacommunities.org/id/metropolitan-district-council/leeds,Leeds City Council,29/02/2020,Resources and Housing,Sustainable Energy & Climate Change,Capital,Other Costs,7,11/02/2020,2002-00214,0.00,1500.00,C,REDACTED COMMERCIAL CONFIDENTIALITY,No
Http://opendatacommunities.org/id/metropolitan-district-council/leeds,Leeds City Council,29/02/2020,Communities and Environment,Customer Access,Supplies and Services,Bought In Professional Services,277,07/02/2020,2002-00215,0.00,22.50,R,Abdulahad Denha,No
Http://opendatacommunities.org/id/metropolitan-district-council/leeds,Leeds City Council,29/02/2020,Communities and Environment,Customer Access,Supplies and Services,Bought In Professional Services,277,13/02/2020,2002-00216,0.00,27.00,R,Abdulahad Denha,No
Http://opendatacommunities.org/id/metropolitan-district-council/leeds,Leeds City Council,29/02/2020,Communities and Environment,Customer Access,Supplies and Services,Bought In Professional Services,277,13/02/2020,2002-00217,0.00,13.50,R,Abdulahad Denha,No
Http://opendatacommunities.org/id/metropolitan-district-council/leeds,Leeds City Council,29/02/2020,Communities and Environment,Customer Access,Supplies and Services,Bought In Professional Services,277,13/02/2020,2002-00218,0.00,18.00,R,Abdulahad Denha,No
Http://opendatacommunities.org/id/metropolitan-district-council/leeds,Leeds City Council,29/02/2020,Communities and Environment,Customer Access,Supplies and Services,Bought In Professional Services,277,20/02/2020,2002-00219,0.00,27.00,R,Abdulahad Denha,No
Http://opendatacommunities.org/id/metropolitan-district-council/leeds,Leeds City Council,29/02/2020,Communities and Environment,Customer Access,Supplies and Services,Bought In Professional Services,277,13/02/2020,2002-00220,0.00,18.00,R,Abdulrahim Dastyar,No
Http://opendatacommunities.org/id/metropolitan-district-council/leeds,Leeds City Council,29/02/2020,Communities and Environment,Customer Access,Supplies and Services,Bought In Professional Services,277,13/02/2020,2002-00221,0.00,18.00,R,Abdulrahim Dastyar,No
Http://opendatacommunities.org/id/metropolitan-district-council/leeds,Leeds City Council,29/02/2020,Adults and Health,Services For Older People - 65 And Over,Third Party Payments,Nursing Home,570,05/02/2020,2002-00222,0.00,35442.71,R,Aberford Hall,No
Http://opendatacommunities.org/id/metropolitan-district-council/leeds,Leeds City Council,29/02/2020,Resources and Housing,Leeds Building Services,Supplies and Services,Operational Materials,205,06/02/2020,2002-00223,0.00,298.39,R,Abi Garage Doors Ltd,No
Http://opendatacommunities.org/id/metropolitan-district-council/leeds,Leeds City Council,29/02/2020,Resources and Housing,Leeds Building Services,Supplies and Services,Operational Materials,205,06/02/2020,2002-00224,0.00,28.33,R,Abi Garage Doors Ltd,No
Http://opendatacommunities.org/id/metropolitan-district-council/leeds,Leeds City Council,29/02/2020,Resources and Housing,Leeds Building Services,Supplies and Services,Operational Materials,205,07/02/2020,2002-00225,0.00,281.04,R,Abi Garage Doors Ltd,No
Http://opendatacommunities.org/id/metropolitan-district-council/leeds,Leeds City Council,29/02/2020,Resources and Housing,Leeds Building Services,Supplies and Services,Operational Materials,205,26/02/2020,2002-00226,0.00,281.04,R,Abi Garage Doors Ltd,No
Http://opendatacommunities.org/id/metropolitan-district-council/leeds,Leeds City Council,29/02/2020,Resources and Housing,Leeds Building Services,Supplies and Services,Operational Materials,205,26/02/2020,2002-00227,0.00,8.33,R,Abi Garage Doors Ltd,No
Http://opendatacommunities.org/id/metropolitan-district-council/leeds,Leeds City Council,29/02/2020,Resources and Housing,Leeds Building Services,Supplies and Services,Operational Materials,205,26/02/2020,2002-00228,0.00,282.56,R,Abi Garage Doors Ltd,No
Http://opendatacommunities.org/id/metropolitan-district-council/leeds,Leeds City Council,29/02/2020,Resources and Housing,Leeds Building Services,Supplies and Services,Operational Materials,205,28/02/2020,2002-00229,0.00,56.00,R,Abi Garage Doors Ltd,No
Http://opendatacommunities.org/id/metropolitan-district-council/leeds,Leeds City Council,29/02/2020,Resources and Housing,Sustainable Energy & Climate Change,Capital,Other Costs,7,04/02/2020,2002-00230,0.00,1500.00,C,REDACTED COMMERCIAL CONFIDENTIALITY,No
Http://opendatacommunities.org/id/metropolitan-district-council/leeds,Leeds City Council,29/02/2020,Children and Families,Learning,Supplies and Services,Teaching Furniture & Equipment,207,14/02/2020,2002-00231,0.00,332.50,R,Absolute Music Solutions Ltd,No
Http://opendatacommunities.org/id/metropolitan-district-council/leeds,Leeds City Council,29/02/2020,Resources and Housing,Sustainable Energy & Climate Change,Capital,Other Costs,7,04/02/2020,2002-00232,0.00,1500.00,C,REDACTED COMMERCIAL CONFIDENTIALITY,No
Http://opendatacommunities.org/id/metropolitan-district-council/leeds,Leeds City Council,29/02/2020,Adults and Health,Services For Adults Under 65 Mental/Dis,Third Party Payments,Fees - Level 4,520,11/02/2020,2002-00233,0.00,235.20,R,Abubaker Denja Mohammed,No
Http://opendatacommunities.org/id/metropolitan-district-council/leeds,Leeds City Council,29/02/2020,Adults and Health,Services For Adults Under 65 Mental/Dis,Third Party Payments,Fees - Level 4,520,11/02/2020,2002-00234,0.00,175.00,R,Abubaker Denja Mohammed,No
Http://opendatacommunities.org/id/metropolitan-district-council/leeds,Leeds City Council,29/02/2020,Adults and Health,Services For Adults Under 65 Mental/Dis,Third Party Payments,Fees - Level 4,520,11/02/2020,2002-00235,0.00,236.82,R,Abubaker Denja Mohammed,No
Http://opendatacommunities.org/id/metropolitan-district-council/leeds,Leeds City Council,29/02/2020,Adults and Health,Services For Adults Under 65 Mental/Dis,Third Party Payments,Fees - Level 4,520,11/02/2020,2002-00236,0.00,235.20,R,Abubaker Denja Mohammed,No
Http://opendatacommunities.org/id/metropolitan-district-council/leeds,Leeds City Council,29/02/2020,Adults and Health,Services For Adults Under 65 Mental/Dis,Third Party Payments,Fees - Level 4,520,11/02/2020,2002-00237,0.00,237.78,R,Abubaker Denja Mohammed,No
Http://opendatacommunities.org/id/metropolitan-district-council/leeds,Leeds City Council,29/02/2020,Adults and Health,Services For Adults Under 65 Mental/Dis,Third Party Payments,Fees - Level 4,520,11/02/2020,2002-00238,0.00,175.00,R,Abubaker Denja Mohammed,No
Http://opendatacommunities.org/id/metropolitan-district-council/leeds,Leeds City Council,29/02/2020,Adults and Health,Services For Adults Under 65 Mental/Dis,Third Party Payments,Fees - Level 4,520,26/02/2020,2002-00239,0.00,229.18,R,Abubaker Denja Mohammed,No
Http://opendatacommunities.org/id/metropolitan-district-council/leeds,Leeds City Council,29/02/2020,Adults and Health,Services For Adults Under 65 Mental/Dis,Third Party Payments,Fees - Level 4,520,26/02/2020,2002-00240,0.00,175.00,R,Abubaker Denja Mohammed,No
Http://opendatacommunities.org/id/metropolitan-district-council/leeds,Leeds City Council,29/02/2020,Adults and Health,Services For Adults Under 65 Mental/Dis,Third Party Payments,Fees - Level 4,520,26/02/2020,2002-00241,0.00,175.00,R,Abubaker Denja Mohammed,No
Http://opendatacommunities.org/id/metropolitan-district-council/leeds,Leeds City Council,29/02/2020,Adults and Health,Services For Adults Under 65 Mental/Dis,Third Party Payments,Fees - Level 4,520,26/02/2020,2002-00242,0.00,175.00,R,Abubaker Denja Mohammed,No
Http://opendatacommunities.org/id/metropolitan-district-council/leeds,Leeds City Council,29/02/2020,Adults and Health,Services For Adults Under 65 Mental/Dis,Third Party Payments,Fees - Level 4,520,26/02/2020,2002-00243,0.00,175.00,R,Abubaker Denja Mohammed,No
Http://opendatacommunities.org/id/metropolitan-district-council/leeds,Leeds City Council,29/02/2020,Adults and Health,Services For Adults Under 65 Mental/Dis,Third Party Payments,Fees - Level 4,520,26/02/2020,2002-00244,0.00,175.00,R,Abubaker Denja Mohammed,No
Http://opendatacommunities.org/id/metropolitan-district-council/leeds,Leeds City Council,29/02/2020,Adults and Health,Services For Adults Under 65 Mental/Dis,Third Party Payments,Fees - Level 4,520,26/02/2020,2002-00245,0.00,228.32,R,Abubaker Denja Mohammed,No
Http://opendatacommunities.org/id/metropolitan-district-council/leeds,Leeds City Council,29/02/2020,Adults and Health,Services For Adults Under 65 Mental/Dis,Third Party Payments,Fees - Level 4,520,26/02/2020,2002-00246,0.00,175.00,R,Abubaker Denja Mohammed,No
Http://opendatacommunities.org/id/metropolitan-district-council/leeds,Leeds City Council,29/02/2020,Adults and Health,Services For Adults Under 65 Mental/Dis,Third Party Payments,Fees - Level 4,520,26/02/2020,2002-00247,0.00,175.00,R,Abubaker Denja Mohammed,No
Http://opendatacommunities.org/id/metropolitan-district-council/leeds,Leeds City Council,29/02/2020,City Development,Libraries  Arts & Heritage,Supplies and Services,Advertising,211,04/02/2020,2002-00248,0.00,60.00,R,Ac Winter,No
Http://opendatacommunities.org/id/metropolitan-district-council/leeds,Leeds City Council,29/02/2020,City Development,Libraries  Arts & Heritage,Supplies and Services,Advertising,211,28/02/2020,2002-00249,0.00,120.00,R,Ac Winter,No
Http://opendatacommunities.org/id/metropolitan-district-council/leeds,Leeds City Council,29/02/2020,Children and Families,Learning,Supplies and Services,Bought In Professional Services,277,13/02/2020,2002-00250,0.00,107.50,R,Academic Appointments Ltd,No
Http://opendatacommunities.org/id/metropolitan-district-council/leeds,Leeds City Council,29/02/2020,Resources and Housing,Strategic Housing Partnerships,Capital,Construction,3,13/02/2020,2002-00251,0.00,1958.40,C,Accent Homes Ltd,No
Http://opendatacommunities.org/id/metropolitan-district-council/leeds,Leeds City Council,29/02/2020,Resources and Housing,Technology,Supplies and Services,Computer Software & Equipment,214,07/02/2020,2002-00252,0.00,5130.00,R,Accenture (Uk) Ltd,No
Http://opendatacommunities.org/id/metropolitan-district-council/leeds,Leeds City Council,29/02/2020,Communities and Environment,Environmental Action (City Centre)  ,Supplies and Services,Operational Furniture And Equipment,203,07/01/2020,2002-00253,0.00,47.76,R,Access Locksmiths,Yes
Http://opendatacommunities.org/id/metropolitan-district-council/leeds,Leeds City Council,29/02/2020,Communities and Environment,Parks And Countryside  ,Supplies and Services,Operational Materials,205,28/01/2020,2002-00254,0.00,14.00,R,Access Locksmiths,Yes
Http://opendatacommunities.org/id/metropolitan-district-council/leeds,Leeds City Council,29/02/2020,Resources and Housing,Leeds Building Services,Supplies and Services,Operational Materials,205,07/02/2020,2002-00255,0.00,499.48,R,Access Locksmiths (Leeds) Limited,No
Http://opendatacommunities.org/id/metropolitan-district-council/leeds,Leeds City Council,29/02/2020,Strategic Landlord,Housing Management,Supplies and Services,Resaleable Materials,204,14/02/2020,2002-00256,0.00,9.36,R,Access Locksmiths (Leeds) Limited,No
Http://opendatacommunities.org/id/metropolitan-district-council/leeds,Leeds City Council,29/02/2020,Resources and Housing,HRA Housing Leeds,Capital,Furniture And Equipment,5,14/02/2020,2002-00257,0.00,86.20,C,Access Locksmiths (Leeds) Limited,No
Http://opendatacommunities.org/id/metropolitan-district-council/leeds,Leeds City Council,29/02/2020,Resources and Housing,Leeds Building Services,Supplies and Services,Operational Materials,205,14/02/2020,2002-00258,0.00,294.20,R,Access Locksmiths (Leeds) Limited,No
Http://opendatacommunities.org/id/metropolitan-district-council/leeds,Leeds City Council,29/02/2020,Resources and Housing,Leeds Building Services,Supplies and Services,Operational Materials,205,14/02/2020,2002-00259,0.00,19.90,R,Access Locksmiths (Leeds) Limited,No
Http://opendatacommunities.org/id/metropolitan-district-council/leeds,Leeds City Council,29/02/2020,Resources and Housing,Leeds Building Services,Supplies and Services,Operational Materials,205,14/02/2020,2002-00260,0.00,8.32,R,Access Locksmiths (Leeds) Limited,No
Http://opendatacommunities.org/id/metropolitan-district-council/leeds,Leeds City Council,29/02/2020,Adults and Health,Assessment And Care Management,Premises,Premises Security Services,162,19/02/2020,2002-00261,0.00,100.25,R,Access Locksmiths (Leeds) Limited,No
Http://opendatacommunities.org/id/metropolitan-district-council/leeds,Leeds City Council,29/02/2020,Resources and Housing,Leeds Building Services,Supplies and Services,Operational Materials,205,21/02/2020,2002-00262,0.00,35.00,R,Access Locksmiths (Leeds) Limited,No
Http://opendatacommunities.org/id/metropolitan-district-council/leeds,Leeds City Council,29/02/2020,Communities and Environment,Waste Management,Supplies and Services,Operational Furniture And Equipment,203,25/02/2020,2002-00263,0.00,263.80,R,Access Locksmiths (Leeds) Limited,No
Http://opendatacommunities.org/id/metropolitan-district-council/leeds,Leeds City Council,29/02/2020,Resources and Housing,HRA Housing Leeds,Capital,Furniture And Equipment,5,25/02/2020,2002-00264,0.00,1946.07,C,Access Locksmiths (Leeds) Limited,No
Http://opendatacommunities.org/id/metropolitan-district-council/leeds,Leeds City Council,29/02/2020,Communities and Environment,Waste Management,Supplies and Services,Operational Furniture And Equipment,203,25/02/2020,2002-00265,0.00,-210.00,R,Access Locksmiths (Leeds) Limited,No
Http://opendatacommunities.org/id/metropolitan-district-council/leeds,Leeds City Council,29/02/2020,Strategic Landlord,Property and Contracts,Premises,General Maintenance,104,28/02/2020,2002-00266,0.00,457.60,R,Access Locksmiths (Leeds) Limited,No
Http://opendatacommunities.org/id/metropolitan-district-council/leeds,Leeds City Council,29/02/2020,Strategic Landlord,Property and Contracts,Premises,General Maintenance,104,28/02/2020,2002-00267,0.00,202.13,R,Access Locksmiths (Leeds) Limited,No
Http://opendatacommunities.org/id/metropolitan-district-council/leeds,Leeds City Council,29/02/2020,Strategic Landlord,Property and Contracts,Premises,Maintenance Of Buildings,101,28/02/2020,2002-00268,0.00,45.83,R,Access Locksmiths (Leeds) Limited,No
Http://opendatacommunities.org/id/metropolitan-district-council/leeds,Leeds City Council,29/02/2020,Resources and Housing,HRA Housing Leeds,Capital,Construction,3,28/02/2020,2002-00269,0.00,2180.00,C,Access Locksmiths (Leeds) Limited,No
Http://opendatacommunities.org/id/metropolitan-district-council/leeds,Leeds City Council,29/02/2020,Strategic Landlord,Housing Management,Premises,General Maintenance,104,28/02/2020,2002-00270,0.00,345.00,R,Access Locksmiths (Leeds) Limited,No
Http://opendatacommunities.org/id/metropolitan-district-council/leeds,Leeds City Council,29/02/2020,Strategic Landlord,Property and Contracts,Premises,Maintenance Of Buildings,101,28/02/2020,2002-00271,0.00,248.57,R,Access Locksmiths (Leeds) Limited,No
Http://opendatacommunities.org/id/metropolitan-district-council/leeds,Leeds City Council,29/02/2020,Strategic Landlord,Housing Management,Premises,Fixtures & Fittings,131,28/02/2020,2002-00272,0.00,684.00,R,Access Locksmiths (Leeds) Limited,No
Http://opendatacommunities.org/id/metropolitan-district-council/leeds,Leeds City Council,29/02/2020,Insurance,Insurance,Supplies and Services,Insurance Claims,248,05/02/2020,2002-00273,0.00,4221.00,R,Accountant General Of The Senior Courts,No
Http://opendatacommunities.org/id/metropolitan-district-council/leeds,Leeds City Council,29/02/2020,Insurance,Insurance,Supplies and Services,Insurance Claims,248,20/02/2020,2002-00274,0.00,2250.00,R,Accountant General Of The Senior Courts,No
Http://opendatacommunities.org/id/metropolitan-district-council/leeds,Leeds City Council,29/02/2020,Communities and Environment,Cleaner Neighbourhood Teams  ,Supplies and Services,Operational Furniture And Equipment,203,30/01/2020,2002-00275,0.00,750.00,R,Ace Container Services,Yes
Http://opendatacommunities.org/id/metropolitan-district-council/leeds,Leeds City Council,29/02/2020,Communities and Environment,Cleaner Neighbourhood Teams  ,Supplies and Services,Operational Furniture And Equipment,203,30/01/2020,2002-00276,0.00,700.00,R,Ace Container Services,Yes
Http://opendatacommunities.org/id/metropolitan-district-council/leeds,Leeds City Council,29/02/2020,City Development,Recreation,Transport,External Hire -Occasional,304,28/02/2020,2002-00277,0.00,120.35,R,Ace Container Services Limited,No
Http://opendatacommunities.org/id/metropolitan-district-council/leeds,Leeds City Council,29/02/2020,City Development,Libraries  Arts & Heritage,Supplies and Services,Other Hired And Contracted Services,265,28/02/2020,2002-00278,0.00,43.50,R,Ace Container Services Limited,No
Http://opendatacommunities.org/id/metropolitan-district-council/leeds,Leeds City Council,29/02/2020,Children and Families,Partnerships & Health,Third Party Payments,SEN Placements,566,12/02/2020,2002-00279,0.00,435.94,R,Acorn Care & Education Ltd (Sales),No
Http://opendatacommunities.org/id/metropolitan-district-council/leeds,Leeds City Council,29/02/2020,Children and Families,Partnerships & Health,Third Party Payments,SEN Placements,566,12/02/2020,2002-00280,0.00,428.07,R,Acorn Care & Education Ltd (Sales),No
Http://opendatacommunities.org/id/metropolitan-district-council/leeds,Leeds City Council,29/02/2020,Children and Families,Partnerships & Health,Third Party Payments,SEN Placements,566,12/02/2020,2002-00281,0.00,428.07,R,Acorn Care & Education Ltd (Sales),No
Http://opendatacommunities.org/id/metropolitan-district-council/leeds,Leeds City Council,29/02/2020,Children and Families,Partnerships & Health,Third Party Payments,SEN Placements,566,12/02/2020,2002-00282,0.00,200.60,R,Acorn Care & Education Ltd (Sales),No
Http://opendatacommunities.org/id/metropolitan-district-council/leeds,Leeds City Council,29/02/2020,Children and Families,Partnerships & Health,Third Party Payments,SEN Placements,566,12/02/2020,2002-00283,0.00,435.94,R,Acorn Care & Education Ltd (Sales),No
Http://opendatacommunities.org/id/metropolitan-district-council/leeds,Leeds City Council,29/02/2020,City Development,Libraries  Arts & Heritage,Supplies and Services,Other Hired And Contracted Services,265,13/02/2020,2002-00284,0.00,4876.00,R,Acorn Construction (Yorkshire) Ltd,No
Http://opendatacommunities.org/id/metropolitan-district-council/leeds,Leeds City Council,29/02/2020,City Development,Libraries  Arts & Heritage,Supplies and Services,Other Hired And Contracted Services,265,28/02/2020,2002-00285,0.00,1560.00,R,Acorn Construction (Yorkshire) Ltd,No
Http://opendatacommunities.org/id/metropolitan-district-council/leeds,Leeds City Council,29/02/2020,Adults and Health,Services For Older People - 65 And Over,Third Party Payments,Residential Care Dementia,571,05/02/2020,2002-00286,0.00,1521.16,R,Acorn Nursing Home,No
Http://opendatacommunities.org/id/metropolitan-district-council/leeds,Leeds City Council,29/02/2020,Adults and Health,Services For Older People - 65 And Over,Third Party Payments,Nursing Care Dementia,574,05/02/2020,2002-00287,0.00,1646.24,R,Acorn Nursing Home,No
Http://opendatacommunities.org/id/metropolitan-district-council/leeds,Leeds City Council,29/02/2020,Children and Families,Social Care,Third Party Payments,Services Rendered By Other Organisations,511,05/02/2020,2002-00288,0.00,182.00,R,Acorns Nursery,No
Http://opendatacommunities.org/id/metropolitan-district-council/leeds,Leeds City Council,29/02/2020,Children and Families,Social Care,Third Party Payments,Services Rendered By Other Organisations,511,07/02/2020,2002-00289,0.00,6481.54,R,Acorns Nursery,No
Http://opendatacommunities.org/id/metropolitan-district-council/leeds,Leeds City Council,29/02/2020,Children and Families,Social Care,Third Party Payments,Services Rendered By Other Organisations,511,21/02/2020,2002-00290,0.00,306.62,R,Acorns Nursery,No
Http://opendatacommunities.org/id/metropolitan-district-council/leeds,Leeds City Council,29/02/2020,Adults and Health,Services For Older People - 65 And Over,Third Party Payments,Nursing Home,570,05/02/2020,2002-00291,0.00,33782.73,R,Acre Green,No
Http://opendatacommunities.org/id/metropolitan-district-council/leeds,Leeds City Council,29/02/2020,Adults and Health,Services For Older People - 65 And Over,Third Party Payments,Residential,580,05/02/2020,2002-00292,0.00,7199.12,R,Acre Green,No
Http://opendatacommunities.org/id/metropolitan-district-council/leeds,Leeds City Council,29/02/2020,Adults and Health,Services For Older People Under 65 P/Dis,Third Party Payments,Nursing Home,570,05/02/2020,2002-00293,0.00,2268.00,R,Acre Green,No
Http://opendatacommunities.org/id/metropolitan-district-council/leeds,Leeds City Council,29/02/2020,Adults and Health,Services For Older People Under 65 P/Dis,Third Party Payments,Residential,580,05/02/2020,2002-00294,0.00,1574.20,R,Acre Green,No
Http://opendatacommunities.org/id/metropolitan-district-council/leeds,Leeds City Council,29/02/2020,Children and Families,Social Care,Third Party Payments,Services Rendered By Other Organisations,511,05/02/2020,2002-00295,0.00,3432.00,R,Acre Wood Day Nursery,No
Http://opendatacommunities.org/id/metropolitan-district-council/leeds,Leeds City Council,29/02/2020,Children and Families,Social Care,Third Party Payments,Services Rendered By Other Organisations,511,07/02/2020,2002-00296,0.00,20898.00,R,Acre Wood Day Nursery,No
Http://opendatacommunities.org/id/metropolitan-district-council/leeds,Leeds City Council,29/02/2020,Children and Families,Social Care,Third Party Payments,Services Rendered By Other Organisations,511,21/02/2020,2002-00297,0.00,2282.03,R,Acre Wood Day Nursery,No
Http://opendatacommunities.org/id/metropolitan-district-council/leeds,Leeds City Council,29/02/2020,City Development,Highways  ,Supplies and Services,Computer Software & Equipment,214,08/01/2020,2002-00298,0.00,117.26,R,Acs Business Supplies Lt,Yes
Http://opendatacommunities.org/id/metropolitan-district-council/leeds,Leeds City Council,29/02/2020,Resources and Housing,Technology  ,Supplies and Services,Computer Software & Equipment,214,09/01/2020,2002-00299,0.00,133.98,R,Acs Business Supplies Lt,Yes
Http://opendatacommunities.org/id/metropolitan-district-council/leeds,Leeds City Council,29/02/2020,Resources and Housing,Leeds Building Services  ,Supplies and Services,Computer Software & Equipment,214,14/01/2020,2002-00300,0.00,106.40,R,Acs Business Supplies Lt,Yes
Http://opendatacommunities.org/id/metropolitan-district-council/leeds,Leeds City Council,29/02/2020,Resources and Housing,Human Resources  ,Supplies and Services,Computer Software & Equipment,214,15/01/2020,2002-00301,0.00,29.00,R,Acs Business Supplies Lt,Yes
Http://opendatacommunities.org/id/metropolitan-district-council/leeds,Leeds City Council,29/02/2020,Resources and Housing,Technology  ,Supplies and Services,Computer Software & Equipment,214,17/01/2020,2002-00302,0.00,19.47,R,Acs Business Supplies Lt,Yes
Http://opendatacommunities.org/id/metropolitan-district-council/leeds,Leeds City Council,29/02/2020,Resources and Housing,Commercial Services  ,Supplies and Services,Computer Software & Equipment,214,29/01/2020,2002-00303,0.00,13.59,R,Acs Business Supplies Lt,Yes
Http://opendatacommunities.org/id/metropolitan-district-council/leeds,Leeds City Council,29/02/2020,Resources and Housing,Technology  ,Supplies and Services,Office Consumables,210,29/01/2020,2002-00304,0.00,18.64,R,Acs Business Supplies Lt,Yes
Http://opendatacommunities.org/id/metropolitan-district-council/leeds,Leeds City Council,29/02/2020,Resources and Housing,Technology  ,Supplies and Services,Office Consumables,210,29/01/2020,2002-00305,0.00,159.61,R,Acs Business Supplies Lt,Yes
Http://opendatacommunities.org/id/metropolitan-district-council/leeds,Leeds City Council,29/02/2020,Resources and Housing,Leeds Building Services,Supplies and Services,Other Hired And Contracted Services,265,05/02/2020,2002-00306,0.00,176.70,R,Actavo Hire And Sales Uk Limited,No
Http://opendatacommunities.org/id/metropolitan-district-council/leeds,Leeds City Council,29/02/2020,Children and Families,Social Care,Third Party Payments,Independent Fostering Agencies,509,21/02/2020,2002-00307,0.00,-3697.92,R,Action For Children,No
Http://opendatacommunities.org/id/metropolitan-district-council/leeds,Leeds City Council,29/02/2020,Children and Families,Social Care,Third Party Payments,Independent Fostering Agencies,509,21/02/2020,2002-00308,0.00,4622.40,R,Action For Children,No
Http://opendatacommunities.org/id/metropolitan-district-council/leeds,Leeds City Council,29/02/2020,Children and Families,Social Care,Third Party Payments,Independent Fostering Agencies,509,21/02/2020,2002-00309,0.00,4776.48,R,Action For Children,No
Http://opendatacommunities.org/id/metropolitan-district-council/leeds,Leeds City Council,29/02/2020,Children and Families,Social Care,Third Party Payments,Independent Fostering Agencies,509,21/02/2020,2002-00310,0.00,4622.40,R,Action For Children,No
Http://opendatacommunities.org/id/metropolitan-district-council/leeds,Leeds City Council,29/02/2020,Children and Families,Social Care,Third Party Payments,Independent Fostering Agencies,509,27/02/2020,2002-00311,0.00,4997.10,R,Action For Children Services Ltd,No
Http://opendatacommunities.org/id/metropolitan-district-council/leeds,Leeds City Council,29/02/2020,Children and Families,Social Care,Third Party Payments,Independent Fostering Agencies,509,27/02/2020,2002-00312,0.00,4997.10,R,Action For Children Services Ltd,No
Http://opendatacommunities.org/id/metropolitan-district-council/leeds,Leeds City Council,29/02/2020,Children and Families,Social Care,Third Party Payments,Independent Fostering Agencies,509,27/02/2020,2002-00313,0.00,7162.51,R,Action For Children Services Ltd,No
Http://opendatacommunities.org/id/metropolitan-district-council/leeds,Leeds City Council,29/02/2020,Children and Families,Social Care,Third Party Payments,Services Rendered By Other Organisations,511,05/02/2020,2002-00314,0.00,624.00,R,Active Kids Yeadon Llp,No
Http://opendatacommunities.org/id/metropolitan-district-council/leeds,Leeds City Council,29/02/2020,Children and Families,Social Care,Third Party Payments,Services Rendered By Other Organisations,511,07/02/2020,2002-00315,0.00,7929.20,R,Active Kids Yeadon Llp,No
Http://opendatacommunities.org/id/metropolitan-district-council/leeds,Leeds City Council,29/02/2020,Children and Families,Social Care,Third Party Payments,Services Rendered By Other Organisations,511,21/02/2020,2002-00316,0.00,69.69,R,Active Kids Yeadon Llp,No
Http://opendatacommunities.org/id/metropolitan-district-council/leeds,Leeds City Council As Accountable Body,29/02/2020,Social Services Pooled Budgets,Jcs For People With Learning Disabilitie,Third Party Payments,Sheltered Accommodation,569,12/02/2020,2002-00317,0.00,11007.59,R,Active Pathways,No
Http://opendatacommunities.org/id/metropolitan-district-council/leeds,Leeds City Council,29/02/2020,Children and Families,Social Care  ,Transfer Payments,Leaving Care Allowances,634,02/01/2020,2002-00318,0.00,35.00,R,Active Workwear,Yes
Http://opendatacommunities.org/id/metropolitan-district-council/leeds,Leeds City Council,29/02/2020,Communities and Environment,Cleaner Neighbourhood Teams,Premises,Removal Of Workplace Waste,126,05/02/2020,2002-00319,0.00,116.60,R,Acumen Waste Services Ltd,No
Http://opendatacommunities.org/id/metropolitan-district-council/leeds,Leeds City Council,29/02/2020,Communities and Environment,Cleaner Neighbourhood Teams,Premises,Removal Of Workplace Waste,126,05/02/2020,2002-00320,0.00,116.60,R,Acumen Waste Services Ltd,No
Http://opendatacommunities.org/id/metropolitan-district-council/leeds,Leeds City Council,29/02/2020,Communities and Environment,Cleaner Neighbourhood Teams,Premises,Removal Of Workplace Waste,126,05/02/2020,2002-00321,0.00,116.60,R,Acumen Waste Services Ltd,No
Http://opendatacommunities.org/id/metropolitan-district-council/leeds,Leeds City Council,29/02/2020,Communities and Environment,Cleaner Neighbourhood Teams,Premises,Removal Of Workplace Waste,126,05/02/2020,2002-00322,0.00,116.60,R,Acumen Waste Services Ltd,No
Http://opendatacommunities.org/id/metropolitan-district-council/leeds,Leeds City Council,29/02/2020,Communities and Environment,Cleaner Neighbourhood Teams,Premises,Removal Of Workplace Waste,126,05/02/2020,2002-00323,0.00,116.60,R,Acumen Waste Services Ltd,No
Http://opendatacommunities.org/id/metropolitan-district-council/leeds,Leeds City Council,29/02/2020,Communities and Environment,Waste Management,Supplies and Services,Recycling & Reuse Charges,234,05/02/2020,2002-00324,0.00,5420.25,R,Acumen Waste Services Ltd,No
Http://opendatacommunities.org/id/metropolitan-district-council/leeds,Leeds City Council,29/02/2020,Communities and Environment,Waste Management,Supplies and Services,Recycling & Reuse Charges,234,05/02/2020,2002-00325,0.00,2954.43,R,Acumen Waste Services Ltd,No
Http://opendatacommunities.org/id/metropolitan-district-council/leeds,Leeds City Council,29/02/2020,Communities and Environment,Cleaner Neighbourhood Teams,Premises,Removal Of Workplace Waste,126,05/02/2020,2002-00326,0.00,116.60,R,Acumen Waste Services Ltd,No
Http://opendatacommunities.org/id/metropolitan-district-council/leeds,Leeds City Council,29/02/2020,Communities and Environment,Cleaner Neighbourhood Teams,Premises,Removal Of Workplace Waste,126,05/02/2020,2002-00327,0.00,116.60,R,Acumen Waste Services Ltd,No
Http://opendatacommunities.org/id/metropolitan-district-council/leeds,Leeds City Council,29/02/2020,Communities and Environment,Cleaner Neighbourhood Teams,Premises,Removal Of Workplace Waste,126,05/02/2020,2002-00328,0.00,116.60,R,Acumen Waste Services Ltd,No
Http://opendatacommunities.org/id/metropolitan-district-council/leeds,Leeds City Council,29/02/2020,Communities and Environment,Waste Management,Supplies and Services,Recycling & Reuse Charges,234,07/02/2020,2002-00329,0.00,2908.98,R,Acumen Waste Services Ltd,No
Http://opendatacommunities.org/id/metropolitan-district-council/leeds,Leeds City Council,29/02/2020,Communities and Environment,Waste Management,Supplies and Services,Recycling & Reuse Charges,234,07/02/2020,2002-00330,0.00,986.47,R,Acumen Waste Services Ltd,No
Http://opendatacommunities.org/id/metropolitan-district-council/leeds,Leeds City Council,29/02/2020,Communities and Environment,Cleaner Neighbourhood Teams,Premises,Removal Of Workplace Waste,126,12/02/2020,2002-00331,0.00,50.00,R,Acumen Waste Services Ltd,No
Http://opendatacommunities.org/id/metropolitan-district-council/leeds,Leeds City Council,29/02/2020,Communities and Environment,Cleaner Neighbourhood Teams,Premises,Removal Of Workplace Waste,126,12/02/2020,2002-00332,0.00,116.60,R,Acumen Waste Services Ltd,No
Http://opendatacommunities.org/id/metropolitan-district-council/leeds,Leeds City Council,29/02/2020,Communities and Environment,Cleaner Neighbourhood Teams,Premises,Removal Of Workplace Waste,126,12/02/2020,2002-00333,0.00,116.60,R,Acumen Waste Services Ltd,No
Http://opendatacommunities.org/id/metropolitan-district-council/leeds,Leeds City Council,29/02/2020,Communities and Environment,Cleaner Neighbourhood Teams,Premises,Removal Of Workplace Waste,126,12/02/2020,2002-00334,0.00,116.60,R,Acumen Waste Services Ltd,No
Http://opendatacommunities.org/id/metropolitan-district-council/leeds,Leeds City Council,29/02/2020,Communities and Environment,Cleaner Neighbourhood Teams,Premises,Removal Of Workplace Waste,126,12/02/2020,2002-00335,0.00,116.60,R,Acumen Waste Services Ltd,No
Http://opendatacommunities.org/id/metropolitan-district-council/leeds,Leeds City Council,29/02/2020,Communities and Environment,Cleaner Neighbourhood Teams,Premises,Removal Of Workplace Waste,126,12/02/2020,2002-00336,0.00,116.60,R,Acumen Waste Services Ltd,No
Http://opendatacommunities.org/id/metropolitan-district-council/leeds,Leeds City Council,29/02/2020,Communities and Environment,Cleaner Neighbourhood Teams,Premises,Removal Of Workplace Waste,126,12/02/2020,2002-00337,0.00,116.60,R,Acumen Waste Services Ltd,No
Http://opendatacommunities.org/id/metropolitan-district-council/leeds,Leeds City Council,29/02/2020,Communities and Environment,Cleaner Neighbourhood Teams,Premises,Removal Of Workplace Waste,126,12/02/2020,2002-00338,0.00,116.60,R,Acumen Waste Services Ltd,No
Http://opendatacommunities.org/id/metropolitan-district-council/leeds,Leeds City Council,29/02/2020,Communities and Environment,Cleaner Neighbourhood Teams,Premises,Removal Of Workplace Waste,126,12/02/2020,2002-00339,0.00,50.00,R,Acumen Waste Services Ltd,No
Http://opendatacommunities.org/id/metropolitan-district-council/leeds,Leeds City Council,29/02/2020,Communities and Environment,Cleaner Neighbourhood Teams,Premises,Removal Of Workplace Waste,126,12/02/2020,2002-00340,0.00,116.60,R,Acumen Waste Services Ltd,No
Http://opendatacommunities.org/id/metropolitan-district-council/leeds,Leeds City Council,29/02/2020,Communities and Environment,Cleaner Neighbourhood Teams,Premises,Removal Of Workplace Waste,126,12/02/2020,2002-00341,0.00,116.60,R,Acumen Waste Services Ltd,No
Http://opendatacommunities.org/id/metropolitan-district-council/leeds,Leeds City Council,29/02/2020,Communities and Environment,Waste Management,Supplies and Services,Recycling & Reuse Charges,234,14/02/2020,2002-00342,0.00,4949.38,R,Acumen Waste Services Ltd,No
Http://opendatacommunities.org/id/metropolitan-district-council/leeds,Leeds City Council,29/02/2020,Communities and Environment,Waste Management,Supplies and Services,Recycling & Reuse Charges,234,19/02/2020,2002-00343,0.00,6957.83,R,Acumen Waste Services Ltd,No
Http://opendatacommunities.org/id/metropolitan-district-council/leeds,Leeds City Council,29/02/2020,Communities and Environment,Cleaner Neighbourhood Teams,Premises,Removal Of Workplace Waste,126,19/02/2020,2002-00344,0.00,116.60,R,Acumen Waste Services Ltd,No
Http://opendatacommunities.org/id/metropolitan-district-council/leeds,Leeds City Council,29/02/2020,Communities and Environment,Cleaner Neighbourhood Teams,Premises,Removal Of Workplace Waste,126,19/02/2020,2002-00345,0.00,116.60,R,Acumen Waste Services Ltd,No
Http://opendatacommunities.org/id/metropolitan-district-council/leeds,Leeds City Council,29/02/2020,Communities and Environment,Cleaner Neighbourhood Teams,Premises,Removal Of Workplace Waste,126,19/02/2020,2002-00346,0.00,116.60,R,Acumen Waste Services Ltd,No
Http://opendatacommunities.org/id/metropolitan-district-council/leeds,Leeds City Council,29/02/2020,Communities and Environment,Cleaner Neighbourhood Teams,Premises,Removal Of Workplace Waste,126,19/02/2020,2002-00347,0.00,116.60,R,Acumen Waste Services Ltd,No
Http://opendatacommunities.org/id/metropolitan-district-council/leeds,Leeds City Council,29/02/2020,Communities and Environment,Cleaner Neighbourhood Teams,Premises,Removal Of Workplace Waste,126,19/02/2020,2002-00348,0.00,116.60,R,Acumen Waste Services Ltd,No
Http://opendatacommunities.org/id/metropolitan-district-council/leeds,Leeds City Council,29/02/2020,Communities and Environment,Cleaner Neighbourhood Teams,Premises,Removal Of Workplace Waste,126,19/02/2020,2002-00349,0.00,116.60,R,Acumen Waste Services Ltd,No
Http://opendatacommunities.org/id/metropolitan-district-council/leeds,Leeds City Council,29/02/2020,Communities and Environment,Cleaner Neighbourhood Teams,Premises,Removal Of Workplace Waste,126,19/02/2020,2002-00350,0.00,116.60,R,Acumen Waste Services Ltd,No
Http://opendatacommunities.org/id/metropolitan-district-council/leeds,Leeds City Council,29/02/2020,Communities and Environment,Cleaner Neighbourhood Teams,Premises,Removal Of Workplace Waste,126,19/02/2020,2002-00351,0.00,116.60,R,Acumen Waste Services Ltd,No
Http://opendatacommunities.org/id/metropolitan-district-council/leeds,Leeds City Council,29/02/2020,Communities and Environment,Cleaner Neighbourhood Teams,Premises,Removal Of Workplace Waste,126,21/02/2020,2002-00352,0.00,116.60,R,Acumen Waste Services Ltd,No
Http://opendatacommunities.org/id/metropolitan-district-council/leeds,Leeds City Council,29/02/2020,Communities and Environment,Cleaner Neighbourhood Teams,Premises,Removal Of Workplace Waste,126,21/02/2020,2002-00353,0.00,116.60,R,Acumen Waste Services Ltd,No
Http://opendatacommunities.org/id/metropolitan-district-council/leeds,Leeds City Council,29/02/2020,Communities and Environment,Cleaner Neighbourhood Teams,Premises,Removal Of Workplace Waste,126,21/02/2020,2002-00354,0.00,116.60,R,Acumen Waste Services Ltd,No
Http://opendatacommunities.org/id/metropolitan-district-council/leeds,Leeds City Council,29/02/2020,Communities and Environment,Waste Management,Supplies and Services,Recycling & Reuse Charges,234,26/02/2020,2002-00355,0.00,5768.95,R,Acumen Waste Services Ltd,No
Http://opendatacommunities.org/id/metropolitan-district-council/leeds,Leeds City Council,29/02/2020,Communities and Environment,Cleaner Neighbourhood Teams,Premises,Removal Of Workplace Waste,126,26/02/2020,2002-00356,0.00,116.60,R,Acumen Waste Services Ltd,No
Http://opendatacommunities.org/id/metropolitan-district-council/leeds,Leeds City Council,29/02/2020,Communities and Environment,Cleaner Neighbourhood Teams,Premises,Removal Of Workplace Waste,126,26/02/2020,2002-00357,0.00,116.60,R,Acumen Waste Services Ltd,No
Http://opendatacommunities.org/id/metropolitan-district-council/leeds,Leeds City Council,29/02/2020,Communities and Environment,Cleaner Neighbourhood Teams,Premises,Removal Of Workplace Waste,126,26/02/2020,2002-00358,0.00,116.60,R,Acumen Waste Services Ltd,No
Http://opendatacommunities.org/id/metropolitan-district-council/leeds,Leeds City Council,29/02/2020,Communities and Environment,Cleaner Neighbourhood Teams,Premises,Removal Of Workplace Waste,126,26/02/2020,2002-00359,0.00,116.60,R,Acumen Waste Services Ltd,No
Http://opendatacommunities.org/id/metropolitan-district-council/leeds,Leeds City Council,29/02/2020,Communities and Environment,Cleaner Neighbourhood Teams,Premises,Removal Of Workplace Waste,126,26/02/2020,2002-00360,0.00,116.60,R,Acumen Waste Services Ltd,No
Http://opendatacommunities.org/id/metropolitan-district-council/leeds,Leeds City Council,29/02/2020,Communities and Environment,Cleaner Neighbourhood Teams,Premises,Removal Of Workplace Waste,126,26/02/2020,2002-00361,0.00,116.60,R,Acumen Waste Services Ltd,No
Http://opendatacommunities.org/id/metropolitan-district-council/leeds,Leeds City Council,29/02/2020,Communities and Environment,Cleaner Neighbourhood Teams,Premises,Removal Of Workplace Waste,126,26/02/2020,2002-00362,0.00,116.60,R,Acumen Waste Services Ltd,No
Http://opendatacommunities.org/id/metropolitan-district-council/leeds,Leeds City Council,29/02/2020,Communities and Environment,Cleaner Neighbourhood Teams,Premises,Removal Of Workplace Waste,126,28/02/2020,2002-00363,0.00,116.60,R,Acumen Waste Services Ltd,No
Http://opendatacommunities.org/id/metropolitan-district-council/leeds,Leeds City Council,29/02/2020,Communities and Environment,Cleaner Neighbourhood Teams,Premises,Removal Of Workplace Waste,126,28/02/2020,2002-00364,0.00,116.60,R,Acumen Waste Services Ltd,No
Http://opendatacommunities.org/id/metropolitan-district-council/leeds,Leeds City Council,29/02/2020,Communities and Environment,Cleaner Neighbourhood Teams,Premises,Removal Of Workplace Waste,126,28/02/2020,2002-00365,0.00,116.60,R,Acumen Waste Services Ltd,No
Http://opendatacommunities.org/id/metropolitan-district-council/leeds,Leeds City Council,29/02/2020,Resources and Housing,Shared Services,Supplies and Services,Other Hired And Contracted Services,265,21/02/2020,2002-00366,0.00,113.14,R,Ad3 Envelope Printers Limited,No
Http://opendatacommunities.org/id/metropolitan-district-council/leeds,Leeds City Council,29/02/2020,Resources and Housing,Shared Services,Supplies and Services,Operational Materials,205,28/02/2020,2002-00367,0.00,1131.75,R,Ad3 Envelope Printers Limited,No
Http://opendatacommunities.org/id/metropolitan-district-council/leeds,Leeds City Council,29/02/2020,Adults and Health,Services For Older People - 65 And Over,Third Party Payments,Nursing Home,570,05/02/2020,2002-00368,0.00,2480.00,R,Adbolton Hall,No
Http://opendatacommunities.org/id/metropolitan-district-council/leeds,Leeds City Council,29/02/2020,Resources and Housing,Civic Enterprise Leeds,Capital,Transport,4,05/02/2020,2002-00369,0.00,18255.04,C,Addison Motors Limited,No
Http://opendatacommunities.org/id/metropolitan-district-council/leeds,Leeds City Council,29/02/2020,Resources and Housing,Commercial Services,Transport,Road Fund Licences,323,05/02/2020,2002-00370,0.00,315.00,R,Addison Motors Limited,No
Http://opendatacommunities.org/id/metropolitan-district-council/leeds,Leeds City Council,29/02/2020,Resources and Housing,Civic Enterprise Leeds,Capital,Transport,4,07/02/2020,2002-00371,0.00,21629.80,C,Addison Motors Limited,No
Http://opendatacommunities.org/id/metropolitan-district-council/leeds,Leeds City Council,29/02/2020,Resources and Housing,Civic Enterprise Leeds,Capital,Transport,4,07/02/2020,2002-00372,0.00,21629.80,C,Addison Motors Limited,No
Http://opendatacommunities.org/id/metropolitan-district-council/leeds,Leeds City Council,29/02/2020,Resources and Housing,Civic Enterprise Leeds,Capital,Transport,4,07/02/2020,2002-00373,0.00,21629.80,C,Addison Motors Limited,No
Http://opendatacommunities.org/id/metropolitan-district-council/leeds,Leeds City Council,29/02/2020,Resources and Housing,Civic Enterprise Leeds,Capital,Transport,4,07/02/2020,2002-00374,0.00,21629.80,C,Addison Motors Limited,No
Http://opendatacommunities.org/id/metropolitan-district-council/leeds,Leeds City Council,29/02/2020,Resources and Housing,Commercial Services,Transport,Road Fund Licences,323,07/02/2020,2002-00375,0.00,55.00,R,Addison Motors Limited,No
Http://opendatacommunities.org/id/metropolitan-district-council/leeds,Leeds City Council,29/02/2020,Resources and Housing,Commercial Services,Transport,Road Fund Licences,323,07/02/2020,2002-00376,0.00,55.00,R,Addison Motors Limited,No
Http://opendatacommunities.org/id/metropolitan-district-council/leeds,Leeds City Council,29/02/2020,Resources and Housing,Commercial Services,Transport,Road Fund Licences,323,07/02/2020,2002-00377,0.00,55.00,R,Addison Motors Limited,No
Http://opendatacommunities.org/id/metropolitan-district-council/leeds,Leeds City Council,29/02/2020,Resources and Housing,Commercial Services,Transport,Road Fund Licences,323,07/02/2020,2002-00378,0.00,55.00,R,Addison Motors Limited,No
Http://opendatacommunities.org/id/metropolitan-district-council/leeds,Leeds City Council,29/02/2020,Resources and Housing,Commercial Services,Transport,Road Fund Licences,323,11/02/2020,2002-00379,0.00,55.00,R,Addison Motors Limited,No
Http://opendatacommunities.org/id/metropolitan-district-council/leeds,Leeds City Council,29/02/2020,Resources and Housing,Commercial Services,Transport,Road Fund Licences,323,11/02/2020,2002-00380,0.00,55.00,R,Addison Motors Limited,No
Http://opendatacommunities.org/id/metropolitan-district-council/leeds,Leeds City Council,29/02/2020,Resources and Housing,Commercial Services,Transport,Road Fund Licences,323,11/02/2020,2002-00381,0.00,55.00,R,Addison Motors Limited,No
Http://opendatacommunities.org/id/metropolitan-district-council/leeds,Leeds City Council,29/02/2020,Resources and Housing,Commercial Services,Transport,Road Fund Licences,323,11/02/2020,2002-00382,0.00,55.00,R,Addison Motors Limited,No
Http://opendatacommunities.org/id/metropolitan-district-council/leeds,Leeds City Council,29/02/2020,Resources and Housing,Commercial Services,Transport,Road Fund Licences,323,11/02/2020,2002-00383,0.00,55.00,R,Addison Motors Limited,No
Http://opendatacommunities.org/id/metropolitan-district-council/leeds,Leeds City Council,29/02/2020,Resources and Housing,Civic Enterprise Leeds,Capital,Transport,4,13/02/2020,2002-00384,0.00,21629.80,C,Addison Motors Limited,No
Http://opendatacommunities.org/id/metropolitan-district-council/leeds,Leeds City Council,29/02/2020,Resources and Housing,Civic Enterprise Leeds,Capital,Transport,4,13/02/2020,2002-00385,0.00,21629.80,C,Addison Motors Limited,No
Http://opendatacommunities.org/id/metropolitan-district-council/leeds,Leeds City Council,29/02/2020,Resources and Housing,Civic Enterprise Leeds,Capital,Transport,4,13/02/2020,2002-00386,0.00,21629.80,C,Addison Motors Limited,No
Http://opendatacommunities.org/id/metropolitan-district-council/leeds,Leeds City Council,29/02/2020,Resources and Housing,Civic Enterprise Leeds,Capital,Transport,4,13/02/2020,2002-00387,0.00,21629.80,C,Addison Motors Limited,No
Http://opendatacommunities.org/id/metropolitan-district-council/leeds,Leeds City Council,29/02/2020,Resources and Housing,Civic Enterprise Leeds,Capital,Transport,4,14/02/2020,2002-00388,0.00,34620.00,C,Addison Motors Limited,No
Http://opendatacommunities.org/id/metropolitan-district-council/leeds,Leeds City Council,29/02/2020,Resources and Housing,Civic Enterprise Leeds,Capital,Transport,4,14/02/2020,2002-00389,0.00,21629.80,C,Addison Motors Limited,No
Http://opendatacommunities.org/id/metropolitan-district-council/leeds,Leeds City Council,29/02/2020,Resources and Housing,Civic Enterprise Leeds,Capital,Transport,4,14/02/2020,2002-00390,0.00,21629.80,C,Addison Motors Limited,No
Http://opendatacommunities.org/id/metropolitan-district-council/leeds,Leeds City Council,29/02/2020,Resources and Housing,Civic Enterprise Leeds,Capital,Transport,4,14/02/2020,2002-00391,0.00,21629.80,C,Addison Motors Limited,No
Http://opendatacommunities.org/id/metropolitan-district-council/leeds,Leeds City Council,29/02/2020,Resources and Housing,Civic Enterprise Leeds,Capital,Transport,4,14/02/2020,2002-00392,0.00,21629.80,C,Addison Motors Limited,No
Http://opendatacommunities.org/id/metropolitan-district-council/leeds,Leeds City Council,29/02/2020,Resources and Housing,Civic Enterprise Leeds,Capital,Transport,4,14/02/2020,2002-00393,0.00,18492.84,C,Addison Motors Limited,No
Http://opendatacommunities.org/id/metropolitan-district-council/leeds,Leeds City Council,29/02/2020,Resources and Housing,Civic Enterprise Leeds,Capital,Transport,4,14/02/2020,2002-00394,0.00,23290.17,C,Addison Motors Limited,No
Http://opendatacommunities.org/id/metropolitan-district-council/leeds,Leeds City Council,29/02/2020,Resources and Housing,Civic Enterprise Leeds,Capital,Transport,4,14/02/2020,2002-00395,0.00,23155.17,C,Addison Motors Limited,No
Http://opendatacommunities.org/id/metropolitan-district-council/leeds,Leeds City Council,29/02/2020,Resources and Housing,Civic Enterprise Leeds,Capital,Transport,4,14/02/2020,2002-00396,0.00,23155.17,C,Addison Motors Limited,No
Http://opendatacommunities.org/id/metropolitan-district-council/leeds,Leeds City Council,29/02/2020,Resources and Housing,Civic Enterprise Leeds,Capital,Transport,4,14/02/2020,2002-00397,0.00,23155.17,C,Addison Motors Limited,No
Http://opendatacommunities.org/id/metropolitan-district-council/leeds,Leeds City Council,29/02/2020,Resources and Housing,Commercial Services,Transport,Road Fund Licences,323,14/02/2020,2002-00398,0.00,55.00,R,Addison Motors Limited,No
Http://opendatacommunities.org/id/metropolitan-district-council/leeds,Leeds City Council,29/02/2020,Resources and Housing,Commercial Services,Transport,Road Fund Licences,323,14/02/2020,2002-00399,0.00,55.00,R,Addison Motors Limited,No
Http://opendatacommunities.org/id/metropolitan-district-council/leeds,Leeds City Council,29/02/2020,Resources and Housing,Commercial Services,Transport,Road Fund Licences,323,14/02/2020,2002-00400,0.00,55.00,R,Addison Motors Limited,No
Http://opendatacommunities.org/id/metropolitan-district-council/leeds,Leeds City Council,29/02/2020,Resources and Housing,Commercial Services,Transport,Road Fund Licences,323,14/02/2020,2002-00401,0.00,315.00,R,Addison Motors Limited,No
Http://opendatacommunities.org/id/metropolitan-district-council/leeds,Leeds City Council,29/02/2020,Resources and Housing,Commercial Services,Transport,Road Fund Licences,323,14/02/2020,2002-00402,0.00,315.00,R,Addison Motors Limited,No
Http://opendatacommunities.org/id/metropolitan-district-council/leeds,Leeds City Council,29/02/2020,Resources and Housing,Commercial Services,Transport,Road Fund Licences,323,14/02/2020,2002-00403,0.00,315.00,R,Addison Motors Limited,No
Http://opendatacommunities.org/id/metropolitan-district-council/leeds,Leeds City Council,29/02/2020,Resources and Housing,Commercial Services,Transport,Road Fund Licences,323,14/02/2020,2002-00404,0.00,315.00,R,Addison Motors Limited,No
Http://opendatacommunities.org/id/metropolitan-district-council/leeds,Leeds City Council,29/02/2020,Resources and Housing,Commercial Services,Transport,Road Fund Licences,323,18/02/2020,2002-00405,0.00,315.00,R,Addison Motors Limited,No
Http://opendatacommunities.org/id/metropolitan-district-council/leeds,Leeds City Council,29/02/2020,Resources and Housing,Civic Enterprise Leeds,Capital,Transport,4,19/02/2020,2002-00406,0.00,21629.80,C,Addison Motors Limited,No
Http://opendatacommunities.org/id/metropolitan-district-council/leeds,Leeds City Council,29/02/2020,Resources and Housing,Civic Enterprise Leeds,Capital,Transport,4,19/02/2020,2002-00407,0.00,21629.80,C,Addison Motors Limited,No
Http://opendatacommunities.org/id/metropolitan-district-council/leeds,Leeds City Council,29/02/2020,Resources and Housing,Civic Enterprise Leeds,Capital,Transport,4,19/02/2020,2002-00408,0.00,21629.80,C,Addison Motors Limited,No
Http://opendatacommunities.org/id/metropolitan-district-council/leeds,Leeds City Council,29/02/2020,Resources and Housing,Civic Enterprise Leeds,Capital,Transport,4,19/02/2020,2002-00409,0.00,21629.80,C,Addison Motors Limited,No
Http://opendatacommunities.org/id/metropolitan-district-council/leeds,Leeds City Council,29/02/2020,Resources and Housing,Commercial Services,Transport,Road Fund Licences,323,19/02/2020,2002-00410,0.00,55.00,R,Addison Motors Limited,No
Http://opendatacommunities.org/id/metropolitan-district-council/leeds,Leeds City Council,29/02/2020,Resources and Housing,Commercial Services,Transport,Road Fund Licences,323,19/02/2020,2002-00411,0.00,55.00,R,Addison Motors Limited,No
Http://opendatacommunities.org/id/metropolitan-district-council/leeds,Leeds City Council,29/02/2020,Resources and Housing,Commercial Services,Transport,Road Fund Licences,323,19/02/2020,2002-00412,0.00,55.00,R,Addison Motors Limited,No
Http://opendatacommunities.org/id/metropolitan-district-council/leeds,Leeds City Council,29/02/2020,Resources and Housing,Commercial Services,Transport,Road Fund Licences,323,19/02/2020,2002-00413,0.00,55.00,R,Addison Motors Limited,No
Http://opendatacommunities.org/id/metropolitan-district-council/leeds,Leeds City Council,29/02/2020,Resources and Housing,Civic Enterprise Leeds,Capital,Transport,4,21/02/2020,2002-00414,0.00,21629.80,C,Addison Motors Limited,No
Http://opendatacommunities.org/id/metropolitan-district-council/leeds,Leeds City Council,29/02/2020,Resources and Housing,Civic Enterprise Leeds,Capital,Transport,4,21/02/2020,2002-00415,0.00,21629.80,C,Addison Motors Limited,No
Http://opendatacommunities.org/id/metropolitan-district-council/leeds,Leeds City Council,29/02/2020,Resources and Housing,Civic Enterprise Leeds,Capital,Transport,4,21/02/2020,2002-00416,0.00,21629.80,C,Addison Motors Limited,No
Http://opendatacommunities.org/id/metropolitan-district-council/leeds,Leeds City Council,29/02/2020,Resources and Housing,Civic Enterprise Leeds,Capital,Transport,4,21/02/2020,2002-00417,0.00,21629.80,C,Addison Motors Limited,No
Http://opendatacommunities.org/id/metropolitan-district-council/leeds,Leeds City Council,29/02/2020,Resources and Housing,Civic Enterprise Leeds,Capital,Transport,4,21/02/2020,2002-00418,0.00,21629.80,C,Addison Motors Limited,No
Http://opendatacommunities.org/id/metropolitan-district-council/leeds,Leeds City Council,29/02/2020,Resources and Housing,Civic Enterprise Leeds,Capital,Transport,4,21/02/2020,2002-00419,0.00,21629.80,C,Addison Motors Limited,No
Http://opendatacommunities.org/id/metropolitan-district-council/leeds,Leeds City Council,29/02/2020,Resources and Housing,Civic Enterprise Leeds,Capital,Transport,4,21/02/2020,2002-00420,0.00,21629.80,C,Addison Motors Limited,No
Http://opendatacommunities.org/id/metropolitan-district-council/leeds,Leeds City Council,29/02/2020,Resources and Housing,Civic Enterprise Leeds,Capital,Transport,4,21/02/2020,2002-00421,0.00,21629.80,C,Addison Motors Limited,No
Http://opendatacommunities.org/id/metropolitan-district-council/leeds,Leeds City Council,29/02/2020,Resources and Housing,Civic Enterprise Leeds,Capital,Transport,4,21/02/2020,2002-00422,0.00,21629.80,C,Addison Motors Limited,No
Http://opendatacommunities.org/id/metropolitan-district-council/leeds,Leeds City Council,29/02/2020,Resources and Housing,Civic Enterprise Leeds,Capital,Transport,4,21/02/2020,2002-00423,0.00,21629.80,C,Addison Motors Limited,No
Http://opendatacommunities.org/id/metropolitan-district-council/leeds,Leeds City Council,29/02/2020,Resources and Housing,Civic Enterprise Leeds,Capital,Transport,4,21/02/2020,2002-00424,0.00,21629.80,C,Addison Motors Limited,No
Http://opendatacommunities.org/id/metropolitan-district-council/leeds,Leeds City Council,29/02/2020,Resources and Housing,Civic Enterprise Leeds,Capital,Transport,4,21/02/2020,2002-00425,0.00,21629.80,C,Addison Motors Limited,No
Http://opendatacommunities.org/id/metropolitan-district-council/leeds,Leeds City Council,29/02/2020,Resources and Housing,Commercial Services,Transport,Road Fund Licences,323,21/02/2020,2002-00426,0.00,55.00,R,Addison Motors Limited,No
Http://opendatacommunities.org/id/metropolitan-district-council/leeds,Leeds City Council,29/02/2020,Resources and Housing,Commercial Services,Transport,Road Fund Licences,323,21/02/2020,2002-00427,0.00,55.00,R,Addison Motors Limited,No
Http://opendatacommunities.org/id/metropolitan-district-council/leeds,Leeds City Council,29/02/2020,Resources and Housing,Commercial Services,Transport,Road Fund Licences,323,21/02/2020,2002-00428,0.00,55.00,R,Addison Motors Limited,No
Http://opendatacommunities.org/id/metropolitan-district-council/leeds,Leeds City Council,29/02/2020,Resources and Housing,Commercial Services,Transport,Road Fund Licences,323,21/02/2020,2002-00429,0.00,55.00,R,Addison Motors Limited,No
Http://opendatacommunities.org/id/metropolitan-district-council/leeds,Leeds City Council,29/02/2020,Resources and Housing,Commercial Services,Transport,Road Fund Licences,323,21/02/2020,2002-00430,0.00,55.00,R,Addison Motors Limited,No
Http://opendatacommunities.org/id/metropolitan-district-council/leeds,Leeds City Council,29/02/2020,Resources and Housing,Commercial Services,Transport,Road Fund Licences,323,21/02/2020,2002-00431,0.00,55.00,R,Addison Motors Limited,No
Http://opendatacommunities.org/id/metropolitan-district-council/leeds,Leeds City Council,29/02/2020,Resources and Housing,Commercial Services,Transport,Road Fund Licences,323,21/02/2020,2002-00432,0.00,55.00,R,Addison Motors Limited,No
Http://opendatacommunities.org/id/metropolitan-district-council/leeds,Leeds City Council,29/02/2020,Resources and Housing,Commercial Services,Transport,Road Fund Licences,323,21/02/2020,2002-00433,0.00,55.00,R,Addison Motors Limited,No
Http://opendatacommunities.org/id/metropolitan-district-council/leeds,Leeds City Council,29/02/2020,Resources and Housing,Commercial Services,Transport,Road Fund Licences,323,21/02/2020,2002-00434,0.00,55.00,R,Addison Motors Limited,No
Http://opendatacommunities.org/id/metropolitan-district-council/leeds,Leeds City Council,29/02/2020,Resources and Housing,Commercial Services,Transport,Road Fund Licences,323,21/02/2020,2002-00435,0.00,55.00,R,Addison Motors Limited,No
Http://opendatacommunities.org/id/metropolitan-district-council/leeds,Leeds City Council,29/02/2020,Resources and Housing,Commercial Services,Transport,Road Fund Licences,323,21/02/2020,2002-00436,0.00,55.00,R,Addison Motors Limited,No
Http://opendatacommunities.org/id/metropolitan-district-council/leeds,Leeds City Council,29/02/2020,Resources and Housing,Commercial Services,Transport,Road Fund Licences,323,21/02/2020,2002-00437,0.00,55.00,R,Addison Motors Limited,No
Http://opendatacommunities.org/id/metropolitan-district-council/leeds,Leeds City Council,29/02/2020,Resources and Housing,Civic Enterprise Leeds,Capital,Transport,4,26/02/2020,2002-00438,0.00,21249.80,C,Addison Motors Limited,No
Http://opendatacommunities.org/id/metropolitan-district-council/leeds,Leeds City Council,29/02/2020,Resources and Housing,Civic Enterprise Leeds,Capital,Transport,4,26/02/2020,2002-00439,0.00,21249.80,C,Addison Motors Limited,No
Http://opendatacommunities.org/id/metropolitan-district-council/leeds,Leeds City Council,29/02/2020,Resources and Housing,Civic Enterprise Leeds,Capital,Transport,4,26/02/2020,2002-00440,0.00,21249.80,C,Addison Motors Limited,No
Http://opendatacommunities.org/id/metropolitan-district-council/leeds,Leeds City Council,29/02/2020,Resources and Housing,Civic Enterprise Leeds,Capital,Transport,4,26/02/2020,2002-00441,0.00,21249.80,C,Addison Motors Limited,No
Http://opendatacommunities.org/id/metropolitan-district-council/leeds,Leeds City Council,29/02/2020,Resources and Housing,Civic Enterprise Leeds,Capital,Transport,4,26/02/2020,2002-00442,0.00,21249.80,C,Addison Motors Limited,No
Http://opendatacommunities.org/id/metropolitan-district-council/leeds,Leeds City Council,29/02/2020,Resources and Housing,Civic Enterprise Leeds,Capital,Transport,4,26/02/2020,2002-00443,0.00,21249.80,C,Addison Motors Limited,No
Http://opendatacommunities.org/id/metropolitan-district-council/leeds,Leeds City Council,29/02/2020,Resources and Housing,Civic Enterprise Leeds,Capital,Transport,4,26/02/2020,2002-00444,0.00,21249.80,C,Addison Motors Limited,No
Http://opendatacommunities.org/id/metropolitan-district-council/leeds,Leeds City Council,29/02/2020,Resources and Housing,Civic Enterprise Leeds,Capital,Transport,4,26/02/2020,2002-00445,0.00,21249.80,C,Addison Motors Limited,No
Http://opendatacommunities.org/id/metropolitan-district-council/leeds,Leeds City Council,29/02/2020,Resources and Housing,Commercial Services,Transport,Road Fund Licences,323,26/02/2020,2002-00446,0.00,55.00,R,Addison Motors Limited,No
Http://opendatacommunities.org/id/metropolitan-district-council/leeds,Leeds City Council,29/02/2020,Resources and Housing,Commercial Services,Transport,Road Fund Licences,323,26/02/2020,2002-00447,0.00,55.00,R,Addison Motors Limited,No
Http://opendatacommunities.org/id/metropolitan-district-council/leeds,Leeds City Council,29/02/2020,Resources and Housing,Commercial Services,Transport,Road Fund Licences,323,26/02/2020,2002-00448,0.00,55.00,R,Addison Motors Limited,No
Http://opendatacommunities.org/id/metropolitan-district-council/leeds,Leeds City Council,29/02/2020,Resources and Housing,Commercial Services,Transport,Road Fund Licences,323,26/02/2020,2002-00449,0.00,55.00,R,Addison Motors Limited,No
Http://opendatacommunities.org/id/metropolitan-district-council/leeds,Leeds City Council,29/02/2020,Resources and Housing,Commercial Services,Transport,Road Fund Licences,323,26/02/2020,2002-00450,0.00,55.00,R,Addison Motors Limited,No
Http://opendatacommunities.org/id/metropolitan-district-council/leeds,Leeds City Council,29/02/2020,Resources and Housing,Commercial Services,Transport,Road Fund Licences,323,26/02/2020,2002-00451,0.00,55.00,R,Addison Motors Limited,No
Http://opendatacommunities.org/id/metropolitan-district-council/leeds,Leeds City Council,29/02/2020,Resources and Housing,Commercial Services,Transport,Road Fund Licences,323,26/02/2020,2002-00452,0.00,55.00,R,Addison Motors Limited,No
Http://opendatacommunities.org/id/metropolitan-district-council/leeds,Leeds City Council,29/02/2020,Resources and Housing,Commercial Services,Transport,Road Fund Licences,323,26/02/2020,2002-00453,0.00,55.00,R,Addison Motors Limited,No
Http://opendatacommunities.org/id/metropolitan-district-council/leeds,Leeds City Council,29/02/2020,Resources and Housing,Civic Enterprise Leeds,Capital,Transport,4,28/02/2020,2002-00454,0.00,21249.80,C,Addison Motors Limited,No
Http://opendatacommunities.org/id/metropolitan-district-council/leeds,Leeds City Council,29/02/2020,Resources and Housing,Civic Enterprise Leeds,Capital,Transport,4,28/02/2020,2002-00455,0.00,21249.80,C,Addison Motors Limited,No
Http://opendatacommunities.org/id/metropolitan-district-council/leeds,Leeds City Council,29/02/2020,Resources and Housing,Civic Enterprise Leeds,Capital,Transport,4,28/02/2020,2002-00456,0.00,21249.80,C,Addison Motors Limited,No
Http://opendatacommunities.org/id/metropolitan-district-council/leeds,Leeds City Council,29/02/2020,Resources and Housing,Civic Enterprise Leeds,Capital,Transport,4,28/02/2020,2002-00457,0.00,21249.80,C,Addison Motors Limited,No
Http://opendatacommunities.org/id/metropolitan-district-council/leeds,Leeds City Council,29/02/2020,Resources and Housing,Civic Enterprise Leeds,Capital,Transport,4,28/02/2020,2002-00458,0.00,21249.80,C,Addison Motors Limited,No
Http://opendatacommunities.org/id/metropolitan-district-council/leeds,Leeds City Council,29/02/2020,Resources and Housing,Civic Enterprise Leeds,Capital,Transport,4,28/02/2020,2002-00459,0.00,21249.80,C,Addison Motors Limited,No
Http://opendatacommunities.org/id/metropolitan-district-council/leeds,Leeds City Council,29/02/2020,Resources and Housing,Civic Enterprise Leeds,Capital,Transport,4,28/02/2020,2002-00460,0.00,21249.80,C,Addison Motors Limited,No
Http://opendatacommunities.org/id/metropolitan-district-council/leeds,Leeds City Council,29/02/2020,Resources and Housing,Civic Enterprise Leeds,Capital,Transport,4,28/02/2020,2002-00461,0.00,21249.80,C,Addison Motors Limited,No
Http://opendatacommunities.org/id/metropolitan-district-council/leeds,Leeds City Council,29/02/2020,Resources and Housing,Civic Enterprise Leeds,Capital,Transport,4,28/02/2020,2002-00462,0.00,21249.80,C,Addison Motors Limited,No
Http://opendatacommunities.org/id/metropolitan-district-council/leeds,Leeds City Council,29/02/2020,Resources and Housing,Civic Enterprise Leeds,Capital,Transport,4,28/02/2020,2002-00463,0.00,21249.80,C,Addison Motors Limited,No
Http://opendatacommunities.org/id/metropolitan-district-council/leeds,Leeds City Council,29/02/2020,Resources and Housing,Civic Enterprise Leeds,Capital,Transport,4,28/02/2020,2002-00464,0.00,21249.80,C,Addison Motors Limited,No
Http://opendatacommunities.org/id/metropolitan-district-council/leeds,Leeds City Council,29/02/2020,Resources and Housing,Civic Enterprise Leeds,Capital,Transport,4,28/02/2020,2002-00465,0.00,21249.80,C,Addison Motors Limited,No
Http://opendatacommunities.org/id/metropolitan-district-council/leeds,Leeds City Council,29/02/2020,Resources and Housing,Civic Enterprise Leeds,Capital,Transport,4,28/02/2020,2002-00466,0.00,21249.80,C,Addison Motors Limited,No
Http://opendatacommunities.org/id/metropolitan-district-council/leeds,Leeds City Council,29/02/2020,Resources and Housing,Civic Enterprise Leeds,Capital,Transport,4,28/02/2020,2002-00467,0.00,21249.80,C,Addison Motors Limited,No
Http://opendatacommunities.org/id/metropolitan-district-council/leeds,Leeds City Council,29/02/2020,Resources and Housing,Civic Enterprise Leeds,Capital,Transport,4,28/02/2020,2002-00468,0.00,21249.80,C,Addison Motors Limited,No
Http://opendatacommunities.org/id/metropolitan-district-council/leeds,Leeds City Council,29/02/2020,Resources and Housing,Civic Enterprise Leeds,Capital,Transport,4,28/02/2020,2002-00469,0.00,21249.80,C,Addison Motors Limited,No
Http://opendatacommunities.org/id/metropolitan-district-council/leeds,Leeds City Council,29/02/2020,Resources and Housing,Commercial Services,Transport,Road Fund Licences,323,28/02/2020,2002-00470,0.00,55.00,R,Addison Motors Limited,No
Http://opendatacommunities.org/id/metropolitan-district-council/leeds,Leeds City Council,29/02/2020,Resources and Housing,Commercial Services,Transport,Road Fund Licences,323,28/02/2020,2002-00471,0.00,55.00,R,Addison Motors Limited,No
Http://opendatacommunities.org/id/metropolitan-district-council/leeds,Leeds City Council,29/02/2020,Resources and Housing,Commercial Services,Transport,Road Fund Licences,323,28/02/2020,2002-00472,0.00,55.00,R,Addison Motors Limited,No
Http://opendatacommunities.org/id/metropolitan-district-council/leeds,Leeds City Council,29/02/2020,Resources and Housing,Commercial Services,Transport,Road Fund Licences,323,28/02/2020,2002-00473,0.00,55.00,R,Addison Motors Limited,No
Http://opendatacommunities.org/id/metropolitan-district-council/leeds,Leeds City Council,29/02/2020,Resources and Housing,Commercial Services,Transport,Road Fund Licences,323,28/02/2020,2002-00474,0.00,55.00,R,Addison Motors Limited,No
Http://opendatacommunities.org/id/metropolitan-district-council/leeds,Leeds City Council,29/02/2020,Resources and Housing,Commercial Services,Transport,Road Fund Licences,323,28/02/2020,2002-00475,0.00,55.00,R,Addison Motors Limited,No
Http://opendatacommunities.org/id/metropolitan-district-council/leeds,Leeds City Council,29/02/2020,Resources and Housing,Commercial Services,Transport,Road Fund Licences,323,28/02/2020,2002-00476,0.00,55.00,R,Addison Motors Limited,No
Http://opendatacommunities.org/id/metropolitan-district-council/leeds,Leeds City Council,29/02/2020,Resources and Housing,Commercial Services,Transport,Road Fund Licences,323,28/02/2020,2002-00477,0.00,55.00,R,Addison Motors Limited,No
Http://opendatacommunities.org/id/metropolitan-district-council/leeds,Leeds City Council,29/02/2020,Resources and Housing,Commercial Services,Transport,Road Fund Licences,323,28/02/2020,2002-00478,0.00,55.00,R,Addison Motors Limited,No
Http://opendatacommunities.org/id/metropolitan-district-council/leeds,Leeds City Council,29/02/2020,Resources and Housing,Commercial Services,Transport,Road Fund Licences,323,28/02/2020,2002-00479,0.00,55.00,R,Addison Motors Limited,No
Http://opendatacommunities.org/id/metropolitan-district-council/leeds,Leeds City Council,29/02/2020,Resources and Housing,Commercial Services,Transport,Road Fund Licences,323,28/02/2020,2002-00480,0.00,55.00,R,Addison Motors Limited,No
Http://opendatacommunities.org/id/metropolitan-district-council/leeds,Leeds City Council,29/02/2020,Resources and Housing,Commercial Services,Transport,Road Fund Licences,323,28/02/2020,2002-00481,0.00,55.00,R,Addison Motors Limited,No
Http://opendatacommunities.org/id/metropolitan-district-council/leeds,Leeds City Council,29/02/2020,Resources and Housing,Commercial Services,Transport,Road Fund Licences,323,28/02/2020,2002-00482,0.00,55.00,R,Addison Motors Limited,No
Http://opendatacommunities.org/id/metropolitan-district-council/leeds,Leeds City Council,29/02/2020,Resources and Housing,Commercial Services,Transport,Road Fund Licences,323,28/02/2020,2002-00483,0.00,55.00,R,Addison Motors Limited,No
Http://opendatacommunities.org/id/metropolitan-district-council/leeds,Leeds City Council,29/02/2020,Resources and Housing,Commercial Services,Transport,Road Fund Licences,323,28/02/2020,2002-00484,0.00,55.00,R,Addison Motors Limited,No
Http://opendatacommunities.org/id/metropolitan-district-council/leeds,Leeds City Council,29/02/2020,Resources and Housing,Commercial Services,Transport,Road Fund Licences,323,28/02/2020,2002-00485,0.00,55.00,R,Addison Motors Limited,No
Http://opendatacommunities.org/id/metropolitan-district-council/leeds,Leeds City Council,29/02/2020,City Development,Asset Management Services,Support Services,Legal Disbursements,411,05/02/2020,2002-00486,0.00,1003.00,R,Addleshaw Goddard Llp,No
Http://opendatacommunities.org/id/metropolitan-district-council/leeds,Leeds City Council,29/02/2020,City Development,Asset Management Services,Support Services,Legal Disbursements,411,05/02/2020,2002-00487,0.00,1750.00,R,Addleshaw Goddard Llp,No
Http://opendatacommunities.org/id/metropolitan-district-council/leeds,Leeds City Council,29/02/2020,City Development,Asset Management Services,Support Services,Legal Disbursements,411,05/02/2020,2002-00488,0.00,1000.00,R,Addleshaw Goddard Llp,No
Http://opendatacommunities.org/id/metropolitan-district-council/leeds,Leeds City Council,29/02/2020,City Development,Asset Management Services,Support Services,Legal Disbursements,411,05/02/2020,2002-00489,0.00,1162.35,R,Addleshaw Goddard Llp,No
Http://opendatacommunities.org/id/metropolitan-district-council/leeds,Leeds City Council,29/02/2020,Communities and Environment,Parks and Countryside,Supplies and Services,Other Hired And Contracted Services,265,07/02/2020,2002-00490,0.00,7056.00,R,Addlestone & Partners,No
Http://opendatacommunities.org/id/metropolitan-district-council/leeds,Leeds City Council,29/02/2020,Adults and Health,Public Health,Third Party Payments,Public Health Commissioned Services,526,28/02/2020,2002-00491,0.00,48.00,R,Addlestone & Partners,No
Http://opendatacommunities.org/id/metropolitan-district-council/leeds,Leeds City Council,29/02/2020,Resources and Housing,Technology  ,Employees,Agency Staff,8,09/01/2020,2002-00492,0.00,65512.68,R,Adecco Alfred Marks,Yes
Http://opendatacommunities.org/id/metropolitan-district-council/leeds,Leeds City Council,29/02/2020,Resources and Housing,Technology  ,Employees,Agency Staff,8,10/01/2020,2002-00493,0.00,23772.25,R,Adecco Alfred Marks,Yes
Http://opendatacommunities.org/id/metropolitan-district-council/leeds,Leeds City Council,29/02/2020,Resources and Housing,Technology  ,Employees,Agency Staff,8,21/01/2020,2002-00494,0.00,1125.00,R,Adecco Alfred Marks,Yes
Http://opendatacommunities.org/id/metropolitan-district-council/leeds,Leeds City Council,29/02/2020,Resources and Housing,Technology  ,Employees,Agency Staff,8,22/01/2020,2002-00495,0.00,5147.05,R,Adecco Alfred Marks,Yes
Http://opendatacommunities.org/id/metropolitan-district-council/leeds,Leeds City Council,29/02/2020,Children and Families,Social Care,Third Party Payments,Services Rendered By Voluntary Sector,505,07/02/2020,2002-00496,0.00,10474.80,R,Adel Pre School,No
Http://opendatacommunities.org/id/metropolitan-district-council/leeds,Leeds City Council,29/02/2020,Children and Families,Social Care,Third Party Payments,Services Rendered By Voluntary Sector,505,21/02/2020,2002-00497,0.00,1912.22,R,Adel Pre School,No
Http://opendatacommunities.org/id/metropolitan-district-council/leeds,Leeds City Council,29/02/2020,Communities and Environment,Parks And Countryside  ,Transport,Fuel (Non LCC Supplies),321,22/01/2020,2002-00498,0.00,21.48,R,Adel Sf Connect,Yes
Http://opendatacommunities.org/id/metropolitan-district-council/leeds,Leeds City Council,29/02/2020,Resources and Housing,Strategic Housing Partnership & Support  ,Supplies and Services,Other Hired And Contracted Services,265,07/01/2020,2002-00499,0.00,4.00,R,Adel Wood Store Limited,Yes
Http://opendatacommunities.org/id/metropolitan-district-council/leeds,Leeds City Council,29/02/2020,City Development,Recreation,Supplies and Services,Bought In Professional Services,277,28/02/2020,2002-00500,0.00,36.00,R,Adele Battersby,No
Http://opendatacommunities.org/id/metropolitan-district-council/leeds,Leeds City Council,29/02/2020,City Development,Recreation,Supplies and Services,Bought In Professional Services,277,28/02/2020,2002-00501,0.00,130.00,R,Adele Battersby,No
Http://opendatacommunities.org/id/metropolitan-district-council/leeds,Leeds City Council,29/02/2020,Children and Families,Social Care,Third Party Payments,Services Rendered By Other Organisations,511,05/02/2020,2002-00502,0.00,624.00,R,REDACTED PERSONAL DATA,No
Http://opendatacommunities.org/id/metropolitan-district-council/leeds,Leeds City Council,29/02/2020,Children and Families,Social Care,Third Party Payments,Services Rendered By Other Organisations,511,21/02/2020,2002-00503,0.00,418.12,R,REDACTED PERSONAL DATA,No
Http://opendatacommunities.org/id/metropolitan-district-council/leeds,Leeds City Council,29/02/2020,Children and Families,Social Care,Third Party Payments,Services Rendered By Other Organisations,511,07/02/2020,2002-00504,0.00,739.60,R,REDACTED PERSONAL DATA,No
Http://opendatacommunities.org/id/metropolitan-district-council/leeds,Leeds City Council,29/02/2020,Resources and Housing,Commercial Services,Supplies and Services,Food & Drink,231,07/02/2020,2002-00505,0.00,167.32,R,Adelie Foods Ltd,No
Http://opendatacommunities.org/id/metropolitan-district-council/leeds,Leeds City Council,29/02/2020,Resources and Housing,Commercial Services,Supplies and Services,Food & Drink,231,14/02/2020,2002-00506,0.00,104.66,R,Adelie Foods Ltd,No
Http://opendatacommunities.org/id/metropolitan-district-council/leeds,Leeds City Council,29/02/2020,Resources and Housing,Commercial Services,Supplies and Services,Food & Drink,231,17/02/2020,2002-00507,0.00,104.66,R,Adelie Foods Ltd,No
Http://opendatacommunities.org/id/metropolitan-district-council/leeds,Leeds City Council,29/02/2020,Resources and Housing,Commercial Services,Supplies and Services,Food & Drink,231,18/02/2020,2002-00508,0.00,203.30,R,Adelie Foods Ltd,No
Http://opendatacommunities.org/id/metropolitan-district-council/leeds,Leeds City Council,29/02/2020,Resources and Housing,Commercial Services,Supplies and Services,Food & Drink,231,19/02/2020,2002-00509,0.00,171.18,R,Adelie Foods Ltd,No
Http://opendatacommunities.org/id/metropolitan-district-council/leeds,Leeds City Council,29/02/2020,Resources and Housing,Commercial Services,Supplies and Services,Food & Drink,231,25/02/2020,2002-00510,0.00,288.76,R,Adelie Foods Ltd,No
Http://opendatacommunities.org/id/metropolitan-district-council/leeds,Leeds City Council,29/02/2020,Resources and Housing,Commercial Services,Supplies and Services,Food & Drink,231,25/02/2020,2002-00511,0.00,265.72,R,Adelie Foods Ltd,No
Http://opendatacommunities.org/id/metropolitan-district-council/leeds,Leeds City Council,29/02/2020,Resources and Housing,Commercial Services,Supplies and Services,Food & Drink,231,27/02/2020,2002-00512,0.00,113.84,R,Adelie Foods Ltd,No
Http://opendatacommunities.org/id/metropolitan-district-council/leeds,Leeds City Council,29/02/2020,City Development,Libraries  Arts & Heritage  ,Premises,Cleaning Maintenance & Toiletries,127,03/01/2020,2002-00513,0.00,58.00,R,Adexa Direct,Yes
Http://opendatacommunities.org/id/metropolitan-district-council/leeds,Leeds City Council,29/02/2020,Communities and Environment,Parks And Countryside  ,Supplies and Services,Subsistence,256,23/01/2020,2002-00514,0.00,381.60,R,Adexa Direct,Yes
Http://opendatacommunities.org/id/metropolitan-district-council/leeds,Leeds City Council,29/02/2020,Resources and Housing,Leeds Building Services,Supplies and Services,Operational Materials,205,07/02/2020,2002-00515,0.00,33.70,R,Adi Global,No
Http://opendatacommunities.org/id/metropolitan-district-council/leeds,Leeds City Council,29/02/2020,Resources and Housing,Leeds Building Services,Supplies and Services,Operational Materials,205,07/02/2020,2002-00516,0.00,219.06,R,Adi Global,No
Http://opendatacommunities.org/id/metropolitan-district-council/leeds,Leeds City Council,29/02/2020,Resources and Housing,Leeds Building Services,Supplies and Services,Operational Materials,205,12/02/2020,2002-00517,0.00,28.07,R,Adi Global,No
Http://opendatacommunities.org/id/metropolitan-district-council/leeds,Leeds City Council,29/02/2020,Resources and Housing,Leeds Building Services,Supplies and Services,Operational Materials,205,12/02/2020,2002-00518,0.00,120.66,R,Adi Global,No
Http://opendatacommunities.org/id/metropolitan-district-council/leeds,Leeds City Council,29/02/2020,Resources and Housing,Leeds Building Services,Supplies and Services,Operational Materials,205,12/02/2020,2002-00519,0.00,47.20,R,Adi Global,No
Http://opendatacommunities.org/id/metropolitan-district-council/leeds,Leeds City Council,29/02/2020,Resources and Housing,Leeds Building Services,Supplies and Services,Operational Materials,205,14/02/2020,2002-00520,0.00,50.40,R,Adi Global,No
Http://opendatacommunities.org/id/metropolitan-district-council/leeds,Leeds City Council,29/02/2020,Resources and Housing,Leeds Building Services,Supplies and Services,Operational Materials,205,14/02/2020,2002-00521,0.00,37.48,R,Adi Global,No
Http://opendatacommunities.org/id/metropolitan-district-council/leeds,Leeds City Council,29/02/2020,Resources and Housing,Leeds Building Services,Supplies and Services,Operational Materials,205,21/02/2020,2002-00522,0.00,65.60,R,Adi Global,No
Http://opendatacommunities.org/id/metropolitan-district-council/leeds,Leeds City Council,29/02/2020,Resources and Housing,Leeds Building Services,Supplies and Services,Operational Materials,205,21/02/2020,2002-00523,0.00,2249.71,R,Adi Global,No
Http://opendatacommunities.org/id/metropolitan-district-council/leeds,Leeds City Council,29/02/2020,Resources and Housing,Leeds Building Services,Supplies and Services,Operational Materials,205,26/02/2020,2002-00524,0.00,93.24,R,Adi Global,No
Http://opendatacommunities.org/id/metropolitan-district-council/leeds,Leeds City Council,29/02/2020,Resources and Housing,Leeds Building Services,Supplies and Services,Stores - Central And Other Depots,5,28/02/2020,2002-00525,0.00,1250.00,R,Adi Global,No
Http://opendatacommunities.org/id/metropolitan-district-council/leeds,Leeds City Council,29/02/2020,Children and Families,Social Care  ,Premises,Cleaning Maintenance & Toiletries,127,20/01/2020,2002-00526,0.00,70.00,R,Admiral Cleaning Suppl,Yes
Http://opendatacommunities.org/id/metropolitan-district-council/leeds,Leeds City Council,29/02/2020,Children and Families,Social Care  ,Premises,Cleaning Maintenance & Toiletries,127,30/01/2020,2002-00527,0.00,70.00,R,Admiral Cleaning Suppl,Yes
Http://opendatacommunities.org/id/metropolitan-district-council/leeds,Leeds City Council,29/02/2020,Resources and Housing,Sustainable Energy & Climate Change,Capital,Other Costs,7,24/02/2020,2002-00528,0.00,10000.00,C,REDACTED COMMERCIAL CONFIDENTIALITY,No
Http://opendatacommunities.org/id/metropolitan-district-council/leeds,Leeds City Council,29/02/2020,City Development,Libraries  Arts & Heritage  ,Supplies and Services,Computer Software & Equipment,214,02/01/2020,2002-00529,0.00,9.98,R,Adobe Photogphy Plan,Yes
Http://opendatacommunities.org/id/metropolitan-district-council/leeds,Leeds City Council,29/02/2020,City Development,Libraries  Arts & Heritage  ,Supplies and Services,Computer Software & Equipment,214,17/01/2020,2002-00530,0.00,104.18,R,Adobe Send-For-Sign,Yes
Http://opendatacommunities.org/id/metropolitan-district-council/leeds,Leeds City Council,29/02/2020,Children and Families,Social Care,Third Party Payments,Independent Fostering Agencies,509,06/02/2020,2002-00531,0.00,2945.00,R,Adolescent And Childrens Trust,No
Http://opendatacommunities.org/id/metropolitan-district-council/leeds,Leeds City Council,29/02/2020,Children and Families,Social Care,Third Party Payments,Independent Fostering Agencies,509,06/02/2020,2002-00532,0.00,3377.14,R,Adolescent And Childrens Trust,No
Http://opendatacommunities.org/id/metropolitan-district-council/leeds,Leeds City Council,29/02/2020,Children and Families,Social Care,Third Party Payments,Independent Fostering Agencies,509,06/02/2020,2002-00533,0.00,3309.60,R,Adolescent And Childrens Trust,No
Http://opendatacommunities.org/id/metropolitan-district-council/leeds,Leeds City Council,29/02/2020,Children and Families,Social Care,Third Party Payments,Independent Fostering Agencies,509,06/02/2020,2002-00534,0.00,3309.60,R,Adolescent And Childrens Trust,No
Http://opendatacommunities.org/id/metropolitan-district-council/leeds,Leeds City Council,29/02/2020,Children and Families,Social Care,Third Party Payments,Independent Fostering Agencies,509,06/02/2020,2002-00535,0.00,3576.16,R,Adolescent And Childrens Trust,No
Http://opendatacommunities.org/id/metropolitan-district-council/leeds,Leeds City Council,29/02/2020,Children and Families,Social Care,Third Party Payments,Independent Fostering Agencies,509,06/02/2020,2002-00536,0.00,3576.16,R,Adolescent And Childrens Trust,No
Http://opendatacommunities.org/id/metropolitan-district-council/leeds,Leeds City Council,29/02/2020,Children and Families,Social Care,Third Party Payments,Independent Fostering Agencies,509,06/02/2020,2002-00537,0.00,3309.60,R,Adolescent And Childrens Trust,No
Http://opendatacommunities.org/id/metropolitan-district-council/leeds,Leeds City Council,29/02/2020,Children and Families,Social Care,Third Party Payments,Independent Fostering Agencies,509,06/02/2020,2002-00538,0.00,3309.60,R,Adolescent And Childrens Trust,No
Http://opendatacommunities.org/id/metropolitan-district-council/leeds,Leeds City Council,29/02/2020,Children and Families,Social Care,Third Party Payments,Independent Fostering Agencies,509,06/02/2020,2002-00539,0.00,3309.60,R,Adolescent And Childrens Trust,No
Http://opendatacommunities.org/id/metropolitan-district-council/leeds,Leeds City Council,29/02/2020,Children and Families,Social Care,Third Party Payments,Independent Fostering Agencies,509,06/02/2020,2002-00540,0.00,3309.60,R,Adolescent And Childrens Trust,No
Http://opendatacommunities.org/id/metropolitan-district-council/leeds,Leeds City Council,29/02/2020,Children and Families,Social Care,Third Party Payments,Independent Fostering Agencies,509,06/02/2020,2002-00541,0.00,451.40,R,Adolescent And Childrens Trust,No
Http://opendatacommunities.org/id/metropolitan-district-council/leeds,Leeds City Council,29/02/2020,Children and Families,Social Care,Third Party Payments,Independent Fostering Agencies,509,28/02/2020,2002-00542,0.00,3479.86,R,Adolescent And Childrens Trust,No
Http://opendatacommunities.org/id/metropolitan-district-council/leeds,Leeds City Council,29/02/2020,Resources and Housing,HRA Housing Leeds,Capital,Other Costs,7,18/02/2020,2002-00543,0.00,6400.00,C,REDACTED PERSONAL DATA,No
Http://opendatacommunities.org/id/metropolitan-district-council/leeds,Leeds City Council,29/02/2020,Resources and Housing,Leeds Building Services,Supplies and Services,Other Hired And Contracted Services,265,05/02/2020,2002-00544,0.00,3811.00,R,Adt Fire And Security Plc,No
Http://opendatacommunities.org/id/metropolitan-district-council/leeds,Leeds City Council,29/02/2020,Strategic Landlord,Housing Management,Premises,Premises Security Services,162,07/02/2020,2002-00545,0.00,163.17,R,Adt Fire And Security Plc,No
Http://opendatacommunities.org/id/metropolitan-district-council/leeds,Leeds City Council,29/02/2020,Resources and Housing,Leeds Building Services,Supplies and Services,Other Hired And Contracted Services,265,28/02/2020,2002-00546,0.00,945.00,R,Adt Fire And Security Plc,No
Http://opendatacommunities.org/id/metropolitan-district-council/leeds,Leeds City Council As Accountable Body,29/02/2020,Social Services Pooled Budgets,Jcs For People With Learning Disabilitie,Third Party Payments,Residential,580,19/02/2020,2002-00547,0.00,823.81,R,Adult Placement Services,No
Http://opendatacommunities.org/id/metropolitan-district-council/leeds,Leeds City Council As Accountable Body,29/02/2020,Social Services Pooled Budgets,Jcs For People With Learning Disabilitie,Third Party Payments,Residential,580,21/02/2020,2002-00548,0.00,1332.24,R,Adult Placement Services,No
Http://opendatacommunities.org/id/metropolitan-district-council/leeds,Leeds City Council,29/02/2020,City Development,Recreation,Supplies and Services,External Audit Fees,261,05/02/2020,2002-00549,0.00,135.00,R,Advance Stocks Ltd,No
Http://opendatacommunities.org/id/metropolitan-district-council/leeds,Leeds City Council,29/02/2020,City Development,Recreation,Supplies and Services,External Audit Fees,261,05/02/2020,2002-00550,0.00,85.00,R,Advance Stocks Ltd,No
Http://opendatacommunities.org/id/metropolitan-district-council/leeds,Leeds City Council,29/02/2020,City Development,Libraries  Arts & Heritage,Supplies and Services,External Audit Fees,261,13/02/2020,2002-00551,0.00,90.00,R,Advance Stocks Ltd,No
Http://opendatacommunities.org/id/metropolitan-district-council/leeds,Leeds City Council,29/02/2020,City Development,Libraries  Arts & Heritage,Supplies and Services,Other Hired And Contracted Services,265,13/02/2020,2002-00552,0.00,90.00,R,Advance Stocks Ltd,No
Http://opendatacommunities.org/id/metropolitan-district-council/leeds,Leeds City Council,29/02/2020,City Development,Recreation,Supplies and Services,External Audit Fees,261,27/02/2020,2002-00553,0.00,90.00,R,Advance Stocks Ltd,No
Http://opendatacommunities.org/id/metropolitan-district-council/leeds,Leeds City Council,29/02/2020,City Development,Recreation,Supplies and Services,External Audit Fees,261,28/02/2020,2002-00554,0.00,135.00,R,Advance Stocks Ltd,No
Http://opendatacommunities.org/id/metropolitan-district-council/leeds,Leeds City Council As Accountable Body,29/02/2020,Social Services Pooled Budgets,Jcs For People With Learning Disabilitie,Third Party Payments,Residential,580,05/02/2020,2002-00555,0.00,17213.56,R,Advitam Ltd,No
Http://opendatacommunities.org/id/metropolitan-district-council/leeds,Leeds City Council As Accountable Body,29/02/2020,Social Services Pooled Budgets,Jcs For People With Learning Disabilitie,Third Party Payments,Day Centre,564,28/02/2020,2002-00556,0.00,416.35,R,Advitam Ltd,No
Http://opendatacommunities.org/id/metropolitan-district-council/leeds,Leeds City Council As Accountable Body,29/02/2020,Social Services Pooled Budgets,Jcs For People With Learning Disabilitie,Third Party Payments,Other Agency Services,561,14/02/2020,2002-00557,0.00,180.00,R,Advonet,No
Http://opendatacommunities.org/id/metropolitan-district-council/leeds,Leeds City Council As Accountable Body,29/02/2020,Social Services Pooled Budgets,Jcs For People With Learning Disabilitie,Third Party Payments,Other Agency Services,561,14/02/2020,2002-00558,0.00,15.00,R,Advonet,No
Http://opendatacommunities.org/id/metropolitan-district-council/leeds,Leeds City Council,29/02/2020,Adults and Health,Services For Older People - 65 And Over,Third Party Payments,Payments To Voluntary Organisations,561,19/02/2020,2002-00559,0.00,103916.67,R,Advonet,No
Http://opendatacommunities.org/id/metropolitan-district-council/leeds,Leeds City Council,29/02/2020,Adults and Health,Services For Adults Under 65 Mental/Dis,Third Party Payments,Fees - Level 4,520,03/02/2020,2002-00560,0.00,198.00,R,Ae Bia Assessments Limited,No
Http://opendatacommunities.org/id/metropolitan-district-council/leeds,Leeds City Council,29/02/2020,Adults and Health,Services For Adults Under 65 Mental/Dis,Third Party Payments,Fees - Level 4,520,03/02/2020,2002-00561,0.00,235.47,R,Ae Bia Assessments Limited,No
Http://opendatacommunities.org/id/metropolitan-district-council/leeds,Leeds City Council,29/02/2020,Adults and Health,Services For Adults Under 65 Mental/Dis,Third Party Payments,Fees - Level 4,520,03/02/2020,2002-00562,0.00,198.00,R,Ae Bia Assessments Limited,No
Http://opendatacommunities.org/id/metropolitan-district-council/leeds,Leeds City Council,29/02/2020,Adults and Health,Services For Adults Under 65 Mental/Dis,Third Party Payments,Fees - Level 4,520,03/02/2020,2002-00563,0.00,198.00,R,Ae Bia Assessments Limited,No
Http://opendatacommunities.org/id/metropolitan-district-council/leeds,Leeds City Council,29/02/2020,Adults and Health,Services For Adults Under 65 Mental/Dis,Third Party Payments,Fees - Level 4,520,03/02/2020,2002-00564,0.00,243.13,R,Ae Bia Assessments Limited,No
Http://opendatacommunities.org/id/metropolitan-district-council/leeds,Leeds City Council,29/02/2020,Adults and Health,Services For Adults Under 65 Mental/Dis,Third Party Payments,Fees - Level 4,520,03/02/2020,2002-00565,0.00,198.00,R,Ae Bia Assessments Limited,No
Http://opendatacommunities.org/id/metropolitan-district-council/leeds,Leeds City Council,29/02/2020,Adults and Health,Services For Adults Under 65 Mental/Dis,Third Party Payments,Fees - Level 4,520,03/02/2020,2002-00566,0.00,235.07,R,Ae Bia Assessments Limited,No
Http://opendatacommunities.org/id/metropolitan-district-council/leeds,Leeds City Council,29/02/2020,Adults and Health,Services For Adults Under 65 Mental/Dis,Third Party Payments,Fees - Level 4,520,03/02/2020,2002-00567,0.00,198.00,R,Ae Bia Assessments Limited,No
Http://opendatacommunities.org/id/metropolitan-district-council/leeds,Leeds City Council,29/02/2020,Adults and Health,Services For Adults Under 65 Mental/Dis,Third Party Payments,Fees - Level 4,520,03/02/2020,2002-00568,0.00,244.83,R,Ae Bia Assessments Limited,No
Http://opendatacommunities.org/id/metropolitan-district-council/leeds,Leeds City Council,29/02/2020,Adults and Health,Services For Adults Under 65 Mental/Dis,Third Party Payments,Fees - Level 4,520,03/02/2020,2002-00569,0.00,244.83,R,Ae Bia Assessments Limited,No
Http://opendatacommunities.org/id/metropolitan-district-council/leeds,Leeds City Council,29/02/2020,Adults and Health,Services For Adults Under 65 Mental/Dis,Third Party Payments,Fees - Level 4,520,04/02/2020,2002-00570,0.00,235.47,R,Ae Bia Assessments Limited,No
Http://opendatacommunities.org/id/metropolitan-district-council/leeds,Leeds City Council,29/02/2020,Adults and Health,Services For Adults Under 65 Mental/Dis,Third Party Payments,Fees - Level 4,520,04/02/2020,2002-00571,0.00,198.00,R,Ae Bia Assessments Limited,No
Http://opendatacommunities.org/id/metropolitan-district-council/leeds,Leeds City Council,29/02/2020,Adults and Health,Services For Adults Under 65 Mental/Dis,Third Party Payments,Fees - Level 4,520,04/02/2020,2002-00572,0.00,198.00,R,Ae Bia Assessments Limited,No
Http://opendatacommunities.org/id/metropolitan-district-council/leeds,Leeds City Council,29/02/2020,Adults and Health,Services For Adults Under 65 Mental/Dis,Third Party Payments,Fees - Level 4,520,07/02/2020,2002-00573,0.00,235.47,R,Ae Bia Assessments Limited,No
Http://opendatacommunities.org/id/metropolitan-district-council/leeds,Leeds City Council,29/02/2020,Adults and Health,Services For Adults Under 65 Mental/Dis,Third Party Payments,Fees - Level 4,520,11/02/2020,2002-00574,0.00,198.00,R,Ae Bia Assessments Limited,No
Http://opendatacommunities.org/id/metropolitan-district-council/leeds,Leeds City Council,29/02/2020,Adults and Health,Services For Adults Under 65 Mental/Dis,Third Party Payments,Fees - Level 4,520,11/02/2020,2002-00575,0.00,235.57,R,Ae Bia Assessments Limited,No
Http://opendatacommunities.org/id/metropolitan-district-council/leeds,Leeds City Council,29/02/2020,Adults and Health,Services For Adults Under 65 Mental/Dis,Third Party Payments,Fees - Level 4,520,11/02/2020,2002-00576,0.00,235.57,R,Ae Bia Assessments Limited,No
Http://opendatacommunities.org/id/metropolitan-district-council/leeds,Leeds City Council,29/02/2020,Adults and Health,Services For Adults Under 65 Mental/Dis,Third Party Payments,Fees - Level 4,520,21/02/2020,2002-00577,0.00,230.36,R,Ae Bia Assessments Limited,No
Http://opendatacommunities.org/id/metropolitan-district-council/leeds,Leeds City Council,29/02/2020,Adults and Health,Services For Adults Under 65 Mental/Dis,Third Party Payments,Fees - Level 4,520,21/02/2020,2002-00578,0.00,219.29,R,Ae Bia Assessments Limited,No
Http://opendatacommunities.org/id/metropolitan-district-council/leeds,Leeds City Council,29/02/2020,City Development,Highways,Capital,Other Costs,7,03/02/2020,2002-00579,0.00,20298.71,C,Aecom Limited,No
Http://opendatacommunities.org/id/metropolitan-district-council/leeds,Leeds City Council,29/02/2020,Adults and Health,Services For Adults Under 65 Mental/Dis,Third Party Payments,Home Care,568,12/02/2020,2002-00580,0.00,696.40,R,Aegis Care Solutions Ltd,No
Http://opendatacommunities.org/id/metropolitan-district-council/leeds,Leeds City Council,29/02/2020,Adults and Health,Services For Adults Under 65 Mental/Dis,Third Party Payments,Home Care,568,18/02/2020,2002-00581,0.00,360.00,R,Aegis Care Solutions Ltd,No
Http://opendatacommunities.org/id/metropolitan-district-council/leeds,Leeds City Council,29/02/2020,Adults and Health,Services For Older People - 65 And Over,Third Party Payments,Home Care,568,25/02/2020,2002-00582,0.00,2068.05,R,Aegis Care Solutions Ltd,No
Http://opendatacommunities.org/id/metropolitan-district-council/leeds,Leeds City Council As Accountable Body,29/02/2020,Social Services Pooled Budgets,Jcs For People With Learning Disabilitie,Third Party Payments,Home Care,568,04/02/2020,2002-00583,0.00,1591.20,R,Affinity Trust,No
Http://opendatacommunities.org/id/metropolitan-district-council/leeds,Leeds City Council As Accountable Body,29/02/2020,Social Services Pooled Budgets,Jcs For People With Learning Disabilitie,Third Party Payments,Home Care,568,26/02/2020,2002-00584,0.00,-3818.82,R,Affinity Trust,No
Http://opendatacommunities.org/id/metropolitan-district-council/leeds,Leeds City Council As Accountable Body,29/02/2020,Social Services Pooled Budgets,Jcs For People With Learning Disabilitie,Third Party Payments,Home Care,568,26/02/2020,2002-00585,0.00,-4100.40,R,Affinity Trust,No
Http://opendatacommunities.org/id/metropolitan-district-council/leeds,Leeds City Council As Accountable Body,29/02/2020,Social Services Pooled Budgets,Jcs For People With Learning Disabilitie,Third Party Payments,Home Care,568,26/02/2020,2002-00586,0.00,-1319.10,R,Affinity Trust,No
Http://opendatacommunities.org/id/metropolitan-district-council/leeds,Leeds City Council As Accountable Body,29/02/2020,Social Services Pooled Budgets,Jcs For People With Learning Disabilitie,Third Party Payments,Home Care,568,26/02/2020,2002-00587,0.00,-3182.40,R,Affinity Trust,No
Http://opendatacommunities.org/id/metropolitan-district-council/leeds,Leeds City Council As Accountable Body,29/02/2020,Social Services Pooled Budgets,Jcs For People With Learning Disabilitie,Third Party Payments,Day Centre,564,26/02/2020,2002-00588,0.00,-2113.38,R,Affinity Trust,No
Http://opendatacommunities.org/id/metropolitan-district-council/leeds,Leeds City Council As Accountable Body,29/02/2020,Social Services Pooled Budgets,Jcs For People With Learning Disabilitie,Third Party Payments,Day Centre,564,26/02/2020,2002-00589,0.00,-2937.60,R,Affinity Trust,No
Http://opendatacommunities.org/id/metropolitan-district-council/leeds,Leeds City Council As Accountable Body,29/02/2020,Social Services Pooled Budgets,Jcs For People With Learning Disabilitie,Transfer Payments,Personal Budgets,627,26/02/2020,2002-00590,0.00,-1345.12,R,Affinity Trust,No
Http://opendatacommunities.org/id/metropolitan-district-council/leeds,Leeds City Council As Accountable Body,29/02/2020,Social Services Pooled Budgets,Jcs For People With Learning Disabilitie,Third Party Payments,Day Centre,564,26/02/2020,2002-00591,0.00,-349.47,R,Affinity Trust,No
Http://opendatacommunities.org/id/metropolitan-district-council/leeds,Leeds City Council As Accountable Body,29/02/2020,Social Services Pooled Budgets,Jcs For People With Learning Disabilitie,Third Party Payments,Day Centre,564,26/02/2020,2002-00592,0.00,-2578.32,R,Affinity Trust,No
Http://opendatacommunities.org/id/metropolitan-district-council/leeds,Leeds City Council As Accountable Body,29/02/2020,Social Services Pooled Budgets,Jcs For People With Learning Disabilitie,Third Party Payments,Home Care,568,26/02/2020,2002-00593,0.00,-1072.24,R,Affinity Trust,No
Http://opendatacommunities.org/id/metropolitan-district-council/leeds,Leeds City Council As Accountable Body,29/02/2020,Social Services Pooled Budgets,Jcs For People With Learning Disabilitie,Third Party Payments,Day Centre,564,26/02/2020,2002-00594,0.00,-4788.00,R,Affinity Trust,No
Http://opendatacommunities.org/id/metropolitan-district-council/leeds,Leeds City Council As Accountable Body,29/02/2020,Social Services Pooled Budgets,Jcs For People With Learning Disabilitie,Third Party Payments,Home Care,568,26/02/2020,2002-00595,0.00,-2052.00,R,Affinity Trust,No
Http://opendatacommunities.org/id/metropolitan-district-council/leeds,Leeds City Council As Accountable Body,29/02/2020,Social Services Pooled Budgets,Jcs For People With Learning Disabilitie,Third Party Payments,Day Centre,564,26/02/2020,2002-00596,0.00,-1324.12,R,Affinity Trust,No
Http://opendatacommunities.org/id/metropolitan-district-council/leeds,Leeds City Council As Accountable Body,29/02/2020,Social Services Pooled Budgets,Jcs For People With Learning Disabilitie,Third Party Payments,Home Care,568,26/02/2020,2002-00597,0.00,-2737.22,R,Affinity Trust,No
Http://opendatacommunities.org/id/metropolitan-district-council/leeds,Leeds City Council As Accountable Body,29/02/2020,Social Services Pooled Budgets,Jcs For People With Learning Disabilitie,Third Party Payments,Home Care,568,26/02/2020,2002-00598,0.00,-3567.21,R,Affinity Trust,No
Http://opendatacommunities.org/id/metropolitan-district-council/leeds,Leeds City Council As Accountable Body,29/02/2020,Social Services Pooled Budgets,Jcs For People With Learning Disabilitie,Third Party Payments,Home Care,568,26/02/2020,2002-00599,0.00,-734.40,R,Affinity Trust,No
Http://opendatacommunities.org/id/metropolitan-district-council/leeds,Leeds City Council As Accountable Body,29/02/2020,Social Services Pooled Budgets,Jcs For People With Learning Disabilitie,Third Party Payments,Day Centre,564,26/02/2020,2002-00600,0.00,-4145.04,R,Affinity Trust,No
Http://opendatacommunities.org/id/metropolitan-district-council/leeds,Leeds City Council As Accountable Body,29/02/2020,Social Services Pooled Budgets,Jcs For People With Learning Disabilitie,Third Party Payments,Home Care,568,26/02/2020,2002-00601,0.00,-2068.47,R,Affinity Trust,No
Http://opendatacommunities.org/id/metropolitan-district-council/leeds,Leeds City Council As Accountable Body,29/02/2020,Social Services Pooled Budgets,Jcs For People With Learning Disabilitie,Third Party Payments,Home Care,568,26/02/2020,2002-00602,0.00,-3196.77,R,Affinity Trust,No
Http://opendatacommunities.org/id/metropolitan-district-council/leeds,Leeds City Council As Accountable Body,29/02/2020,Social Services Pooled Budgets,Jcs For People With Learning Disabilitie,Third Party Payments,Day Centre,564,26/02/2020,2002-00603,0.00,-410.40,R,Affinity Trust,No
Http://opendatacommunities.org/id/metropolitan-district-council/leeds,Leeds City Council As Accountable Body,29/02/2020,Social Services Pooled Budgets,Jcs For People With Learning Disabilitie,Third Party Payments,Home Care,568,26/02/2020,2002-00604,0.00,-1641.60,R,Affinity Trust,No
Http://opendatacommunities.org/id/metropolitan-district-council/leeds,Leeds City Council As Accountable Body,29/02/2020,Social Services Pooled Budgets,Jcs For People With Learning Disabilitie,Third Party Payments,Home Care,568,26/02/2020,2002-00605,0.00,-5611.20,R,Affinity Trust,No
Http://opendatacommunities.org/id/metropolitan-district-council/leeds,Leeds City Council As Accountable Body,29/02/2020,Social Services Pooled Budgets,Jcs For People With Learning Disabilitie,Third Party Payments,Home Care,568,26/02/2020,2002-00606,0.00,-5910.10,R,Affinity Trust,No
Http://opendatacommunities.org/id/metropolitan-district-council/leeds,Leeds City Council As Accountable Body,29/02/2020,Social Services Pooled Budgets,Jcs For People With Learning Disabilitie,Third Party Payments,Home Care,568,26/02/2020,2002-00607,0.00,2040.00,R,Affinity Trust,No
Http://opendatacommunities.org/id/metropolitan-district-council/leeds,Leeds City Council As Accountable Body,29/02/2020,Social Services Pooled Budgets,Jcs For People With Learning Disabilitie,Third Party Payments,Home Care,568,26/02/2020,2002-00608,0.00,295.63,R,Affinity Trust,No
Http://opendatacommunities.org/id/metropolitan-district-council/leeds,Leeds City Council As Accountable Body,29/02/2020,Social Services Pooled Budgets,Jcs For People With Learning Disabilitie,Third Party Payments,Day Centre,564,26/02/2020,2002-00609,0.00,347.20,R,Affinity Trust,No
Http://opendatacommunities.org/id/metropolitan-district-council/leeds,Leeds City Council As Accountable Body,29/02/2020,Social Services Pooled Budgets,Jcs For People With Learning Disabilitie,Third Party Payments,Home Care,568,26/02/2020,2002-00610,0.00,2019.60,R,Affinity Trust,No
Http://opendatacommunities.org/id/metropolitan-district-council/leeds,Leeds City Council As Accountable Body,29/02/2020,Social Services Pooled Budgets,Jcs For People With Learning Disabilitie,Third Party Payments,Home Care,568,26/02/2020,2002-00611,0.00,1950.15,R,Affinity Trust,No
Http://opendatacommunities.org/id/metropolitan-district-council/leeds,Leeds City Council As Accountable Body,29/02/2020,Social Services Pooled Budgets,Jcs For People With Learning Disabilitie,Third Party Payments,Home Care,568,26/02/2020,2002-00612,0.00,2955.05,R,Affinity Trust,No
Http://opendatacommunities.org/id/metropolitan-district-council/leeds,Leeds City Council As Accountable Body,29/02/2020,Social Services Pooled Budgets,Jcs For People With Learning Disabilitie,Third Party Payments,Home Care,568,26/02/2020,2002-00613,0.00,1416.14,R,Affinity Trust,No
Http://opendatacommunities.org/id/metropolitan-district-council/leeds,Leeds City Council As Accountable Body,29/02/2020,Social Services Pooled Budgets,Jcs For People With Learning Disabilitie,Third Party Payments,Home Care,568,26/02/2020,2002-00614,0.00,1806.06,R,Affinity Trust,No
Http://opendatacommunities.org/id/metropolitan-district-council/leeds,Leeds City Council As Accountable Body,29/02/2020,Social Services Pooled Budgets,Jcs For People With Learning Disabilitie,Third Party Payments,Home Care,568,26/02/2020,2002-00615,0.00,1026.00,R,Affinity Trust,No
Http://opendatacommunities.org/id/metropolitan-district-council/leeds,Leeds City Council As Accountable Body,29/02/2020,Social Services Pooled Budgets,Jcs For People With Learning Disabilitie,Third Party Payments,Day Centre,564,26/02/2020,2002-00616,0.00,662.06,R,Affinity Trust,No
Http://opendatacommunities.org/id/metropolitan-district-council/leeds,Leeds City Council As Accountable Body,29/02/2020,Social Services Pooled Budgets,Jcs For People With Learning Disabilitie,Third Party Payments,Day Centre,564,26/02/2020,2002-00617,0.00,2394.00,R,Affinity Trust,No
Http://opendatacommunities.org/id/metropolitan-district-council/leeds,Leeds City Council As Accountable Body,29/02/2020,Social Services Pooled Budgets,Jcs For People With Learning Disabilitie,Third Party Payments,Day Centre,564,26/02/2020,2002-00618,0.00,1274.19,R,Affinity Trust,No
Http://opendatacommunities.org/id/metropolitan-district-council/leeds,Leeds City Council As Accountable Body,29/02/2020,Social Services Pooled Budgets,Jcs For People With Learning Disabilitie,Third Party Payments,Day Centre,564,26/02/2020,2002-00619,0.00,1468.80,R,Affinity Trust,No
Http://opendatacommunities.org/id/metropolitan-district-council/leeds,Leeds City Council As Accountable Body,29/02/2020,Social Services Pooled Budgets,Jcs For People With Learning Disabilitie,Third Party Payments,Day Centre,564,26/02/2020,2002-00620,0.00,1071.66,R,Affinity Trust,No
Http://opendatacommunities.org/id/metropolitan-district-council/leeds,Leeds City Council As Accountable Body,29/02/2020,Social Services Pooled Budgets,Jcs For People With Learning Disabilitie,Third Party Payments,Home Care,568,26/02/2020,2002-00621,0.00,2080.80,R,Affinity Trust,No
Http://opendatacommunities.org/id/metropolitan-district-council/leeds,Leeds City Council As Accountable Body,29/02/2020,Social Services Pooled Budgets,Jcs For People With Learning Disabilitie,Third Party Payments,Home Care,568,26/02/2020,2002-00622,0.00,719.43,R,Affinity Trust,No
Http://opendatacommunities.org/id/metropolitan-district-council/leeds,Leeds City Council As Accountable Body,29/02/2020,Social Services Pooled Budgets,Jcs For People With Learning Disabilitie,Third Party Payments,Home Care,568,26/02/2020,2002-00623,0.00,2805.60,R,Affinity Trust,No
Http://opendatacommunities.org/id/metropolitan-district-council/leeds,Leeds City Council As Accountable Body,29/02/2020,Social Services Pooled Budgets,Jcs For People With Learning Disabilitie,Third Party Payments,Home Care,568,26/02/2020,2002-00624,0.00,1868.87,R,Affinity Trust,No
Http://opendatacommunities.org/id/metropolitan-district-council/leeds,Leeds City Council As Accountable Body,29/02/2020,Social Services Pooled Budgets,Jcs For People With Learning Disabilitie,Third Party Payments,Home Care,568,26/02/2020,2002-00625,0.00,1071.66,R,Affinity Trust,No
Http://opendatacommunities.org/id/metropolitan-district-council/leeds,Leeds City Council As Accountable Body,29/02/2020,Social Services Pooled Budgets,Jcs For People With Learning Disabilitie,Third Party Payments,Home Care,568,26/02/2020,2002-00626,0.00,2955.05,R,Affinity Trust,No
Http://opendatacommunities.org/id/metropolitan-district-council/leeds,Leeds City Council As Accountable Body,29/02/2020,Social Services Pooled Budgets,Jcs For People With Learning Disabilitie,Third Party Payments,Home Care,568,26/02/2020,2002-00627,0.00,536.12,R,Affinity Trust,No
Http://opendatacommunities.org/id/metropolitan-district-council/leeds,Leeds City Council As Accountable Body,29/02/2020,Social Services Pooled Budgets,Jcs For People With Learning Disabilitie,Third Party Payments,Home Care,568,26/02/2020,2002-00628,0.00,1321.08,R,Affinity Trust,No
Http://opendatacommunities.org/id/metropolitan-district-council/leeds,Leeds City Council As Accountable Body,29/02/2020,Social Services Pooled Budgets,Jcs For People With Learning Disabilitie,Third Party Payments,Home Care,568,26/02/2020,2002-00629,0.00,1761.15,R,Affinity Trust,No
Http://opendatacommunities.org/id/metropolitan-district-council/leeds,Leeds City Council As Accountable Body,29/02/2020,Social Services Pooled Budgets,Jcs For People With Learning Disabilitie,Third Party Payments,Home Care,568,26/02/2020,2002-00630,0.00,1026.00,R,Affinity Trust,No
Http://opendatacommunities.org/id/metropolitan-district-council/leeds,Leeds City Council As Accountable Body,29/02/2020,Social Services Pooled Budgets,Jcs For People With Learning Disabilitie,Third Party Payments,Day Centre,564,26/02/2020,2002-00631,0.00,662.06,R,Affinity Trust,No
Http://opendatacommunities.org/id/metropolitan-district-council/leeds,Leeds City Council As Accountable Body,29/02/2020,Social Services Pooled Budgets,Jcs For People With Learning Disabilitie,Third Party Payments,Day Centre,564,26/02/2020,2002-00632,0.00,2394.00,R,Affinity Trust,No
Http://opendatacommunities.org/id/metropolitan-district-council/leeds,Leeds City Council As Accountable Body,29/02/2020,Social Services Pooled Budgets,Jcs For People With Learning Disabilitie,Third Party Payments,Day Centre,564,26/02/2020,2002-00633,0.00,1304.13,R,Affinity Trust,No
Http://opendatacommunities.org/id/metropolitan-district-council/leeds,Leeds City Council As Accountable Body,29/02/2020,Social Services Pooled Budgets,Jcs For People With Learning Disabilitie,Third Party Payments,Day Centre,564,26/02/2020,2002-00634,0.00,2072.52,R,Affinity Trust,No
Http://opendatacommunities.org/id/metropolitan-district-council/leeds,Leeds City Council As Accountable Body,29/02/2020,Social Services Pooled Budgets,Jcs For People With Learning Disabilitie,Third Party Payments,Home Care,568,26/02/2020,2002-00635,0.00,1615.42,R,Affinity Trust,No
Http://opendatacommunities.org/id/metropolitan-district-council/leeds,Leeds City Council As Accountable Body,29/02/2020,Social Services Pooled Budgets,Jcs For People With Learning Disabilitie,Transfer Payments,Personal Budgets,627,26/02/2020,2002-00636,0.00,629.81,R,Affinity Trust,No
Http://opendatacommunities.org/id/metropolitan-district-council/leeds,Leeds City Council As Accountable Body,29/02/2020,Social Services Pooled Budgets,Jcs For People With Learning Disabilitie,Third Party Payments,Home Care,568,26/02/2020,2002-00637,0.00,1542.75,R,Affinity Trust,No
Http://opendatacommunities.org/id/metropolitan-district-council/leeds,Leeds City Council As Accountable Body,29/02/2020,Social Services Pooled Budgets,Jcs For People With Learning Disabilitie,Third Party Payments,Home Care,568,26/02/2020,2002-00638,0.00,1211.04,R,Affinity Trust,No
Http://opendatacommunities.org/id/metropolitan-district-council/leeds,Leeds City Council As Accountable Body,29/02/2020,Social Services Pooled Budgets,Jcs For People With Learning Disabilitie,Third Party Payments,Home Care,568,26/02/2020,2002-00639,0.00,639.20,R,Affinity Trust,No
Http://opendatacommunities.org/id/metropolitan-district-council/leeds,Leeds City Council As Accountable Body,29/02/2020,Social Services Pooled Budgets,Jcs For People With Learning Disabilitie,Third Party Payments,Home Care,568,26/02/2020,2002-00640,0.00,767.04,R,Affinity Trust,No
Http://opendatacommunities.org/id/metropolitan-district-council/leeds,Leeds City Council,29/02/2020,Adults and Health,Services For Older People - 65 And Over,Third Party Payments,HCAIT Community Support,575,26/02/2020,2002-00641,0.00,463.42,R,Affinity Trust,No
Http://opendatacommunities.org/id/metropolitan-district-council/leeds,Leeds City Council As Accountable Body,29/02/2020,Social Services Pooled Budgets,Jcs For People With Learning Disabilitie,Third Party Payments,Day Centre,564,26/02/2020,2002-00642,0.00,1440.00,R,Affinity Trust,No
Http://opendatacommunities.org/id/metropolitan-district-council/leeds,Leeds City Council As Accountable Body,29/02/2020,Social Services Pooled Budgets,Jcs For People With Learning Disabilitie,Third Party Payments,Day Centre,564,26/02/2020,2002-00643,0.00,1021.32,R,Affinity Trust,No
Http://opendatacommunities.org/id/metropolitan-district-council/leeds,Leeds City Council As Accountable Body,29/02/2020,Social Services Pooled Budgets,Jcs For People With Learning Disabilitie,Third Party Payments,Home Care,568,26/02/2020,2002-00644,0.00,1980.00,R,Affinity Trust,No
Http://opendatacommunities.org/id/metropolitan-district-council/leeds,Leeds City Council As Accountable Body,29/02/2020,Social Services Pooled Budgets,Jcs For People With Learning Disabilitie,Third Party Payments,Home Care,568,26/02/2020,2002-00645,0.00,587.97,R,Affinity Trust,No
Http://opendatacommunities.org/id/metropolitan-district-council/leeds,Leeds City Council As Accountable Body,29/02/2020,Social Services Pooled Budgets,Jcs For People With Learning Disabilitie,Third Party Payments,Home Care,568,26/02/2020,2002-00646,0.00,1560.00,R,Affinity Trust,No
Http://opendatacommunities.org/id/metropolitan-district-council/leeds,Leeds City Council As Accountable Body,29/02/2020,Social Services Pooled Budgets,Jcs For People With Learning Disabilitie,Third Party Payments,Home Care,568,26/02/2020,2002-00647,0.00,2752.80,R,Affinity Trust,No
Http://opendatacommunities.org/id/metropolitan-district-council/leeds,Leeds City Council As Accountable Body,29/02/2020,Social Services Pooled Budgets,Jcs For People With Learning Disabilitie,Third Party Payments,Home Care,568,26/02/2020,2002-00648,0.00,1911.45,R,Affinity Trust,No
Http://opendatacommunities.org/id/metropolitan-district-council/leeds,Leeds City Council As Accountable Body,29/02/2020,Social Services Pooled Budgets,Jcs For People With Learning Disabilitie,Third Party Payments,Home Care,568,26/02/2020,2002-00649,0.00,977.31,R,Affinity Trust,No
Http://opendatacommunities.org/id/metropolitan-district-council/leeds,Leeds City Council As Accountable Body,29/02/2020,Social Services Pooled Budgets,Jcs For People With Learning Disabilitie,Third Party Payments,Day Centre,564,26/02/2020,2002-00650,0.00,2031.48,R,Affinity Trust,No
Http://opendatacommunities.org/id/metropolitan-district-council/leeds,Leeds City Council As Accountable Body,29/02/2020,Social Services Pooled Budgets,Jcs For People With Learning Disabilitie,Transfer Payments,Personal Budgets,627,26/02/2020,2002-00651,0.00,701.14,R,Affinity Trust,No
Http://opendatacommunities.org/id/metropolitan-district-council/leeds,Leeds City Council As Accountable Body,29/02/2020,Social Services Pooled Budgets,Jcs For People With Learning Disabilitie,Third Party Payments,Home Care,568,26/02/2020,2002-00652,0.00,2896.60,R,Affinity Trust,No
Http://opendatacommunities.org/id/metropolitan-district-council/leeds,Leeds City Council As Accountable Body,29/02/2020,Social Services Pooled Budgets,Jcs For People With Learning Disabilitie,Third Party Payments,Day Centre,564,26/02/2020,2002-00653,0.00,402.24,R,Affinity Trust,No
Http://opendatacommunities.org/id/metropolitan-district-council/leeds,Leeds City Council As Accountable Body,29/02/2020,Social Services Pooled Budgets,Jcs For People With Learning Disabilitie,Third Party Payments,Home Care,568,26/02/2020,2002-00654,0.00,525.72,R,Affinity Trust,No
Http://opendatacommunities.org/id/metropolitan-district-council/leeds,Leeds City Council As Accountable Body,29/02/2020,Social Services Pooled Budgets,Jcs For People With Learning Disabilitie,Third Party Payments,Day Centre,564,26/02/2020,2002-00655,0.00,342.60,R,Affinity Trust,No
Http://opendatacommunities.org/id/metropolitan-district-council/leeds,Leeds City Council As Accountable Body,29/02/2020,Social Services Pooled Budgets,Jcs For People With Learning Disabilitie,Third Party Payments,Home Care,568,26/02/2020,2002-00656,0.00,1550.38,R,Affinity Trust,No
Http://opendatacommunities.org/id/metropolitan-district-council/leeds,Leeds City Council As Accountable Body,29/02/2020,Social Services Pooled Budgets,Jcs For People With Learning Disabilitie,Third Party Payments,Home Care,568,26/02/2020,2002-00657,0.00,804.48,R,Affinity Trust,No
Http://opendatacommunities.org/id/metropolitan-district-council/leeds,Leeds City Council As Accountable Body,29/02/2020,Social Services Pooled Budgets,Jcs For People With Learning Disabilitie,Third Party Payments,Home Care,568,26/02/2020,2002-00658,0.00,1388.35,R,Affinity Trust,No
Http://opendatacommunities.org/id/metropolitan-district-council/leeds,Leeds City Council As Accountable Body,29/02/2020,Social Services Pooled Budgets,Jcs For People With Learning Disabilitie,Third Party Payments,Home Care,568,26/02/2020,2002-00659,0.00,1770.66,R,Affinity Trust,No
Http://opendatacommunities.org/id/metropolitan-district-council/leeds,Leeds City Council As Accountable Body,29/02/2020,Social Services Pooled Budgets,Jcs For People With Learning Disabilitie,Third Party Payments,Home Care,568,26/02/2020,2002-00660,0.00,1005.60,R,Affinity Trust,No
Http://opendatacommunities.org/id/metropolitan-district-council/leeds,Leeds City Council As Accountable Body,29/02/2020,Social Services Pooled Budgets,Jcs For People With Learning Disabilitie,Third Party Payments,Home Care,568,26/02/2020,2002-00661,0.00,360.00,R,Affinity Trust,No
Http://opendatacommunities.org/id/metropolitan-district-council/leeds,Leeds City Council As Accountable Body,29/02/2020,Social Services Pooled Budgets,Jcs For People With Learning Disabilitie,Third Party Payments,Day Centre,564,26/02/2020,2002-00662,0.00,648.95,R,Affinity Trust,No
Http://opendatacommunities.org/id/metropolitan-district-council/leeds,Leeds City Council As Accountable Body,29/02/2020,Social Services Pooled Budgets,Jcs For People With Learning Disabilitie,Third Party Payments,Day Centre,564,26/02/2020,2002-00663,0.00,2346.40,R,Affinity Trust,No
Http://opendatacommunities.org/id/metropolitan-district-council/leeds,Leeds City Council As Accountable Body,29/02/2020,Social Services Pooled Budgets,Jcs For People With Learning Disabilitie,Third Party Payments,Day Centre,564,26/02/2020,2002-00664,0.00,1249.29,R,Affinity Trust,No
Http://opendatacommunities.org/id/metropolitan-district-council/leeds,Leeds City Council As Accountable Body,29/02/2020,Social Services Pooled Budgets,Jcs For People With Learning Disabilitie,Third Party Payments,Day Centre,564,26/02/2020,2002-00665,0.00,1440.00,R,Affinity Trust,No
Http://opendatacommunities.org/id/metropolitan-district-council/leeds,Leeds City Council As Accountable Body,29/02/2020,Social Services Pooled Budgets,Jcs For People With Learning Disabilitie,Third Party Payments,Day Centre,564,26/02/2020,2002-00666,0.00,1050.66,R,Affinity Trust,No
Http://opendatacommunities.org/id/metropolitan-district-council/leeds,Leeds City Council As Accountable Body,29/02/2020,Social Services Pooled Budgets,Jcs For People With Learning Disabilitie,Third Party Payments,Home Care,568,26/02/2020,2002-00667,0.00,2040.00,R,Affinity Trust,No
Http://opendatacommunities.org/id/metropolitan-district-council/leeds,Leeds City Council As Accountable Body,29/02/2020,Social Services Pooled Budgets,Jcs For People With Learning Disabilitie,Third Party Payments,Home Care,568,26/02/2020,2002-00668,0.00,705.33,R,Affinity Trust,No
Http://opendatacommunities.org/id/metropolitan-district-council/leeds,Leeds City Council As Accountable Body,29/02/2020,Social Services Pooled Budgets,Jcs For People With Learning Disabilitie,Third Party Payments,Home Care,568,26/02/2020,2002-00669,0.00,1560.00,R,Affinity Trust,No
Http://opendatacommunities.org/id/metropolitan-district-council/leeds,Leeds City Council As Accountable Body,29/02/2020,Social Services Pooled Budgets,Jcs For People With Learning Disabilitie,Third Party Payments,Home Care,568,26/02/2020,2002-00670,0.00,2752.80,R,Affinity Trust,No
Http://opendatacommunities.org/id/metropolitan-district-council/leeds,Leeds City Council As Accountable Body,29/02/2020,Social Services Pooled Budgets,Jcs For People With Learning Disabilitie,Third Party Payments,Home Care,568,26/02/2020,2002-00671,0.00,1831.65,R,Affinity Trust,No
Http://opendatacommunities.org/id/metropolitan-district-council/leeds,Leeds City Council As Accountable Body,29/02/2020,Social Services Pooled Budgets,Jcs For People With Learning Disabilitie,Third Party Payments,Home Care,568,26/02/2020,2002-00672,0.00,1050.66,R,Affinity Trust,No
Http://opendatacommunities.org/id/metropolitan-district-council/leeds,Leeds City Council As Accountable Body,29/02/2020,Social Services Pooled Budgets,Jcs For People With Learning Disabilitie,Third Party Payments,Day Centre,564,26/02/2020,2002-00673,0.00,2031.48,R,Affinity Trust,No
Http://opendatacommunities.org/id/metropolitan-district-council/leeds,Leeds City Council As Accountable Body,29/02/2020,Social Services Pooled Budgets,Jcs For People With Learning Disabilitie,Transfer Payments,Personal Budgets,627,26/02/2020,2002-00674,0.00,617.34,R,Affinity Trust,No
Http://opendatacommunities.org/id/metropolitan-district-council/leeds,Leeds City Council As Accountable Body,29/02/2020,Social Services Pooled Budgets,Jcs For People With Learning Disabilitie,Third Party Payments,Home Care,568,26/02/2020,2002-00675,0.00,2896.60,R,Affinity Trust,No
Http://opendatacommunities.org/id/metropolitan-district-council/leeds,Leeds City Council As Accountable Body,29/02/2020,Social Services Pooled Budgets,Jcs For People With Learning Disabilitie,Third Party Payments,Home Care,568,26/02/2020,2002-00676,0.00,525.72,R,Affinity Trust,No
Http://opendatacommunities.org/id/metropolitan-district-council/leeds,Leeds City Council As Accountable Body,29/02/2020,Social Services Pooled Budgets,Jcs For People With Learning Disabilitie,Third Party Payments,Home Care,568,26/02/2020,2002-00677,0.00,1583.76,R,Affinity Trust,No
Http://opendatacommunities.org/id/metropolitan-district-council/leeds,Leeds City Council As Accountable Body,29/02/2020,Social Services Pooled Budgets,Jcs For People With Learning Disabilitie,Third Party Payments,Home Care,568,26/02/2020,2002-00678,0.00,804.48,R,Affinity Trust,No
Http://opendatacommunities.org/id/metropolitan-district-council/leeds,Leeds City Council As Accountable Body,29/02/2020,Social Services Pooled Budgets,Jcs For People With Learning Disabilitie,Third Party Payments,Home Care,568,26/02/2020,2002-00679,0.00,1295.25,R,Affinity Trust,No
Http://opendatacommunities.org/id/metropolitan-district-council/leeds,Leeds City Council As Accountable Body,29/02/2020,Social Services Pooled Budgets,Jcs For People With Learning Disabilitie,Third Party Payments,Home Care,568,26/02/2020,2002-00680,0.00,1726.65,R,Affinity Trust,No
Http://opendatacommunities.org/id/metropolitan-district-council/leeds,Leeds City Council As Accountable Body,29/02/2020,Social Services Pooled Budgets,Jcs For People With Learning Disabilitie,Third Party Payments,Home Care,568,26/02/2020,2002-00681,0.00,1005.60,R,Affinity Trust,No
Http://opendatacommunities.org/id/metropolitan-district-council/leeds,Leeds City Council As Accountable Body,29/02/2020,Social Services Pooled Budgets,Jcs For People With Learning Disabilitie,Third Party Payments,Home Care,568,26/02/2020,2002-00682,0.00,360.00,R,Affinity Trust,No
Http://opendatacommunities.org/id/metropolitan-district-council/leeds,Leeds City Council As Accountable Body,29/02/2020,Social Services Pooled Budgets,Jcs For People With Learning Disabilitie,Third Party Payments,Day Centre,564,26/02/2020,2002-00683,0.00,648.95,R,Affinity Trust,No
Http://opendatacommunities.org/id/metropolitan-district-council/leeds,Leeds City Council As Accountable Body,29/02/2020,Social Services Pooled Budgets,Jcs For People With Learning Disabilitie,Third Party Payments,Day Centre,564,26/02/2020,2002-00684,0.00,2346.40,R,Affinity Trust,No
Http://opendatacommunities.org/id/metropolitan-district-council/leeds,Leeds City Council As Accountable Body,29/02/2020,Social Services Pooled Budgets,Jcs For People With Learning Disabilitie,Third Party Payments,Day Centre,564,26/02/2020,2002-00685,0.00,1278.63,R,Affinity Trust,No
Http://opendatacommunities.org/id/metropolitan-district-council/leeds,Leeds City Council As Accountable Body,29/02/2020,Social Services Pooled Budgets,Jcs For People With Learning Disabilitie,Third Party Payments,Home Care,568,26/02/2020,2002-00686,0.00,287.64,R,Affinity Trust,No
Http://opendatacommunities.org/id/metropolitan-district-council/leeds,Leeds City Council,29/02/2020,Adults and Health,Services For Adults Under 65 Mental/Dis,Third Party Payments,HCAIT Community Support,575,26/02/2020,2002-00687,0.00,201.84,R,Affinity Trust,No
Http://opendatacommunities.org/id/metropolitan-district-council/leeds,Leeds City Council As Accountable Body,29/02/2020,Social Services Pooled Budgets,Jcs For People With Learning Disabilitie,Third Party Payments,Home Care,568,28/02/2020,2002-00688,0.00,1294.38,R,Affinity Trust,No
Http://opendatacommunities.org/id/metropolitan-district-council/leeds,Leeds City Council As Accountable Body,29/02/2020,Social Services Pooled Budgets,Jcs For People With Learning Disabilitie,Third Party Payments,Home Care,568,28/02/2020,2002-00689,0.00,447.44,R,Affinity Trust,No
Http://opendatacommunities.org/id/metropolitan-district-council/leeds,Leeds City Council As Accountable Body,29/02/2020,Social Services Pooled Budgets,Jcs For People With Learning Disabilitie,Third Party Payments,Home Care,568,28/02/2020,2002-00690,0.00,1350.00,R,Affinity Trust,No
Http://opendatacommunities.org/id/metropolitan-district-council/leeds,Leeds City Council As Accountable Body,29/02/2020,Social Services Pooled Budgets,Jcs For People With Learning Disabilitie,Third Party Payments,Day Centre,564,28/02/2020,2002-00691,0.00,720.00,R,Affinity Trust,No
Http://opendatacommunities.org/id/metropolitan-district-council/leeds,Leeds City Council As Accountable Body,29/02/2020,Social Services Pooled Budgets,Jcs For People With Learning Disabilitie,Third Party Payments,Home Care,568,28/02/2020,2002-00692,0.00,347.31,R,Affinity Trust,No
Http://opendatacommunities.org/id/metropolitan-district-council/leeds,Leeds City Council As Accountable Body,29/02/2020,Social Services Pooled Budgets,Jcs For People With Learning Disabilitie,Third Party Payments,Home Care,568,28/02/2020,2002-00693,0.00,1170.00,R,Affinity Trust,No
Http://opendatacommunities.org/id/metropolitan-district-council/leeds,Leeds City Council As Accountable Body,29/02/2020,Social Services Pooled Budgets,Jcs For People With Learning Disabilitie,Third Party Payments,Home Care,568,28/02/2020,2002-00694,0.00,1852.80,R,Affinity Trust,No
Http://opendatacommunities.org/id/metropolitan-district-council/leeds,Leeds City Council As Accountable Body,29/02/2020,Social Services Pooled Budgets,Jcs For People With Learning Disabilitie,Third Party Payments,Home Care,568,28/02/2020,2002-00695,0.00,885.90,R,Affinity Trust,No
Http://opendatacommunities.org/id/metropolitan-district-council/leeds,Leeds City Council As Accountable Body,29/02/2020,Social Services Pooled Budgets,Jcs For People With Learning Disabilitie,Third Party Payments,Home Care,568,28/02/2020,2002-00696,0.00,1584.00,R,Affinity Trust,No
Http://opendatacommunities.org/id/metropolitan-district-council/leeds,Leeds City Council As Accountable Body,29/02/2020,Social Services Pooled Budgets,Jcs For People With Learning Disabilitie,Third Party Payments,Home Care,568,28/02/2020,2002-00697,0.00,991.98,R,Affinity Trust,No
Http://opendatacommunities.org/id/metropolitan-district-council/leeds,Leeds City Council As Accountable Body,29/02/2020,Social Services Pooled Budgets,Jcs For People With Learning Disabilitie,Third Party Payments,Home Care,568,28/02/2020,2002-00698,0.00,1899.81,R,Affinity Trust,No
Http://opendatacommunities.org/id/metropolitan-district-council/leeds,Leeds City Council As Accountable Body,29/02/2020,Social Services Pooled Budgets,Jcs For People With Learning Disabilitie,Transfer Payments,Personal Budgets,627,28/02/2020,2002-00699,0.00,590.33,R,Affinity Trust,No
Http://opendatacommunities.org/id/metropolitan-district-council/leeds,Leeds City Council As Accountable Body,29/02/2020,Social Services Pooled Budgets,Jcs For People With Learning Disabilitie,Third Party Payments,Home Care,568,28/02/2020,2002-00700,0.00,2214.52,R,Affinity Trust,No
Http://opendatacommunities.org/id/metropolitan-district-council/leeds,Leeds City Council As Accountable Body,29/02/2020,Social Services Pooled Budgets,Jcs For People With Learning Disabilitie,Third Party Payments,Home Care,568,28/02/2020,2002-00701,0.00,525.72,R,Affinity Trust,No
Http://opendatacommunities.org/id/metropolitan-district-council/leeds,Leeds City Council As Accountable Body,29/02/2020,Social Services Pooled Budgets,Jcs For People With Learning Disabilitie,Third Party Payments,Home Care,568,28/02/2020,2002-00702,0.00,776.85,R,Affinity Trust,No
Http://opendatacommunities.org/id/metropolitan-district-council/leeds,Leeds City Council As Accountable Body,29/02/2020,Social Services Pooled Budgets,Jcs For People With Learning Disabilitie,Third Party Payments,Home Care,568,28/02/2020,2002-00703,0.00,502.80,R,Affinity Trust,No
Http://opendatacommunities.org/id/metropolitan-district-council/leeds,Leeds City Council As Accountable Body,29/02/2020,Social Services Pooled Budgets,Jcs For People With Learning Disabilitie,Third Party Payments,Home Care,568,28/02/2020,2002-00704,0.00,730.03,R,Affinity Trust,No
Http://opendatacommunities.org/id/metropolitan-district-council/leeds,Leeds City Council As Accountable Body,29/02/2020,Social Services Pooled Budgets,Jcs For People With Learning Disabilitie,Third Party Payments,Home Care,568,28/02/2020,2002-00705,0.00,870.66,R,Affinity Trust,No
Http://opendatacommunities.org/id/metropolitan-district-council/leeds,Leeds City Council As Accountable Body,29/02/2020,Social Services Pooled Budgets,Jcs For People With Learning Disabilitie,Third Party Payments,Home Care,568,28/02/2020,2002-00706,0.00,670.40,R,Affinity Trust,No
Http://opendatacommunities.org/id/metropolitan-district-council/leeds,Leeds City Council As Accountable Body,29/02/2020,Social Services Pooled Budgets,Jcs For People With Learning Disabilitie,Third Party Payments,Home Care,568,28/02/2020,2002-00707,0.00,360.00,R,Affinity Trust,No
Http://opendatacommunities.org/id/metropolitan-district-council/leeds,Leeds City Council As Accountable Body,29/02/2020,Social Services Pooled Budgets,Jcs For People With Learning Disabilitie,Third Party Payments,Day Centre,564,28/02/2020,2002-00708,0.00,648.95,R,Affinity Trust,No
Http://opendatacommunities.org/id/metropolitan-district-council/leeds,Leeds City Council As Accountable Body,29/02/2020,Social Services Pooled Budgets,Jcs For People With Learning Disabilitie,Third Party Payments,Day Centre,564,28/02/2020,2002-00709,0.00,1994.44,R,Affinity Trust,No
Http://opendatacommunities.org/id/metropolitan-district-council/leeds,Leeds City Council As Accountable Body,29/02/2020,Social Services Pooled Budgets,Jcs For People With Learning Disabilitie,Third Party Payments,Day Centre,564,28/02/2020,2002-00710,0.00,797.31,R,Affinity Trust,No
Http://opendatacommunities.org/id/metropolitan-district-council/leeds,Leeds City Council,29/02/2020,Adults and Health,Services For Older People Under 65 P/Dis,Third Party Payments,Home Care,568,28/02/2020,2002-00711,0.00,268.66,R,Affinity Trust,No
Http://opendatacommunities.org/id/metropolitan-district-council/leeds,Leeds City Council,29/02/2020,Adults and Health,Services For Older People Under 65 P/Dis,Third Party Payments,Sheltered Accommodation,569,05/02/2020,2002-00712,0.00,7610.40,R,Affinity Trust North Divisional Office,No
Http://opendatacommunities.org/id/metropolitan-district-council/leeds,Leeds City Council As Accountable Body,29/02/2020,Social Services Pooled Budgets,Jcs For People With Learning Disabilitie,Third Party Payments,Sheltered Accommodation,569,05/02/2020,2002-00713,0.00,119573.36,R,Affinity Trust North Divisional Office,No
Http://opendatacommunities.org/id/metropolitan-district-council/leeds,Leeds City Council,29/02/2020,Communities and Environment,Parks And Countryside  ,Transport,External Hire -Occasional,304,24/01/2020,2002-00714,0.00,950.00,R,Afi Uplift,Yes
Http://opendatacommunities.org/id/metropolitan-district-council/leeds,Leeds City Council,29/02/2020,Communities and Environment,Parks And Countryside  ,Transport,External Hire -Occasional,304,24/01/2020,2002-00715,0.00,570.00,R,Afi Uplift,Yes
Http://opendatacommunities.org/id/metropolitan-district-council/leeds,Leeds City Council,29/02/2020,Communities and Environment,Parks And Countryside  ,Transport,External Hire -Occasional,304,24/01/2020,2002-00716,0.00,950.00,R,Afi Uplift,Yes
Http://opendatacommunities.org/id/metropolitan-district-council/leeds,Leeds City Council,29/02/2020,Communities and Environment,Parks And Countryside  ,Transport,External Hire -Occasional,304,24/01/2020,2002-00717,0.00,950.00,R,Afi Uplift,Yes
Http://opendatacommunities.org/id/metropolitan-district-council/leeds,Leeds City Council,29/02/2020,Adults and Health,Public Health,Third Party Payments,Services Rendered By Voluntary Sector,505,21/02/2020,2002-00718,0.00,30000.00,R,Age Uk Leeds,No
Http://opendatacommunities.org/id/metropolitan-district-council/leeds,Leeds City Council,29/02/2020,Adults and Health,Social Services Support Services,Premises,Hire of meeting rooms,143,13/02/2020,2002-00719,0.00,100.00,R,Age Uk Leeds Enterprises,No
Http://opendatacommunities.org/id/metropolitan-district-council/leeds,Leeds City Council,29/02/2020,Adults and Health,Social Services Support Services,Employees,Training & Development,70,24/02/2020,2002-00720,0.00,1000.00,R,Age Uk Leeds Enterprises,No
Http://opendatacommunities.org/id/metropolitan-district-council/leeds,Leeds City Council,29/02/2020,Children and Families,Social Care,Premises,Other,114,12/02/2020,2002-00721,0.00,41.30,R,Agg Electrical Safety Testing Ltd,No
Http://opendatacommunities.org/id/metropolitan-district-council/leeds,Leeds City Council As Accountable Body,29/02/2020,Social Services Pooled Budgets,Jcs For People With Learning Disabilitie,Third Party Payments,Home Care,568,07/02/2020,2002-00722,0.00,101.53,R,Agh Solutions Ltd,No
Http://opendatacommunities.org/id/metropolitan-district-council/leeds,Leeds City Council As Accountable Body,29/02/2020,Social Services Pooled Budgets,Jcs For People With Learning Disabilitie,Third Party Payments,Home Care,568,07/02/2020,2002-00723,0.00,101.53,R,Agh Solutions Ltd,No
Http://opendatacommunities.org/id/metropolitan-district-council/leeds,Leeds City Council As Accountable Body,29/02/2020,Social Services Pooled Budgets,Jcs For People With Learning Disabilitie,Third Party Payments,Home Care,568,07/02/2020,2002-00724,0.00,101.53,R,Agh Solutions Ltd,No
Http://opendatacommunities.org/id/metropolitan-district-council/leeds,Leeds City Council As Accountable Body,29/02/2020,Social Services Pooled Budgets,Jcs For People With Learning Disabilitie,Third Party Payments,Home Care,568,07/02/2020,2002-00725,0.00,101.53,R,Agh Solutions Ltd,No
Http://opendatacommunities.org/id/metropolitan-district-council/leeds,Leeds City Council As Accountable Body,29/02/2020,Social Services Pooled Budgets,Jcs For People With Learning Disabilitie,Third Party Payments,Home Care,568,07/02/2020,2002-00726,0.00,101.53,R,Agh Solutions Ltd,No
Http://opendatacommunities.org/id/metropolitan-district-council/leeds,Leeds City Council As Accountable Body,29/02/2020,Social Services Pooled Budgets,Jcs For People With Learning Disabilitie,Third Party Payments,Home Care,568,07/02/2020,2002-00727,0.00,101.53,R,Agh Solutions Ltd,No
Http://opendatacommunities.org/id/metropolitan-district-council/leeds,Leeds City Council As Accountable Body,29/02/2020,Social Services Pooled Budgets,Jcs For People With Learning Disabilitie,Third Party Payments,Home Care,568,07/02/2020,2002-00728,0.00,101.53,R,Agh Solutions Ltd,No
Http://opendatacommunities.org/id/metropolitan-district-council/leeds,Leeds City Council As Accountable Body,29/02/2020,Social Services Pooled Budgets,Jcs For People With Learning Disabilitie,Third Party Payments,Home Care,568,07/02/2020,2002-00729,0.00,101.53,R,Agh Solutions Ltd,No
Http://opendatacommunities.org/id/metropolitan-district-council/leeds,Leeds City Council As Accountable Body,29/02/2020,Social Services Pooled Budgets,Jcs For People With Learning Disabilitie,Third Party Payments,Home Care,568,07/02/2020,2002-00730,0.00,101.53,R,Agh Solutions Ltd,No
Http://opendatacommunities.org/id/metropolitan-district-council/leeds,Leeds City Council As Accountable Body,29/02/2020,Social Services Pooled Budgets,Jcs For People With Learning Disabilitie,Third Party Payments,Home Care,568,07/02/2020,2002-00731,0.00,101.53,R,Agh Solutions Ltd,No
Http://opendatacommunities.org/id/metropolitan-district-council/leeds,Leeds City Council As Accountable Body,29/02/2020,Social Services Pooled Budgets,Jcs For People With Learning Disabilitie,Third Party Payments,Home Care,568,07/02/2020,2002-00732,0.00,101.53,R,Agh Solutions Ltd,No
Http://opendatacommunities.org/id/metropolitan-district-council/leeds,Leeds City Council As Accountable Body,29/02/2020,Social Services Pooled Budgets,Jcs For People With Learning Disabilitie,Third Party Payments,Home Care,568,07/02/2020,2002-00733,0.00,101.53,R,Agh Solutions Ltd,No
Http://opendatacommunities.org/id/metropolitan-district-council/leeds,Leeds City Council As Accountable Body,29/02/2020,Social Services Pooled Budgets,Jcs For People With Learning Disabilitie,Third Party Payments,Home Care,568,07/02/2020,2002-00734,0.00,101.53,R,Agh Solutions Ltd,No
Http://opendatacommunities.org/id/metropolitan-district-council/leeds,Leeds City Council As Accountable Body,29/02/2020,Social Services Pooled Budgets,Jcs For People With Learning Disabilitie,Third Party Payments,Home Care,568,07/02/2020,2002-00735,0.00,101.53,R,Agh Solutions Ltd,No
Http://opendatacommunities.org/id/metropolitan-district-council/leeds,Leeds City Council As Accountable Body,29/02/2020,Social Services Pooled Budgets,Jcs For People With Learning Disabilitie,Third Party Payments,Home Care,568,10/02/2020,2002-00736,0.00,101.53,R,Agh Solutions Ltd,No
Http://opendatacommunities.org/id/metropolitan-district-council/leeds,Leeds City Council As Accountable Body,29/02/2020,Social Services Pooled Budgets,Jcs For People With Learning Disabilitie,Third Party Payments,Home Care,568,10/02/2020,2002-00737,0.00,304.59,R,Agh Solutions Ltd,No
Http://opendatacommunities.org/id/metropolitan-district-council/leeds,Leeds City Council As Accountable Body,29/02/2020,Social Services Pooled Budgets,Jcs For People With Learning Disabilitie,Third Party Payments,Home Care,568,19/02/2020,2002-00738,0.00,101.53,R,Agh Solutions Ltd,No
Http://opendatacommunities.org/id/metropolitan-district-council/leeds,Leeds City Council As Accountable Body,29/02/2020,Social Services Pooled Budgets,Jcs For People With Learning Disabilitie,Third Party Payments,Home Care,568,28/02/2020,2002-00739,0.00,101.53,R,Agh Solutions Ltd,No
Http://opendatacommunities.org/id/metropolitan-district-council/leeds,Leeds City Council,29/02/2020,Communities and Environment,Customer Access,Supplies and Services,Bought In Professional Services,277,07/02/2020,2002-00740,0.00,31.50,R,Ahmed Moustafa Moustafa Mousa,No
Http://opendatacommunities.org/id/metropolitan-district-council/leeds,Leeds City Council,29/02/2020,Communities and Environment,Customer Access,Supplies and Services,Bought In Professional Services,277,07/02/2020,2002-00741,0.00,34.50,R,Ahmed Moustafa Moustafa Mousa,No
Http://opendatacommunities.org/id/metropolitan-district-council/leeds,Leeds City Council,29/02/2020,Communities and Environment,Customer Access,Supplies and Services,Bought In Professional Services,277,13/02/2020,2002-00742,0.00,31.50,R,Ahmed Moustafa Moustafa Mousa,No
Http://opendatacommunities.org/id/metropolitan-district-council/leeds,Leeds City Council,29/02/2020,Communities and Environment,Customer Access,Supplies and Services,Bought In Professional Services,277,13/02/2020,2002-00743,0.00,18.00,R,Ahmed Moustafa Moustafa Mousa,No
Http://opendatacommunities.org/id/metropolitan-district-council/leeds,Leeds City Council,29/02/2020,Communities and Environment,Customer Access,Supplies and Services,Bought In Professional Services,277,13/02/2020,2002-00744,0.00,36.00,R,Ahmed Moustafa Moustafa Mousa,No
Http://opendatacommunities.org/id/metropolitan-district-council/leeds,Leeds City Council,29/02/2020,Communities and Environment,Customer Access,Supplies and Services,Bought In Professional Services,277,20/02/2020,2002-00745,0.00,18.00,R,Ahmed Moustafa Moustafa Mousa,No
Http://opendatacommunities.org/id/metropolitan-district-council/leeds,Leeds City Council,29/02/2020,Communities and Environment,Customer Access,Supplies and Services,Bought In Professional Services,277,20/02/2020,2002-00746,0.00,31.50,R,Ahmed Moustafa Moustafa Mousa,No
Http://opendatacommunities.org/id/metropolitan-district-council/leeds,Leeds City Council,29/02/2020,Resources and Housing,Sustainable Energy & Climate Change,Capital,Other Costs,7,27/02/2020,2002-00747,0.00,1500.00,C,REDACTED COMMERCIAL CONFIDENTIALITY,No
Http://opendatacommunities.org/id/metropolitan-district-council/leeds,Leeds City Council,29/02/2020,Resources and Housing,Sustainable Energy & Climate Change,Capital,Other Costs,7,04/02/2020,2002-00748,0.00,1500.00,C,REDACTED COMMERCIAL CONFIDENTIALITY,No
Http://opendatacommunities.org/id/metropolitan-district-council/leeds,Leeds City Council,29/02/2020,Children and Families,Learning,Supplies and Services,Teaching Materials,202,12/02/2020,2002-00749,0.00,36.03,R,Aid Training & Operations Ltd,No
Http://opendatacommunities.org/id/metropolitan-district-council/leeds,Leeds City Council,29/02/2020,Children and Families,Learning,Supplies and Services,Teaching Materials,202,20/02/2020,2002-00750,0.00,55.03,R,Aid Training & Operations Ltd,No
Http://opendatacommunities.org/id/metropolitan-district-council/leeds,Leeds City Council As Accountable Body,29/02/2020,Social Services Pooled Budgets,Leeds Community Equip Store Pooled Budgt,Supplies and Services,Other Equipment,203,07/02/2020,2002-00751,0.00,1480.85,R,Aidapt Bathrooms Ltd,No
Http://opendatacommunities.org/id/metropolitan-district-council/leeds,Leeds City Council As Accountable Body,29/02/2020,Social Services Pooled Budgets,Leeds Community Equip Store Pooled Budgt,Supplies and Services,Other Equipment,203,07/02/2020,2002-00752,0.00,302.00,R,Aidapt Bathrooms Ltd,No
Http://opendatacommunities.org/id/metropolitan-district-council/leeds,Leeds City Council As Accountable Body,29/02/2020,Social Services Pooled Budgets,Leeds Community Equip Store Pooled Budgt,Supplies and Services,Other Equipment,203,28/02/2020,2002-00753,0.00,451.00,R,Aidapt Bathrooms Ltd,No
Http://opendatacommunities.org/id/metropolitan-district-council/leeds,Leeds City Council As Accountable Body,29/02/2020,Social Services Pooled Budgets,Leeds Community Equip Store Pooled Budgt,Supplies and Services,Other Equipment,203,28/02/2020,2002-00754,0.00,142.15,R,Aidapt Bathrooms Ltd,No
Http://opendatacommunities.org/id/metropolitan-district-council/leeds,Leeds City Council As Accountable Body,29/02/2020,Social Services Pooled Budgets,Leeds Community Equip Store Pooled Budgt,Supplies and Services,Other Equipment,203,28/02/2020,2002-00755,0.00,1156.00,R,Aidapt Bathrooms Ltd,No
Http://opendatacommunities.org/id/metropolitan-district-council/leeds,Leeds City Council As Accountable Body,29/02/2020,Social Services Pooled Budgets,Leeds Community Equip Store Pooled Budgt,Supplies and Services,Other Equipment,203,28/02/2020,2002-00756,0.00,964.75,R,Aidapt Bathrooms Ltd,No
Http://opendatacommunities.org/id/metropolitan-district-council/leeds,Leeds City Council As Accountable Body,29/02/2020,Social Services Pooled Budgets,Leeds Community Equip Store Pooled Budgt,Supplies and Services,Other Equipment,203,28/02/2020,2002-00757,0.00,256.80,R,Aidapt Bathrooms Ltd,No
Http://opendatacommunities.org/id/metropolitan-district-council/leeds,Leeds City Council As Accountable Body,29/02/2020,Social Services Pooled Budgets,Leeds Community Equip Store Pooled Budgt,Supplies and Services,Other Equipment,203,28/02/2020,2002-00758,0.00,2774.15,R,Aidapt Bathrooms Ltd,No
Http://opendatacommunities.org/id/metropolitan-district-council/leeds,Leeds City Council As Accountable Body,29/02/2020,Social Services Pooled Budgets,Leeds Community Equip Store Pooled Budgt,Supplies and Services,Other Equipment,203,28/02/2020,2002-00759,0.00,1001.00,R,Aidapt Bathrooms Ltd,No
Http://opendatacommunities.org/id/metropolitan-district-council/leeds,Leeds City Council As Accountable Body,29/02/2020,Social Services Pooled Budgets,Leeds Community Equip Store Pooled Budgt,Supplies and Services,Other Equipment,203,28/02/2020,2002-00760,0.00,357.50,R,Aidapt Bathrooms Ltd,No
Http://opendatacommunities.org/id/metropolitan-district-council/leeds,Leeds City Council As Accountable Body,29/02/2020,Social Services Pooled Budgets,Leeds Community Equip Store Pooled Budgt,Supplies and Services,Other Equipment,203,28/02/2020,2002-00761,0.00,715.00,R,Aidapt Bathrooms Ltd,No
Http://opendatacommunities.org/id/metropolitan-district-council/leeds,Leeds City Council,29/02/2020,Children and Families,Social Care,Employees,Training & Development,70,28/02/2020,2002-00762,0.00,1700.00,R,Aim Project,No
Http://opendatacommunities.org/id/metropolitan-district-council/leeds,Leeds City Council,29/02/2020,Children and Families,Social Care,Supplies and Services,Books & Audio-Visual Materials,206,28/02/2020,2002-00763,0.00,495.00,R,Aim Project,No
Http://opendatacommunities.org/id/metropolitan-district-council/leeds,Leeds City Council,29/02/2020,Children and Families,Social Care,Supplies and Services,Postages,212,28/02/2020,2002-00764,0.00,20.00,R,Aim Project,No
Http://opendatacommunities.org/id/metropolitan-district-council/leeds,Leeds City Council,29/02/2020,Resources and Housing,Leeds Building Services,Supplies and Services,Operational Materials,205,14/02/2020,2002-00765,0.00,11.16,R,Air Conditioning Accessories,No
Http://opendatacommunities.org/id/metropolitan-district-council/leeds,Leeds City Council,29/02/2020,Communities and Environment,Environmental Health,Supplies and Services,Other Hired And Contracted Services,265,06/02/2020,2002-00766,0.00,10.45,R,Air Liquide Uk,No
Http://opendatacommunities.org/id/metropolitan-district-council/leeds,Leeds City Council,29/02/2020,Communities and Environment,Environmental Health,Supplies and Services,Other Hired And Contracted Services,265,06/02/2020,2002-00767,0.00,10.45,R,Air Liquide Uk,No
Http://opendatacommunities.org/id/metropolitan-district-council/leeds,Leeds City Council,29/02/2020,Communities and Environment,Environmental Health,Supplies and Services,Other Hired And Contracted Services,265,06/02/2020,2002-00768,0.00,15.93,R,Air Liquide Uk,No
